{"text_format":"3","workbook":"xlsx","n_sheets":9,"sheets":["Инструкция","Укрупненные нормативы","Укрупненные нормативы(2)","Укрупненные нормативы(3)","Укрупненные нормативы(4)","Укрупненные нормативы(5)","Укрупненные нормативы(6)","Нормативы при ручной уборке","Периодичность работ"],"not_rendered":{"images":3,"macros":1,"defined_names":38,"comments":7},"read":"whole","date_system":"1900"}

{"sheet":"Инструкция","index":0,"n_rows":18,"n_cols":3,"rows_kept":18,"merged":[[1,2,1,8],[2,2,2,8],[4,2,4,8],[5,2,5,8],[6,2,6,8],[7,2,7,8],[8,2,8,8],[9,2,9,8],[10,2,10,8],[11,2,11,8],[12,2,12,8],[13,2,13,8],[14,2,14,8],[15,2,15,8],[16,2,16,8],[17,2,17,9]]}
[]
[null,null,"Подготовлено редакцией АПС «Бизнес-Инфо» (ООО «Профессиональные правовые системы»)"]
[null,null,"Инструкция по работе\nс Калькулятором нормативной численности уборщиков территорий"]
[]
[null,null,"Калькулятор рассчитает нормативную и штатную численность уборщиков территорий на основании:\n• укрупненных нормативов численности;\n• норм времени на отдельные виды работ по уборке тротуаров и дворовых территорий."]
[]
[null,null,"1. Укрупненные нормативы численности можно рассчитать для холодного и теплого периодов года."]
[]
[null,null,"2. В зависимости от вариантов соотношений видов покрытия и классов территорий выберите дополнительные листы расчетов, которые по умолчанию скрыты. Отобразите их (или скройте) при помощи соответствующих кнопок."]
[]
[null,null,"3. Общая штатная численность уборщиков территорий отображается в верхней части каждого листа."]
[]
[null,null,"4. На листе «Нормативы при ручной уборке» все разделы свернуты. Отобразите их при помощи соответствующих кнопок."]
[]
[null,null,"5. Для расчета нормативной и штатной численности разверните необходимые расчеты. Итоговые данные по нормативной трудоемкости, нормативной и штатной численности отображаются в верхней части листа."]
[]
[null,null,"Справочно"]
[null,null,"Калькулятор разработан на основании Межотраслевых нормативов численности рабочих, занятых обслуживанием зданий, сооружений и ремонтом оборудования, установленных в приложении 1 к постановлению Министерства труда и социальной защиты Республики Беларусь от 19.12.2014 № 104."]

{"sheet":"Укрупненные нормативы","index":1,"n_rows":96,"n_cols":42,"rows_kept":96,"merged":[[1,38,3,44],[2,2,2,11],[4,2,4,11],[6,2,6,5],[8,4,8,8],[10,2,10,4],[10,7,10,11],[12,2,12,10],[14,2,14,10],[16,2,16,4],[18,2,18,6],[20,2,20,3],[20,4,20,5],[22,2,22,8],[24,2,24,10],[26,2,26,10],[29,2,29,11],[31,2,31,5],[33,4,33,8],[35,2,35,4],[35,7,35,11],[37,2,37,10],[39,2,39,4],[41,2,41,6],[43,2,43,3],[43,4,43,5],[45,2,45,7],[47,2,47,10],[49,2,49,10],[51,2,51,8]]}
[]
[{"$nulls":38},"Общая штатная численность уборщиков территории, чел."]
[null,null,"Укрупненные нормативы численности уборщиков территорий"]
[]
[null,null,"Нормы обслуживания для холодного периода года",{"$nulls":10},"-",{"$nulls":7},"-","-","-",{"$nulls":17},{"$f":"'Укрупненные нормативы'!$J$52+'Укрупненные нормативы(2)'!$J$52+'Укрупненные нормативы(3)'!$J$52+'Укрупненные нормативы(4)'!$J$52+'Укрупненные нормативы(5)'!$J$52+'Укрупненные нормативы(6)'!$J$52","v":{"v":0,"d":"0.00"}}]
[{"$nulls":13},"0,5; 1,0",{"$f":"CONCATENATE(G7,E9,F11)","v":""},"До 10","с усовершенствованным покрытием","I",{"$f":"CONCATENATE(P6,Q6,R6)","v":"До 10с усовершенствованным покрытиемI"},{"v":7600,"d":"7,600"},null,"До 10","с усовершенствованным покрытием","I",{"$f":"CONCATENATE(G32,E34,F36)","v":""},"До 10","с усовершенствованным покрытием","I",{"$f":"CONCATENATE(Z6,AA6,AB6)","v":"До 10с усовершенствованным покрытиемI"},{"v":10100,"d":"10,100"}]
[null,null,"Число дней с твердыми осадками",{"$nulls":10},"0,25; 0,5; 0,75; 1,0",null,"До 10","с усовершенствованным покрытием","II",{"$f":"CONCATENATE(P7,Q7,R7)","v":"До 10с усовершенствованным покрытиемII"},{"v":3440,"d":"3,440"},null,"11-20","с неусовершенствованным покрытием","II",null,"До 10","с усовершенствованным покрытием","II",{"$f":"CONCATENATE(Z7,AA7,AB7)","v":"До 10с усовершенствованным покрытиемII"},{"v":4480,"d":"4,480"}]
[{"$nulls":15},"До 10","с усовершенствованным покрытием","III","До 10с усовершенствованным покрытиемIII",{"v":2590,"d":"2,590"},null,"21-30","без покрытий","III",null,"До 10","с усовершенствованным покрытием","III","До 10с усовершенствованным покрытиемIII",{"v":1940,"d":"1,940"},{"$nulls":4},{"v":10100,"d":"10,100"},{"v":4480,"d":"4,480"},{"v":1940,"d":"1,940"},{"v":7710,"d":"7,710"},{"v":3500,"d":"3,500"},{"v":1570,"d":"1,570"},{"v":6670,"d":"6,670"}]
[null,null,"Виды покрытий",{"$nulls":12},"До 10","с неусовершенствованным покрытием","I","До 10с неусовершенствованным покрытиемI",{"v":5920,"d":"5,920"},null,"31-40",{"$nulls":3},"До 10","с неусовершенствованным покрытием","I","До 10с неусовершенствованным покрытиемI",{"v":7710,"d":"7,710"},{"$nulls":3},"11-20",{"v":10240,"d":"10,240"},{"v":4550,"d":"4,550"},{"v":1970,"d":"1,970"},{"v":7810,"d":"7,810"},"Sheets(\"Óêðóïíåííûå íîðìàòèâû(6)\").Select",{"v":1600,"d":"1,600"},{"v":6770,"d":"6,770"}]
[{"$nulls":15},"До 10","с неусовершенствованным покрытием","II","До 10с неусовершенствованным покрытиемII",{"v":2800,"d":"2,800"},null,"41-50",{"$nulls":3},"До 10","с неусовершенствованным покрытием","II","До 10с неусовершенствованным покрытиемII",{"v":3500,"d":"3,500"},{"$nulls":3},"21-30",{"v":10370,"d":"10,370"},{"v":4620,"d":"4,620"},{"v":2010,"d":"2,010"},{"v":7910,"d":"7,910"},{"v":3610,"d":"3,610"},{"v":1620,"d":"1,620"},{"v":6870,"d":"6,870"}]
[null,null,"Классы территорий",{"$nulls":4},{"$f":"IF(AND(E9=\"без покрытий\",OR(F11=\"-\",F11=\"II\",F11=\"III\")),\"Укажите класс территории 'I'\",\"\")","v":""},{"$nulls":6},152,"До 10","с неусовершенствованным покрытием","III","До 10с неусовершенствованным покрытиемIII",{"v":2190,"d":"2,190"},null,"51-60",{"$nulls":3},"До 10","с неусовершенствованным покрытием","III","До 10с неусовершенствованным покрытиемIII",{"v":1570,"d":"1,570"},{"$nulls":3},"31-40",{"v":10520,"d":"10,520"},{"v":4690,"d":"4,690"},{"v":2040,"d":"2,040"},{"v":8030,"d":"8,030"},{"v":3670,"d":"3,670"},{"v":1640,"d":"1,640"},{"v":6980,"d":"6,980"}]
[{"$nulls":14},213,"До 10","без покрытий","I","До 10без покрытийI",{"v":5160,"d":"5,160"},null,"61-70",{"$nulls":3},"До 10","без покрытий","I","До 10без покрытийI",{"v":6670,"d":"6,670"},{"$nulls":3},"41-50",{"v":10670,"d":"10,670"},{"v":4750,"d":"4,750"},{"v":2070,"d":"2,070"},{"v":8140,"d":"8,140"},{"v":3730,"d":"3,730"},{"v":1660,"d":"1,660"},{"v":7080,"d":"7,080"}]
[null,null,"Количество дней выпадения неуплотненного свежевыпавшего снега толщиной слоя более 2 см",{"$nulls":11},{"$f":"L13/O11*100","v":{"v":0,"d":"0.00"}},"11-20","с усовершенствованным покрытием","I","11-20с усовершенствованным покрытиемI",{"v":6910,"d":"6,910"},null,"71-80",{"$nulls":3},"11-20","с усовершенствованным покрытием","I","11-20с усовершенствованным покрытиемI",{"v":10240,"d":"10,240"},{"$nulls":3},"51-60",{"v":10820,"d":"10,820"},{"v":4820,"d":"4,820"},{"v":2110,"d":"2,110"},{"v":8250,"d":"8,250"},{"v":3780,"d":"3,780"},{"v":1700,"d":"1,700"},{"v":7180,"d":"7,180"}]
[{"$nulls":15},"11-20","с усовершенствованным покрытием","II","11-20с усовершенствованным покрытиемII",{"v":3290,"d":"3,290"},null,"81-90",{"$nulls":3},"11-20","с усовершенствованным покрытием","II","11-20с усовершенствованным покрытиемII",{"v":4550,"d":"4,550"},{"$nulls":3},"61-70",{"v":10970,"d":"10,970"},{"v":4900,"d":"4,900"},{"v":2140,"d":"2,140"},{"v":8370,"d":"8,370"},{"v":3840,"d":"3,840"},{"v":1730,"d":"1,730"},{"v":7300,"d":"7,300"}]
[null,null,"Количество дней гололеда, когда осуществляется посыпка территорий песком или смесью песка с хлоридами",{"$nulls":11},{"$f":"IF(O13>30,0.95^(O13-30),1)","v":{"v":1,"d":"1.00"}},"11-20","с усовершенствованным покрытием","III","11-20с усовершенствованным покрытиемIII",{"v":2340,"d":"2,340"},null,"91-100",{"$nulls":3},"11-20","с усовершенствованным покрытием","III","11-20с усовершенствованным покрытиемIII",{"v":1970,"d":"1,970"},{"$nulls":3},"71-80",{"v":11130,"d":"11,130"},{"v":4980,"d":"4,980"},{"v":2180,"d":"2,180"},{"v":8490,"d":"8,490"},{"v":3900,"d":"3,900"},{"v":1770,"d":"1,770"},{"v":7410,"d":"7,410"}]
[{"$nulls":15},"11-20","с неусовершенствованным покрытием","I","11-20с неусовершенствованным покрытиемI",{"v":5440,"d":"5,440"},null,"101-110",{"$nulls":3},"11-20","с неусовершенствованным покрытием","I","11-20с неусовершенствованным покрытиемI",{"v":7810,"d":"7,810"},{"$nulls":3},"81-90",{"v":11290,"d":"11,290"},{"v":5060,"d":"5,060"},{"v":2210,"d":"2,210"},{"v":8620,"d":"8,620"},{"v":3960,"d":"3,960"},{"v":1800,"d":"1,800"},{"v":7520,"d":"7,520"}]
[null,null,"Норма обслуживания, м2",null,null,{"$f":"IFERROR(VLOOKUP(O6,S6:T96,2,FALSE)*O15*O18,0)","v":0},{"$nulls":8},{"$f":"L15/O12*100","v":{"v":0,"d":"0.00"}},"11-20","с неусовершенствованным покрытием","II","11-20с неусовершенствованным покрытиемII",{"v":2690,"d":"2,690"},null,"111-120",{"$nulls":3},"11-20","с неусовершенствованным покрытием","II","11-20с неусовершенствованным покрытиемII",{"v":3560,"d":"3,560"},{"$nulls":3},"91-100",{"v":11450,"d":"11,450"},{"v":5140,"d":"5,140"},{"v":2250,"d":"2,250"},{"v":8740,"d":"8,740"},{"v":4020,"d":"4,020"},{"v":1840,"d":"1,840"},{"v":7640,"d":"7,640"}]
[{"$nulls":14},{"$f":"IF(O17>25,0.99^(O17-25),1)","v":{"v":1,"d":"1.00"}},"11-20","с неусовершенствованным покрытием","III","11-20с неусовершенствованным покрытиемIII",{"v":1980,"d":"1,980"},null,"121-130",{"$nulls":3},"11-20","с неусовершенствованным покрытием","III","11-20с неусовершенствованным покрытиемIII",{"v":1600,"d":"1,600"},{"$nulls":3},"101-110",{"v":11600,"d":"11,600"},{"v":5230,"d":"5,230"},{"v":2290,"d":"2,290"},{"v":8870,"d":"8,870"},{"v":4100,"d":"4,100"},{"v":1880,"d":"1,880"},{"v":7750,"d":"7,750"}]
[null,null,"Обслуживаемая площадь территории, м2",{"$nulls":12},"11-20","без покрытий","I","11-20без покрытийI",{"v":4730,"d":"4,730"},{"$nulls":5},"11-20","без покрытий","I","11-20без покрытийI",{"v":6770,"d":"6,770"},{"$nulls":3},"111-120",{"v":11790,"d":"11,790"},{"v":5320,"d":"5,320"},{"v":2340,"d":"2,340"},{"v":9010,"d":"9,010"},{"v":4180,"d":"4,180"},{"v":1930,"d":"1,930"},{"v":7880,"d":"7,880"}]
[{"$nulls":15},"21-30","с усовершенствованным покрытием","I","21-30с усовершенствованным покрытиемI",{"v":6210,"d":"6,210"},{"$nulls":5},"21-30","с усовершенствованным покрытием","I","21-30с усовершенствованным покрытиемI",{"v":10370,"d":"10,370"},{"$nulls":3},"121-130",{"v":11980,"d":"11,980"},{"v":5420,"d":"5,420"},{"v":2380,"d":"2,380"},{"v":9150,"d":"9,150"},{"v":4260,"d":"4,260"},{"v":1970,"d":"1,970"},{"v":8010,"d":"8,010"}]
[null,null,"Градация",{"$nulls":12},"21-30","с усовершенствованным покрытием","II","21-30с усовершенствованным покрытиемII",{"v":3150,"d":"3,150"},{"$nulls":5},"21-30","с усовершенствованным покрытием","II","21-30с усовершенствованным покрытиемII",{"v":4620,"d":"4,620"}]
[{"$nulls":15},"21-30","с усовершенствованным покрытием","III","21-30с усовершенствованным покрытиемIII",{"v":2090,"d":"2,090"},{"$nulls":5},"21-30","с усовершенствованным покрытием","III","21-30с усовершенствованным покрытиемIII",{"v":2010,"d":"2,010"}]
[null,null,"Нормативная численность уборщиков территорий, чел.",{"$nulls":6},{"$f":"IF(F17=0,0,H19/F17*(1+L25/100))","v":{"v":0,"d":"0.00"}},{"$nulls":5},"21-30","с неусовершенствованным покрытием","I","21-30с неусовершенствованным покрытиемI",{"v":4960,"d":"4,960"},null,{"$f":"J23","v":{"v":0,"d":"0.00"}},{"$f":"INT(V23)","v":{"v":0,"d":"0.00"}},{"$f":"V23-W23","v":{"v":0,"d":"0.00"}},null,"21-30","с неусовершенствованным покрытием","I","21-30с неусовершенствованным покрытиемI",{"v":7910,"d":"7,910"}]
[{"$nulls":15},"21-30","с неусовершенствованным покрытием","II","21-30с неусовершенствованным покрытиемII",{"v":2580,"d":"2,580"},{"$nulls":5},"21-30","с неусовершенствованным покрытием","II","21-30с неусовершенствованным покрытиемII",{"v":3610,"d":"3,610"}]
[null,null,"Планируемый процент невыходов по болезни, выполнению государственных обязанностей, трудовым и дополнительным отпускам, предусмотренным коллективным договором",{"$nulls":12},"21-30","с неусовершенствованным покрытием","III","21-30с неусовершенствованным покрытиемIII",{"v":1790,"d":"1,790"},{"$nulls":5},"21-30","с неусовершенствованным покрытием","III","21-30с неусовершенствованным покрытиемIII",{"v":1620,"d":"1,620"}]
[{"$nulls":15},"21-30","без покрытий","I","21-30без покрытийI",{"v":4300,"d":"4,300"},{"$nulls":5},"21-30","без покрытий","I","21-30без покрытийI",{"v":6870,"d":"6,870"}]
[null,null,"Штатная численность уборщиков территорий в холодный период года, чел.",{"$nulls":8},{"$f":"IF(E21=\"0,5; 1,0\",(IF(X23<=0.25,W23,0)+IF(AND(X23<=0.75,X23>0.25),(W23+0.5),0)+IF(X23>0.75,(W23+1),0)),0)+IF(E21=\"0,25; 0,5; 0,75; 1,0\",(IF(X23<=0.12,W23,0)+IF(AND(X23<=0.37,X23>0.12),(W23+0.25),0)+IF(AND(X23<=0.62,X23>0.37),(W23+0.5),0)+IF(AND(X23<=0.87,X23>0.62),(W23+0.75),0)+IF(X23>0.87,(W23+1),0)),0)","v":{"v":0,"d":"0.00"}},{"$nulls":3},"31-40","с усовершенствованным покрытием","I","31-40с усовершенствованным покрытиемI",{"v":5700,"d":"5,700"},{"$nulls":5},"31-40","с усовершенствованным покрытием","I","31-40с усовершенствованным покрытиемI",{"v":10520,"d":"10,520"}]
[{"$nulls":15},"31-40","с усовершенствованным покрытием","II","31-40с усовершенствованным покрытиемII",{"v":3020,"d":"3,020"},{"$nulls":5},"31-40","с усовершенствованным покрытием","II","31-40с усовершенствованным покрытиемII",{"v":4690,"d":"4,690"}]
[{"$nulls":15},"31-40","с усовершенствованным покрытием","III","31-40с усовершенствованным покрытиемIII",{"v":1890,"d":"1,890"},{"$nulls":5},"31-40","с усовершенствованным покрытием","III","31-40с усовершенствованным покрытиемIII",{"v":2040,"d":"2,040"}]
[null,null,"Нормы обслуживания для теплого периода года",{"$nulls":12},"31-40","с неусовершенствованным покрытием","I","31-40с неусовершенствованным покрытиемI",{"v":4560,"d":"4,560"},{"$nulls":5},"31-40","с неусовершенствованным покрытием","I","31-40с неусовершенствованным покрытиемI",{"v":8030,"d":"8,030"}]
[{"$nulls":15},"31-40","с неусовершенствованным покрытием","II","31-40с неусовершенствованным покрытиемII",{"v":2480,"d":"2,480"},{"$nulls":5},"31-40","с неусовершенствованным покрытием","II","31-40с неусовершенствованным покрытиемII",{"v":3670,"d":"3,670"}]
[null,null,"Число дней с жидкими осадками",{"$nulls":12},"31-40","с неусовершенствованным покрытием","III","31-40с неусовершенствованным покрытиемIII",{"v":1620,"d":"1,620"},{"$nulls":5},"31-40","с неусовершенствованным покрытием","III","31-40с неусовершенствованным покрытиемIII",{"v":1640,"d":"1,640"}]
[{"$nulls":15},"31-40","без покрытий","I","31-40без покрытийI",{"v":3920,"d":"3,920"},{"$nulls":5},"31-40","без покрытий","I","31-40без покрытийI",{"v":6980,"d":"6,980"}]
[null,null,"Виды покрытий",{"$nulls":12},"41-50","с усовершенствованным покрытием","I","41-50с усовершенствованным покрытиемI",{"v":5250,"d":"5,250"},{"$nulls":5},"41-50","с усовершенствованным покрытием","I","41-50с усовершенствованным покрытиемI",{"v":10670,"d":"10,670"}]
[{"$nulls":15},"41-50","с усовершенствованным покрытием","II","41-50с усовершенствованным покрытиемII",{"v":2910,"d":"2,910"},{"$nulls":5},"41-50","с усовершенствованным покрытием","II","41-50с усовершенствованным покрытиемII",{"v":4750,"d":"4,750"}]
[null,null,"Классы территорий",{"$nulls":4},{"$f":"IF(AND(E34=\"без покрытий\",OR(F36=\"-\",F36=\"II\",F36=\"III\")),\"Укажите класс территории 'I'\",\"\")","v":""},{"$nulls":6},152,"41-50","с усовершенствованным покрытием","III","41-50с усовершенствованным покрытиемIII",{"v":1720,"d":"1,720"},{"$nulls":5},"41-50","с усовершенствованным покрытием","III","41-50с усовершенствованным покрытиемIII",{"v":2070,"d":"2,070"}]
[{"$nulls":14},213,"41-50","с неусовершенствованным покрытием","I","41-50с неусовершенствованным покрытиемI",{"v":4220,"d":"4,220"},{"$nulls":5},"41-50","с неусовершенствованным покрытием","I","41-50с неусовершенствованным покрытиемI",{"v":8140,"d":"8,140"}]
[null,null,"Количество дней выпадения жидких осадков более 2 см",{"$nulls":11},{"$f":"L38/O37*100","v":{"v":0,"d":"0.00"}},"41-50","с неусовершенствованным покрытием","II","41-50с неусовершенствованным покрытиемII",{"v":2390,"d":"2,390"},{"$nulls":5},"41-50","с неусовершенствованным покрытием","II","41-50с неусовершенствованным покрытиемII",{"v":3730,"d":"3,730"}]
[{"$nulls":14},{"$f":"IF(O38>30,1.01^(O38-30),1)","v":{"v":1,"d":"1.00"}},"41-50","с неусовершенствованным покрытием","III","41-50с неусовершенствованным покрытиемIII",{"v":1480,"d":"1,480"},{"$nulls":5},"41-50","с неусовершенствованным покрытием","III","41-50с неусовершенствованным покрытиемIII",{"v":1660,"d":"1,660"}]
[null,null,"Норма обслуживания, м2",null,null,{"$f":"IFERROR(VLOOKUP($Y$6,$AC$6:$AD$96,2,FALSE)*O39,0)","v":0},{"$nulls":9},"41-50","без покрытий","I","41-50без покрытийI",{"v":3610,"d":"3,610"},{"$nulls":5},"41-50","без покрытий","I","41-50без покрытийI",{"v":7080,"d":"7,080"}]
[{"$nulls":15},"51-60","с усовершенствованным покрытием","I","51-60с усовершенствованным покрытиемI",{"v":4870,"d":"4,870"},{"$nulls":5},"51-60","с усовершенствованным покрытием","I","51-60с усовершенствованным покрытиемI",{"v":10820,"d":"10,820"}]
[null,null,"Обслуживаемая площадь территории, м2",{"$nulls":12},"51-60","с усовершенствованным покрытием","II","51-60с усовершенствованным покрытиемII",{"v":2800,"d":"2,800"},{"$nulls":5},"51-60","с усовершенствованным покрытием","II","51-60с усовершенствованным покрытиемII",{"v":4820,"d":"4,820"}]
[{"$nulls":15},"51-60","с усовершенствованным покрытием","III","51-60с усовершенствованным покрытиемIII",{"v":1580,"d":"1,580"},{"$nulls":5},"51-60","с усовершенствованным покрытием","III","51-60с усовершенствованным покрытиемIII",{"v":2110,"d":"2,110"}]
[null,null,"Градация",{"$nulls":12},"51-60","с неусовершенствованным покрытием","I","51-60с неусовершенствованным покрытиемI",{"v":3900,"d":"3,900"},{"$nulls":5},"51-60","с неусовершенствованным покрытием","I","51-60с неусовершенствованным покрытиемI",{"v":8250,"d":"8,250"}]
[{"$nulls":15},"51-60","с неусовершенствованным покрытием","II","51-60с неусовершенствованным покрытиемII",{"v":2310,"d":"2,310"},{"$nulls":5},"51-60","с неусовершенствованным покрытием","II","51-60с неусовершенствованным покрытиемII",{"v":3780,"d":"3,780"}]
[null,null,"Нормативная численность уборщиков территорий, чел.",{"$nulls":5},{"$f":"IF(F40=0,0,H42/F40*(1+L48/100))","v":{"v":0,"d":"0.00"}},{"$nulls":6},"51-60","с неусовершенствованным покрытием","III","51-60с неусовершенствованным покрытиемIII",{"v":1370,"d":"1,370"},null,{"$f":"I46","v":{"v":0,"d":"0.00"}},{"$f":"INT(V46)","v":{"v":0,"d":"0.00"}},{"$f":"V46-W46","v":{"v":0,"d":"0.00"}},null,"51-60","с неусовершенствованным покрытием","III","51-60с неусовершенствованным покрытиемIII",{"v":1700,"d":"1,700"}]
[{"$nulls":15},"51-60","без покрытий","I","51-60без покрытийI",{"v":3330,"d":"3,330"},{"$nulls":5},"51-60","без покрытий","I","51-60без покрытийI",{"v":7180,"d":"7,180"}]
[null,null,"Планируемый процент невыходов по болезни, выполнению государственных обязанностей, трудовым и дополнительным отпускам, предусмотренным коллективным договором",{"$nulls":12},"61-70","с усовершенствованным покрытием","I","61-70с усовершенствованным покрытиемI",{"v":4540,"d":"4,540"},{"$nulls":5},"61-70","с усовершенствованным покрытием","I","61-70с усовершенствованным покрытиемI",{"v":10970,"d":"10,970"}]
[{"$nulls":15},"61-70","с усовершенствованным покрытием","II","61-70с усовершенствованным покрытиемII",{"v":2700,"d":"2,700"},{"$nulls":5},"61-70","с усовершенствованным покрытием","II","61-70с усовершенствованным покрытиемII",{"v":4900,"d":"4,900"}]
[null,null,"Штатная численность уборщиков территорий в теплый период года, чел.",{"$nulls":8},{"$f":"IF(E44=\"0,5; 1,0\",(IF(X46<=0.25,W46,0)+IF(AND(X46<=0.75,X46>0.25),(W46+0.5),0)+IF(X46>0.75,(W46+1),0)),0)+IF(E44=\"0,25; 0,5; 0,75; 1,0\",(IF(X46<=0.12,W46,0)+IF(AND(X46<=0.37,X46>0.12),(W46+0.25),0)+IF(AND(X46<=0.62,X46>0.37),(W46+0.5),0)+IF(AND(X46<=0.87,X46>0.62),(W46+0.75),0)+IF(X46>0.87,(W46+1),0)),0)","v":{"v":0,"d":"0.00"}},{"$nulls":3},"61-70","с усовершенствованным покрытием","III","61-70с усовершенствованным покрытиемIII",{"v":1470,"d":"1,470"},{"$nulls":5},"61-70","с усовершенствованным покрытием","III","61-70с усовершенствованным покрытиемIII",{"v":2140,"d":"2,140"}]
[{"$nulls":15},"61-70","с неусовершенствованным покрытием","I","61-70с неусовершенствованным покрытиемI",{"v":3650,"d":"3,650"},{"$nulls":5},"61-70","с неусовершенствованным покрытием","I","61-70с неусовершенствованным покрытиемI",{"v":8370,"d":"8,370"}]
[null,null,"Итого штатная численность уборщиков территории, чел.",{"$nulls":6},{"$f":"L50+L27","v":{"v":0,"d":"0.00"}},{"$nulls":5},"61-70","с неусовершенствованным покрытием","II","61-70с неусовершенствованным покрытиемII",{"v":2230,"d":"2,230"},{"$nulls":5},"61-70","с неусовершенствованным покрытием","II","61-70с неусовершенствованным покрытиемII",{"v":3840,"d":"3,840"}]
[{"$nulls":15},"61-70","с неусовершенствованным покрытием","III","61-70с неусовершенствованным покрытиемIII",{"v":1270,"d":"1,270"},{"$nulls":5},"61-70","с неусовершенствованным покрытием","III","61-70с неусовершенствованным покрытиемIII",{"v":1730,"d":"1,730"}]
[{"$nulls":15},"61-70","без покрытий","I","61-70без покрытийI",{"v":3090,"d":"3,090"},{"$nulls":5},"61-70","без покрытий","I","61-70без покрытийI",{"v":7300,"d":"7,300"}]
[{"$nulls":15},"71-80","с усовершенствованным покрытием","I","71-80с усовершенствованным покрытиемI",{"v":4260,"d":"4,260"},{"$nulls":5},"71-80","с усовершенствованным покрытием","I","71-80с усовершенствованным покрытиемI",{"v":11130,"d":"11,130"}]
[{"$nulls":15},"71-80","с усовершенствованным покрытием","II","71-80с усовершенствованным покрытиемII",{"v":2610,"d":"2,610"},{"$nulls":5},"71-80","с усовершенствованным покрытием","II","71-80с усовершенствованным покрытиемII",{"v":4980,"d":"4,980"}]
[{"$nulls":15},"71-80","с усовершенствованным покрытием","III","71-80с усовершенствованным покрытиемIII",{"v":1370,"d":"1,370"},{"$nulls":5},"71-80","с усовершенствованным покрытием","III","71-80с усовершенствованным покрытиемIII",{"v":2180,"d":"2,180"}]
[{"$nulls":15},"71-80","с неусовершенствованным покрытием","I","71-80с неусовершенствованным покрытиемI",{"v":3420,"d":"3,420"},{"$nulls":5},"71-80","с неусовершенствованным покрытием","I","71-80с неусовершенствованным покрытиемI",{"v":8490,"d":"8,490"}]
[{"$nulls":15},"71-80","с неусовершенствованным покрытием","II","71-80с неусовершенствованным покрытиемII",{"v":2170,"d":"2,170"},{"$nulls":5},"71-80","с неусовершенствованным покрытием","II","71-80с неусовершенствованным покрытиемII",{"v":3900,"d":"3,900"}]
[{"$nulls":15},"71-80","с неусовершенствованным покрытием","III","71-80с неусовершенствованным покрытиемIII",{"v":1190,"d":"1,190"},{"$nulls":5},"71-80","с неусовершенствованным покрытием","III","71-80с неусовершенствованным покрытиемIII",{"v":1770,"d":"1,770"}]
[{"$nulls":15},"71-80","без покрытий","I","71-80без покрытийI",{"v":2930,"d":"2,930"},{"$nulls":5},"71-80","без покрытий","I","71-80без покрытийI",{"v":7410,"d":"7,410"}]
[{"$nulls":15},"81-90","с усовершенствованным покрытием","I","81-90с усовершенствованным покрытиемI",{"v":4000,"d":"4,000"},{"$nulls":5},"81-90","с усовершенствованным покрытием","I","81-90с усовершенствованным покрытиемI",{"v":11290,"d":"11,290"}]
[{"$nulls":15},"81-90","с усовершенствованным покрытием","II","81-90с усовершенствованным покрытиемII",{"v":2530,"d":"2,530"},{"$nulls":5},"81-90","с усовершенствованным покрытием","II","81-90с усовершенствованным покрытиемII",{"v":5060,"d":"5,060"}]
[{"$nulls":15},"81-90","с усовершенствованным покрытием","III","81-90с усовершенствованным покрытиемIII",{"v":1280,"d":"1,280"},{"$nulls":5},"81-90","с усовершенствованным покрытием","III","81-90с усовершенствованным покрытиемIII",{"v":2210,"d":"2,210"}]
[{"$nulls":15},"81-90","с неусовершенствованным покрытием","I","81-90с неусовершенствованным покрытиемI",{"v":3210,"d":"3,210"},{"$nulls":5},"81-90","с неусовершенствованным покрытием","I","81-90с неусовершенствованным покрытиемI",{"v":8620,"d":"8,620"}]
[{"$nulls":15},"81-90","с неусовершенствованным покрытием","II","81-90с неусовершенствованным покрытиемII",{"v":2100,"d":"2,100"},{"$nulls":5},"81-90","с неусовершенствованным покрытием","II","81-90с неусовершенствованным покрытиемII",{"v":3960,"d":"3,960"}]
[{"$nulls":15},"81-90","с неусовершенствованным покрытием","III","81-90с неусовершенствованным покрытиемIII",{"v":1100,"d":"1,100"},{"$nulls":5},"81-90","с неусовершенствованным покрытием","III","81-90с неусовершенствованным покрытиемIII",{"v":1800,"d":"1,800"}]
[{"$nulls":15},"81-90","без покрытий","I","81-90без покрытийI",{"v":2770,"d":"2,770"},{"$nulls":5},"81-90","без покрытий","I","81-90без покрытийI",{"v":7520,"d":"7,520"}]
[{"$nulls":15},"91-100","с усовершенствованным покрытием","I","91-100с усовершенствованным покрытиемI",{"v":3780,"d":"3,780"},{"$nulls":5},"91-100","с усовершенствованным покрытием","I","91-100с усовершенствованным покрытиемI",{"v":11450,"d":"11,450"}]
[{"$nulls":15},"91-100","с усовершенствованным покрытием","II","91-100с усовершенствованным покрытиемII",{"v":2450,"d":"2,450"},{"$nulls":5},"91-100","с усовершенствованным покрытием","II","91-100с усовершенствованным покрытиемII",{"v":5140,"d":"5,140"}]
[{"$nulls":15},"91-100","с усовершенствованным покрытием","III",{"$f":"CONCATENATE(P71,Q71,R71)","v":"91-100с усовершенствованным покрытиемIII"},{"v":1200,"d":"1,200"},{"$nulls":5},"91-100","с усовершенствованным покрытием","III",{"$f":"CONCATENATE(Z71,AA71,AB71)","v":"91-100с усовершенствованным покрытиемIII"},{"v":2250,"d":"2,250"}]
[{"$nulls":15},"91-100","с неусовершенствованным покрытием","I","91-100с неусовершенствованным покрытиемI",{"v":3040,"d":"3,040"},{"$nulls":5},"91-100","с неусовершенствованным покрытием","I","91-100с неусовершенствованным покрытиемI",{"v":8740,"d":"8,740"}]
[{"$nulls":15},"91-100","с неусовершенствованным покрытием","II","91-100с неусовершенствованным покрытиемII",{"v":2030,"d":"2,030"},{"$nulls":5},"91-100","с неусовершенствованным покрытием","II","91-100с неусовершенствованным покрытиемII",{"v":4020,"d":"4,020"}]
[{"$nulls":15},"91-100","с неусовершенствованным покрытием","III","91-100с неусовершенствованным покрытиемIII",{"v":1040,"d":"1,040"},{"$nulls":5},"91-100","с неусовершенствованным покрытием","III","91-100с неусовершенствованным покрытиемIII",{"v":1840,"d":"1,840"}]
[{"$nulls":15},"91-100","без покрытий","I","91-100без покрытийI",{"v":2630,"d":"2,630"},{"$nulls":5},"91-100","без покрытий","I","91-100без покрытийI",{"v":7640,"d":"7,640"}]
[{"$nulls":15},"101-110","с усовершенствованным покрытием","I","101-110с усовершенствованным покрытиемI",{"v":3580,"d":"3,580"},{"$nulls":5},"101-110","с усовершенствованным покрытием","I","101-110с усовершенствованным покрытиемI",{"v":11600,"d":"11,600"}]
[{"$nulls":15},"101-110","с усовершенствованным покрытием","II","101-110с усовершенствованным покрытиемII",{"v":2370,"d":"2,370"},{"$nulls":5},"101-110","с усовершенствованным покрытием","II","101-110с усовершенствованным покрытиемII",{"v":5230,"d":"5,230"}]
[{"$nulls":15},"101-110","с усовершенствованным покрытием","III","101-110с усовершенствованным покрытиемIII",{"v":1130,"d":"1,130"},{"$nulls":5},"101-110","с усовершенствованным покрытием","III","101-110с усовершенствованным покрытиемIII",{"v":2290,"d":"2,290"}]
[{"$nulls":15},"101-110","с неусовершенствованным покрытием","I","101-110с неусовершенствованным покрытиемI",{"v":2880,"d":"2,880"},{"$nulls":5},"101-110","с неусовершенствованным покрытием","I","101-110с неусовершенствованным покрытиемI",{"v":8870,"d":"8,870"}]
[{"$nulls":15},"101-110","с неусовершенствованным покрытием","II","101-110с неусовершенствованным покрытиемII",{"v":1970,"d":"1,970"},{"$nulls":5},"101-110","с неусовершенствованным покрытием","II","101-110с неусовершенствованным покрытиемII",{"v":4100,"d":"4,100"}]
[{"$nulls":15},"101-110","с неусовершенствованным покрытием","III","101-110с неусовершенствованным покрытиемIII",980,{"$nulls":5},"101-110","с неусовершенствованным покрытием","III","101-110с неусовершенствованным покрытиемIII",{"v":1880,"d":"1,880"}]
[{"$nulls":15},"101-110","без покрытий","I","101-110без покрытийI",{"v":2510,"d":"2,510"},{"$nulls":5},"101-110","без покрытий","I","101-110без покрытийI",{"v":7750,"d":"7,750"}]
[{"$nulls":15},"111-120","с усовершенствованным покрытием","I","111-120с усовершенствованным покрытиемI",{"v":3410,"d":"3,410"},{"$nulls":5},"111-120","с усовершенствованным покрытием","I","111-120с усовершенствованным покрытиемI",{"v":11790,"d":"11,790"}]
[{"$nulls":15},"111-120","с усовершенствованным покрытием","II","111-120с усовершенствованным покрытиемII",{"v":2300,"d":"2,300"},{"$nulls":5},"111-120","с усовершенствованным покрытием","II","111-120с усовершенствованным покрытиемII",{"v":5320,"d":"5,320"}]
[{"$nulls":15},"111-120","с усовершенствованным покрытием","III","111-120с усовершенствованным покрытиемIII",{"v":1070,"d":"1,070"},{"$nulls":5},"111-120","с усовершенствованным покрытием","III","111-120с усовершенствованным покрытиемIII",{"v":2340,"d":"2,340"}]
[{"$nulls":15},"111-120","с неусовершенствованным покрытием","I","111-120с неусовершенствованным покрытиемI",{"v":2740,"d":"2,740"},{"$nulls":5},"111-120","с неусовершенствованным покрытием","I","111-120с неусовершенствованным покрытиемI",{"v":9010,"d":"9,010"}]
[{"$nulls":15},"111-120","с неусовершенствованным покрытием","II","111-120с неусовершенствованным покрытиемII",{"v":1920,"d":"1,920"},{"$nulls":5},"111-120","с неусовершенствованным покрытием","II","111-120с неусовершенствованным покрытиемII",{"v":4180,"d":"4,180"}]
[{"$nulls":15},"111-120","с неусовершенствованным покрытием","III","111-120с неусовершенствованным покрытиемIII",920,{"$nulls":5},"111-120","с неусовершенствованным покрытием","III","111-120с неусовершенствованным покрытиемIII",{"v":1930,"d":"1,930"}]
[{"$nulls":15},"111-120","без покрытий","I","111-120без покрытийI",{"v":2390,"d":"2,390"},{"$nulls":5},"111-120","без покрытий","I","111-120без покрытийI",{"v":7880,"d":"7,880"}]
[{"$nulls":15},"121-130","с усовершенствованным покрытием","I","121-130с усовершенствованным покрытиемI",{"v":3250,"d":"3,250"},{"$nulls":5},"121-130","с усовершенствованным покрытием","I","121-130с усовершенствованным покрытиемI",{"v":11980,"d":"11,980"}]
[{"$nulls":15},"121-130","с усовершенствованным покрытием","II","121-130с усовершенствованным покрытиемII",{"v":2230,"d":"2,230"},{"$nulls":5},"121-130","с усовершенствованным покрытием","II","121-130с усовершенствованным покрытиемII",{"v":5420,"d":"5,420"}]
[{"$nulls":15},"121-130","с усовершенствованным покрытием","III","121-130с усовершенствованным покрытиемIII",{"v":1010,"d":"1,010"},{"$nulls":5},"121-130","с усовершенствованным покрытием","III","121-130с усовершенствованным покрытиемIII",{"v":2380,"d":"2,380"}]
[{"$nulls":15},"121-130","с неусовершенствованным покрытием","I","121-130с неусовершенствованным покрытиемI",{"v":2610,"d":"2,610"},{"$nulls":5},"121-130","с неусовершенствованным покрытием","I","121-130с неусовершенствованным покрытиемI",{"v":9150,"d":"9,150"}]
[{"$nulls":15},"121-130","с неусовершенствованным покрытием","II","121-130с неусовершенствованным покрытиемII",{"v":1860,"d":"1,860"},{"$nulls":5},"121-130","с неусовершенствованным покрытием","II","121-130с неусовершенствованным покрытиемII",{"v":4260,"d":"4,260"}]
[{"$nulls":15},"121-130","с неусовершенствованным покрытием","III","121-130с неусовершенствованным покрытиемIII",880,{"$nulls":5},"121-130","с неусовершенствованным покрытием","III","121-130с неусовершенствованным покрытиемIII",{"v":1970,"d":"1,970"}]
[{"$nulls":15},"121-130","без покрытий","I","121-130без покрытийI",{"v":2280,"d":"2,280"},{"$nulls":5},"121-130","без покрытий","I","121-130без покрытийI",{"v":8010,"d":"8,010"}]

{"sheet":"Укрупненные нормативы(2)","index":2,"n_rows":96,"n_cols":42,"rows_kept":96,"hidden":true,"merged":[[1,38,3,44],[2,2,2,11],[4,2,4,11],[6,2,6,5],[8,4,8,8],[10,2,10,4],[10,7,10,11],[12,2,12,10],[14,2,14,10],[16,2,16,4],[18,2,18,6],[20,2,20,3],[20,4,20,5],[22,2,22,8],[24,2,24,10],[26,2,26,10],[29,2,29,11],[31,2,31,5],[33,4,33,8],[35,2,35,4],[35,7,35,11],[37,2,37,10],[39,2,39,4],[41,2,41,6],[43,2,43,3],[43,4,43,5],[45,2,45,7],[47,2,47,10],[49,2,49,10],[51,2,51,8]]}
[]
[{"$nulls":38},"Общая штатная численность уборщиков территории, чел."]
[null,null,"Укрупненные нормативы численности уборщиков территорий"]
[]
[null,null,"Нормы обслуживания для холодного периода года",{"$nulls":10},"-",{"$nulls":7},"-","-","-",{"$nulls":17},{"$f":"'Укрупненные нормативы'!$J$52+'Укрупненные нормативы(2)'!$J$52+'Укрупненные нормативы(3)'!$J$52+'Укрупненные нормативы(4)'!$J$52+'Укрупненные нормативы(5)'!$J$52+'Укрупненные нормативы(6)'!$J$52","v":{"v":0,"d":"0.00"}}]
[{"$nulls":13},"0,5; 1,0",{"$f":"CONCATENATE(G7,E9,F11)","v":""},"До 10","с усовершенствованным покрытием","I",{"$f":"CONCATENATE(P6,Q6,R6)","v":"До 10с усовершенствованным покрытиемI"},{"v":7600,"d":"7,600"},null,"До 10","с усовершенствованным покрытием","I",{"$f":"CONCATENATE(G32,E34,F36)","v":""},"До 10","с усовершенствованным покрытием","I",{"$f":"CONCATENATE(Z6,AA6,AB6)","v":"До 10с усовершенствованным покрытиемI"},{"v":10100,"d":"10,100"}]
[null,null,"Число дней с твердыми осадками",{"$nulls":10},"0,25; 0,5; 0,75; 1,0",null,"До 10","с усовершенствованным покрытием","II",{"$f":"CONCATENATE(P7,Q7,R7)","v":"До 10с усовершенствованным покрытиемII"},{"v":3440,"d":"3,440"},null,"11-20","с неусовершенствованным покрытием","II",null,"До 10","с усовершенствованным покрытием","II",{"$f":"CONCATENATE(Z7,AA7,AB7)","v":"До 10с усовершенствованным покрытиемII"},{"v":4480,"d":"4,480"}]
[{"$nulls":15},"До 10","с усовершенствованным покрытием","III","До 10с усовершенствованным покрытиемIII",{"v":2590,"d":"2,590"},null,"21-30","без покрытий","III",null,"До 10","с усовершенствованным покрытием","III","До 10с усовершенствованным покрытиемIII",{"v":1940,"d":"1,940"},{"$nulls":4},{"v":10100,"d":"10,100"},{"v":4480,"d":"4,480"},{"v":1940,"d":"1,940"},{"v":7710,"d":"7,710"},{"v":3500,"d":"3,500"},{"v":1570,"d":"1,570"},{"v":6670,"d":"6,670"}]
[null,null,"Виды покрытий",{"$nulls":12},"До 10","с неусовершенствованным покрытием","I","До 10с неусовершенствованным покрытиемI",{"v":5920,"d":"5,920"},null,"31-40",{"$nulls":3},"До 10","с неусовершенствованным покрытием","I","До 10с неусовершенствованным покрытиемI",{"v":7710,"d":"7,710"},{"$nulls":3},"11-20",{"v":10240,"d":"10,240"},{"v":4550,"d":"4,550"},{"v":1970,"d":"1,970"},{"v":7810,"d":"7,810"},"Sheets(\"Óêðóïíåííûå íîðìàòèâû(6)\").Select",{"v":1600,"d":"1,600"},{"v":6770,"d":"6,770"}]
[{"$nulls":15},"До 10","с неусовершенствованным покрытием","II","До 10с неусовершенствованным покрытиемII",{"v":2800,"d":"2,800"},null,"41-50",{"$nulls":3},"До 10","с неусовершенствованным покрытием","II","До 10с неусовершенствованным покрытиемII",{"v":3500,"d":"3,500"},{"$nulls":3},"21-30",{"v":10370,"d":"10,370"},{"v":4620,"d":"4,620"},{"v":2010,"d":"2,010"},{"v":7910,"d":"7,910"},{"v":3610,"d":"3,610"},{"v":1620,"d":"1,620"},{"v":6870,"d":"6,870"}]
[null,null,"Классы территорий",{"$nulls":4},{"$f":"IF(AND(E9=\"без покрытий\",OR(F11=\"-\",F11=\"II\",F11=\"III\")),\"Укажите класс территории 'I'\",\"\")","v":""},{"$nulls":6},152,"До 10","с неусовершенствованным покрытием","III","До 10с неусовершенствованным покрытиемIII",{"v":2190,"d":"2,190"},null,"51-60",{"$nulls":3},"До 10","с неусовершенствованным покрытием","III","До 10с неусовершенствованным покрытиемIII",{"v":1570,"d":"1,570"},{"$nulls":3},"31-40",{"v":10520,"d":"10,520"},{"v":4690,"d":"4,690"},{"v":2040,"d":"2,040"},{"v":8030,"d":"8,030"},{"v":3670,"d":"3,670"},{"v":1640,"d":"1,640"},{"v":6980,"d":"6,980"}]
[{"$nulls":14},213,"До 10","без покрытий","I","До 10без покрытийI",{"v":5160,"d":"5,160"},null,"61-70",{"$nulls":3},"До 10","без покрытий","I","До 10без покрытийI",{"v":6670,"d":"6,670"},{"$nulls":3},"41-50",{"v":10670,"d":"10,670"},{"v":4750,"d":"4,750"},{"v":2070,"d":"2,070"},{"v":8140,"d":"8,140"},{"v":3730,"d":"3,730"},{"v":1660,"d":"1,660"},{"v":7080,"d":"7,080"}]
[null,null,"Количество дней выпадения неуплотненного свежевыпавшего снега толщиной слоя более 2 см",{"$nulls":11},{"$f":"L13/O11*100","v":{"v":0,"d":"0.00"}},"11-20","с усовершенствованным покрытием","I","11-20с усовершенствованным покрытиемI",{"v":6910,"d":"6,910"},null,"71-80",{"$nulls":3},"11-20","с усовершенствованным покрытием","I","11-20с усовершенствованным покрытиемI",{"v":10240,"d":"10,240"},{"$nulls":3},"51-60",{"v":10820,"d":"10,820"},{"v":4820,"d":"4,820"},{"v":2110,"d":"2,110"},{"v":8250,"d":"8,250"},{"v":3780,"d":"3,780"},{"v":1700,"d":"1,700"},{"v":7180,"d":"7,180"}]
[{"$nulls":15},"11-20","с усовершенствованным покрытием","II","11-20с усовершенствованным покрытиемII",{"v":3290,"d":"3,290"},null,"81-90",{"$nulls":3},"11-20","с усовершенствованным покрытием","II","11-20с усовершенствованным покрытиемII",{"v":4550,"d":"4,550"},{"$nulls":3},"61-70",{"v":10970,"d":"10,970"},{"v":4900,"d":"4,900"},{"v":2140,"d":"2,140"},{"v":8370,"d":"8,370"},{"v":3840,"d":"3,840"},{"v":1730,"d":"1,730"},{"v":7300,"d":"7,300"}]
[null,null,"Количество дней гололеда, когда осуществляется посыпка территорий песком или смесью песка с хлоридами",{"$nulls":11},{"$f":"IF(O13>30,0.95^(O13-30),1)","v":{"v":1,"d":"1.00"}},"11-20","с усовершенствованным покрытием","III","11-20с усовершенствованным покрытиемIII",{"v":2340,"d":"2,340"},null,"91-100",{"$nulls":3},"11-20","с усовершенствованным покрытием","III","11-20с усовершенствованным покрытиемIII",{"v":1970,"d":"1,970"},{"$nulls":3},"71-80",{"v":11130,"d":"11,130"},{"v":4980,"d":"4,980"},{"v":2180,"d":"2,180"},{"v":8490,"d":"8,490"},{"v":3900,"d":"3,900"},{"v":1770,"d":"1,770"},{"v":7410,"d":"7,410"}]
[{"$nulls":15},"11-20","с неусовершенствованным покрытием","I","11-20с неусовершенствованным покрытиемI",{"v":5440,"d":"5,440"},null,"101-110",{"$nulls":3},"11-20","с неусовершенствованным покрытием","I","11-20с неусовершенствованным покрытиемI",{"v":7810,"d":"7,810"},{"$nulls":3},"81-90",{"v":11290,"d":"11,290"},{"v":5060,"d":"5,060"},{"v":2210,"d":"2,210"},{"v":8620,"d":"8,620"},{"v":3960,"d":"3,960"},{"v":1800,"d":"1,800"},{"v":7520,"d":"7,520"}]
[null,null,"Норма обслуживания, м2",null,null,{"$f":"IFERROR(VLOOKUP(O6,S6:T96,2,FALSE)*O15*O18,0)","v":0},{"$nulls":8},{"$f":"L15/O12*100","v":{"v":0,"d":"0.00"}},"11-20","с неусовершенствованным покрытием","II","11-20с неусовершенствованным покрытиемII",{"v":2690,"d":"2,690"},null,"111-120",{"$nulls":3},"11-20","с неусовершенствованным покрытием","II","11-20с неусовершенствованным покрытиемII",{"v":3560,"d":"3,560"},{"$nulls":3},"91-100",{"v":11450,"d":"11,450"},{"v":5140,"d":"5,140"},{"v":2250,"d":"2,250"},{"v":8740,"d":"8,740"},{"v":4020,"d":"4,020"},{"v":1840,"d":"1,840"},{"v":7640,"d":"7,640"}]
[{"$nulls":14},{"$f":"IF(O17>25,0.99^(O17-25),1)","v":{"v":1,"d":"1.00"}},"11-20","с неусовершенствованным покрытием","III","11-20с неусовершенствованным покрытиемIII",{"v":1980,"d":"1,980"},null,"121-130",{"$nulls":3},"11-20","с неусовершенствованным покрытием","III","11-20с неусовершенствованным покрытиемIII",{"v":1600,"d":"1,600"},{"$nulls":3},"101-110",{"v":11600,"d":"11,600"},{"v":5230,"d":"5,230"},{"v":2290,"d":"2,290"},{"v":8870,"d":"8,870"},{"v":4100,"d":"4,100"},{"v":1880,"d":"1,880"},{"v":7750,"d":"7,750"}]
[null,null,"Обслуживаемая площадь территории, м2",{"$nulls":12},"11-20","без покрытий","I","11-20без покрытийI",{"v":4730,"d":"4,730"},{"$nulls":5},"11-20","без покрытий","I","11-20без покрытийI",{"v":6770,"d":"6,770"},{"$nulls":3},"111-120",{"v":11790,"d":"11,790"},{"v":5320,"d":"5,320"},{"v":2340,"d":"2,340"},{"v":9010,"d":"9,010"},{"v":4180,"d":"4,180"},{"v":1930,"d":"1,930"},{"v":7880,"d":"7,880"}]
[{"$nulls":15},"21-30","с усовершенствованным покрытием","I","21-30с усовершенствованным покрытиемI",{"v":6210,"d":"6,210"},{"$nulls":5},"21-30","с усовершенствованным покрытием","I","21-30с усовершенствованным покрытиемI",{"v":10370,"d":"10,370"},{"$nulls":3},"121-130",{"v":11980,"d":"11,980"},{"v":5420,"d":"5,420"},{"v":2380,"d":"2,380"},{"v":9150,"d":"9,150"},{"v":4260,"d":"4,260"},{"v":1970,"d":"1,970"},{"v":8010,"d":"8,010"}]
[null,null,"Градация",{"$nulls":12},"21-30","с усовершенствованным покрытием","II","21-30с усовершенствованным покрытиемII",{"v":3150,"d":"3,150"},{"$nulls":5},"21-30","с усовершенствованным покрытием","II","21-30с усовершенствованным покрытиемII",{"v":4620,"d":"4,620"}]
[{"$nulls":15},"21-30","с усовершенствованным покрытием","III","21-30с усовершенствованным покрытиемIII",{"v":2090,"d":"2,090"},{"$nulls":5},"21-30","с усовершенствованным покрытием","III","21-30с усовершенствованным покрытиемIII",{"v":2010,"d":"2,010"}]
[null,null,"Нормативная численность уборщиков территорий, чел.",{"$nulls":6},{"$f":"IF(F17=0,0,H19/F17*(1+L25/100))","v":{"v":0,"d":"0.00"}},{"$nulls":5},"21-30","с неусовершенствованным покрытием","I","21-30с неусовершенствованным покрытиемI",{"v":4960,"d":"4,960"},null,{"$f":"J23","v":{"v":0,"d":"0.00"}},{"$f":"INT(V23)","v":{"v":0,"d":"0.00"}},{"$f":"V23-W23","v":{"v":0,"d":"0.00"}},null,"21-30","с неусовершенствованным покрытием","I","21-30с неусовершенствованным покрытиемI",{"v":7910,"d":"7,910"}]
[{"$nulls":15},"21-30","с неусовершенствованным покрытием","II","21-30с неусовершенствованным покрытиемII",{"v":2580,"d":"2,580"},{"$nulls":5},"21-30","с неусовершенствованным покрытием","II","21-30с неусовершенствованным покрытиемII",{"v":3610,"d":"3,610"}]
[null,null,"Планируемый процент невыходов по болезни, выполнению государственных обязанностей, трудовым и дополнительным отпускам, предусмотренным коллективным договором",{"$nulls":12},"21-30","с неусовершенствованным покрытием","III","21-30с неусовершенствованным покрытиемIII",{"v":1790,"d":"1,790"},{"$nulls":5},"21-30","с неусовершенствованным покрытием","III","21-30с неусовершенствованным покрытиемIII",{"v":1620,"d":"1,620"}]
[{"$nulls":15},"21-30","без покрытий","I","21-30без покрытийI",{"v":4300,"d":"4,300"},{"$nulls":5},"21-30","без покрытий","I","21-30без покрытийI",{"v":6870,"d":"6,870"}]
[null,null,"Штатная численность уборщиков территорий в холодный период года, чел.",{"$nulls":8},{"$f":"IF(E21=\"0,5; 1,0\",(IF(X23<=0.25,W23,0)+IF(AND(X23<=0.75,X23>0.25),(W23+0.5),0)+IF(X23>0.75,(W23+1),0)),0)+IF(E21=\"0,25; 0,5; 0,75; 1,0\",(IF(X23<=0.12,W23,0)+IF(AND(X23<=0.37,X23>0.12),(W23+0.25),0)+IF(AND(X23<=0.62,X23>0.37),(W23+0.5),0)+IF(AND(X23<=0.87,X23>0.62),(W23+0.75),0)+IF(X23>0.87,(W23+1),0)),0)","v":{"v":0,"d":"0.00"}},{"$nulls":3},"31-40","с усовершенствованным покрытием","I","31-40с усовершенствованным покрытиемI",{"v":5700,"d":"5,700"},{"$nulls":5},"31-40","с усовершенствованным покрытием","I","31-40с усовершенствованным покрытиемI",{"v":10520,"d":"10,520"}]
[{"$nulls":15},"31-40","с усовершенствованным покрытием","II","31-40с усовершенствованным покрытиемII",{"v":3020,"d":"3,020"},{"$nulls":5},"31-40","с усовершенствованным покрытием","II","31-40с усовершенствованным покрытиемII",{"v":4690,"d":"4,690"}]
[{"$nulls":15},"31-40","с усовершенствованным покрытием","III","31-40с усовершенствованным покрытиемIII",{"v":1890,"d":"1,890"},{"$nulls":5},"31-40","с усовершенствованным покрытием","III","31-40с усовершенствованным покрытиемIII",{"v":2040,"d":"2,040"}]
[null,null,"Нормы обслуживания для теплого периода года",{"$nulls":12},"31-40","с неусовершенствованным покрытием","I","31-40с неусовершенствованным покрытиемI",{"v":4560,"d":"4,560"},{"$nulls":5},"31-40","с неусовершенствованным покрытием","I","31-40с неусовершенствованным покрытиемI",{"v":8030,"d":"8,030"}]
[{"$nulls":15},"31-40","с неусовершенствованным покрытием","II","31-40с неусовершенствованным покрытиемII",{"v":2480,"d":"2,480"},{"$nulls":5},"31-40","с неусовершенствованным покрытием","II","31-40с неусовершенствованным покрытиемII",{"v":3670,"d":"3,670"}]
[null,null,"Число дней с жидкими осадками",{"$nulls":12},"31-40","с неусовершенствованным покрытием","III","31-40с неусовершенствованным покрытиемIII",{"v":1620,"d":"1,620"},{"$nulls":5},"31-40","с неусовершенствованным покрытием","III","31-40с неусовершенствованным покрытиемIII",{"v":1640,"d":"1,640"}]
[{"$nulls":15},"31-40","без покрытий","I","31-40без покрытийI",{"v":3920,"d":"3,920"},{"$nulls":5},"31-40","без покрытий","I","31-40без покрытийI",{"v":6980,"d":"6,980"}]
[null,null,"Виды покрытий",{"$nulls":12},"41-50","с усовершенствованным покрытием","I","41-50с усовершенствованным покрытиемI",{"v":5250,"d":"5,250"},{"$nulls":5},"41-50","с усовершенствованным покрытием","I","41-50с усовершенствованным покрытиемI",{"v":10670,"d":"10,670"}]
[{"$nulls":15},"41-50","с усовершенствованным покрытием","II","41-50с усовершенствованным покрытиемII",{"v":2910,"d":"2,910"},{"$nulls":5},"41-50","с усовершенствованным покрытием","II","41-50с усовершенствованным покрытиемII",{"v":4750,"d":"4,750"}]
[null,null,"Классы территорий",{"$nulls":4},{"$f":"IF(AND(E34=\"без покрытий\",OR(F36=\"-\",F36=\"II\",F36=\"III\")),\"Укажите класс территории 'I'\",\"\")","v":""},{"$nulls":6},152,"41-50","с усовершенствованным покрытием","III","41-50с усовершенствованным покрытиемIII",{"v":1720,"d":"1,720"},{"$nulls":5},"41-50","с усовершенствованным покрытием","III","41-50с усовершенствованным покрытиемIII",{"v":2070,"d":"2,070"}]
[{"$nulls":14},213,"41-50","с неусовершенствованным покрытием","I","41-50с неусовершенствованным покрытиемI",{"v":4220,"d":"4,220"},{"$nulls":5},"41-50","с неусовершенствованным покрытием","I","41-50с неусовершенствованным покрытиемI",{"v":8140,"d":"8,140"}]
[null,null,"Количество дней выпадения жидких осадков более 2 см",{"$nulls":11},{"$f":"L38/O37*100","v":{"v":0,"d":"0.00"}},"41-50","с неусовершенствованным покрытием","II","41-50с неусовершенствованным покрытиемII",{"v":2390,"d":"2,390"},{"$nulls":5},"41-50","с неусовершенствованным покрытием","II","41-50с неусовершенствованным покрытиемII",{"v":3730,"d":"3,730"}]
[{"$nulls":14},{"$f":"IF(O38>30,1.01^(O38-30),1)","v":{"v":1,"d":"1.00"}},"41-50","с неусовершенствованным покрытием","III","41-50с неусовершенствованным покрытиемIII",{"v":1480,"d":"1,480"},{"$nulls":5},"41-50","с неусовершенствованным покрытием","III","41-50с неусовершенствованным покрытиемIII",{"v":1660,"d":"1,660"}]
[null,null,"Норма обслуживания, м2",null,null,{"$f":"IFERROR(VLOOKUP($Y$6,$AC$6:$AD$96,2,FALSE)*O39,0)","v":0},{"$nulls":9},"41-50","без покрытий","I","41-50без покрытийI",{"v":3610,"d":"3,610"},{"$nulls":5},"41-50","без покрытий","I","41-50без покрытийI",{"v":7080,"d":"7,080"}]
[{"$nulls":15},"51-60","с усовершенствованным покрытием","I","51-60с усовершенствованным покрытиемI",{"v":4870,"d":"4,870"},{"$nulls":5},"51-60","с усовершенствованным покрытием","I","51-60с усовершенствованным покрытиемI",{"v":10820,"d":"10,820"}]
[null,null,"Обслуживаемая площадь территории, м2",{"$nulls":12},"51-60","с усовершенствованным покрытием","II","51-60с усовершенствованным покрытиемII",{"v":2800,"d":"2,800"},{"$nulls":5},"51-60","с усовершенствованным покрытием","II","51-60с усовершенствованным покрытиемII",{"v":4820,"d":"4,820"}]
[{"$nulls":15},"51-60","с усовершенствованным покрытием","III","51-60с усовершенствованным покрытиемIII",{"v":1580,"d":"1,580"},{"$nulls":5},"51-60","с усовершенствованным покрытием","III","51-60с усовершенствованным покрытиемIII",{"v":2110,"d":"2,110"}]
[null,null,"Градация",{"$nulls":12},"51-60","с неусовершенствованным покрытием","I","51-60с неусовершенствованным покрытиемI",{"v":3900,"d":"3,900"},{"$nulls":5},"51-60","с неусовершенствованным покрытием","I","51-60с неусовершенствованным покрытиемI",{"v":8250,"d":"8,250"}]
[{"$nulls":15},"51-60","с неусовершенствованным покрытием","II","51-60с неусовершенствованным покрытиемII",{"v":2310,"d":"2,310"},{"$nulls":5},"51-60","с неусовершенствованным покрытием","II","51-60с неусовершенствованным покрытиемII",{"v":3780,"d":"3,780"}]
[null,null,"Нормативная численность уборщиков территорий, чел.",{"$nulls":5},{"$f":"IF(F40=0,0,H42/F40*(1+L48/100))","v":{"v":0,"d":"0.00"}},{"$nulls":6},"51-60","с неусовершенствованным покрытием","III","51-60с неусовершенствованным покрытиемIII",{"v":1370,"d":"1,370"},null,{"$f":"I46","v":{"v":0,"d":"0.00"}},{"$f":"INT(V46)","v":{"v":0,"d":"0.00"}},{"$f":"V46-W46","v":{"v":0,"d":"0.00"}},null,"51-60","с неусовершенствованным покрытием","III","51-60с неусовершенствованным покрытиемIII",{"v":1700,"d":"1,700"}]
[{"$nulls":15},"51-60","без покрытий","I","51-60без покрытийI",{"v":3330,"d":"3,330"},{"$nulls":5},"51-60","без покрытий","I","51-60без покрытийI",{"v":7180,"d":"7,180"}]
[null,null,"Планируемый процент невыходов по болезни, выполнению государственных обязанностей, трудовым и дополнительным отпускам, предусмотренным коллективным договором",{"$nulls":12},"61-70","с усовершенствованным покрытием","I","61-70с усовершенствованным покрытиемI",{"v":4540,"d":"4,540"},{"$nulls":5},"61-70","с усовершенствованным покрытием","I","61-70с усовершенствованным покрытиемI",{"v":10970,"d":"10,970"}]
[{"$nulls":15},"61-70","с усовершенствованным покрытием","II","61-70с усовершенствованным покрытиемII",{"v":2700,"d":"2,700"},{"$nulls":5},"61-70","с усовершенствованным покрытием","II","61-70с усовершенствованным покрытиемII",{"v":4900,"d":"4,900"}]
[null,null,"Штатная численность уборщиков территорий в теплый период года, чел.",{"$nulls":8},{"$f":"IF(E44=\"0,5; 1,0\",(IF(X46<=0.25,W46,0)+IF(AND(X46<=0.75,X46>0.25),(W46+0.5),0)+IF(X46>0.75,(W46+1),0)),0)+IF(E44=\"0,25; 0,5; 0,75; 1,0\",(IF(X46<=0.12,W46,0)+IF(AND(X46<=0.37,X46>0.12),(W46+0.25),0)+IF(AND(X46<=0.62,X46>0.37),(W46+0.5),0)+IF(AND(X46<=0.87,X46>0.62),(W46+0.75),0)+IF(X46>0.87,(W46+1),0)),0)","v":{"v":0,"d":"0.00"}},{"$nulls":3},"61-70","с усовершенствованным покрытием","III","61-70с усовершенствованным покрытиемIII",{"v":1470,"d":"1,470"},{"$nulls":5},"61-70","с усовершенствованным покрытием","III","61-70с усовершенствованным покрытиемIII",{"v":2140,"d":"2,140"}]
[{"$nulls":15},"61-70","с неусовершенствованным покрытием","I","61-70с неусовершенствованным покрытиемI",{"v":3650,"d":"3,650"},{"$nulls":5},"61-70","с неусовершенствованным покрытием","I","61-70с неусовершенствованным покрытиемI",{"v":8370,"d":"8,370"}]
[null,null,"Итого штатная численность уборщиков территории, чел.",{"$nulls":6},{"$f":"L50+L27","v":{"v":0,"d":"0.00"}},{"$nulls":5},"61-70","с неусовершенствованным покрытием","II","61-70с неусовершенствованным покрытиемII",{"v":2230,"d":"2,230"},{"$nulls":5},"61-70","с неусовершенствованным покрытием","II","61-70с неусовершенствованным покрытиемII",{"v":3840,"d":"3,840"}]
[{"$nulls":15},"61-70","с неусовершенствованным покрытием","III","61-70с неусовершенствованным покрытиемIII",{"v":1270,"d":"1,270"},{"$nulls":5},"61-70","с неусовершенствованным покрытием","III","61-70с неусовершенствованным покрытиемIII",{"v":1730,"d":"1,730"}]
[{"$nulls":15},"61-70","без покрытий","I","61-70без покрытийI",{"v":3090,"d":"3,090"},{"$nulls":5},"61-70","без покрытий","I","61-70без покрытийI",{"v":7300,"d":"7,300"}]
[{"$nulls":15},"71-80","с усовершенствованным покрытием","I","71-80с усовершенствованным покрытиемI",{"v":4260,"d":"4,260"},{"$nulls":5},"71-80","с усовершенствованным покрытием","I","71-80с усовершенствованным покрытиемI",{"v":11130,"d":"11,130"}]
[{"$nulls":15},"71-80","с усовершенствованным покрытием","II","71-80с усовершенствованным покрытиемII",{"v":2610,"d":"2,610"},{"$nulls":5},"71-80","с усовершенствованным покрытием","II","71-80с усовершенствованным покрытиемII",{"v":4980,"d":"4,980"}]
[{"$nulls":15},"71-80","с усовершенствованным покрытием","III","71-80с усовершенствованным покрытиемIII",{"v":1370,"d":"1,370"},{"$nulls":5},"71-80","с усовершенствованным покрытием","III","71-80с усовершенствованным покрытиемIII",{"v":2180,"d":"2,180"}]
[{"$nulls":15},"71-80","с неусовершенствованным покрытием","I","71-80с неусовершенствованным покрытиемI",{"v":3420,"d":"3,420"},{"$nulls":5},"71-80","с неусовершенствованным покрытием","I","71-80с неусовершенствованным покрытиемI",{"v":8490,"d":"8,490"}]
[{"$nulls":15},"71-80","с неусовершенствованным покрытием","II","71-80с неусовершенствованным покрытиемII",{"v":2170,"d":"2,170"},{"$nulls":5},"71-80","с неусовершенствованным покрытием","II","71-80с неусовершенствованным покрытиемII",{"v":3900,"d":"3,900"}]
[{"$nulls":15},"71-80","с неусовершенствованным покрытием","III","71-80с неусовершенствованным покрытиемIII",{"v":1190,"d":"1,190"},{"$nulls":5},"71-80","с неусовершенствованным покрытием","III","71-80с неусовершенствованным покрытиемIII",{"v":1770,"d":"1,770"}]
[{"$nulls":15},"71-80","без покрытий","I","71-80без покрытийI",{"v":2930,"d":"2,930"},{"$nulls":5},"71-80","без покрытий","I","71-80без покрытийI",{"v":7410,"d":"7,410"}]
[{"$nulls":15},"81-90","с усовершенствованным покрытием","I","81-90с усовершенствованным покрытиемI",{"v":4000,"d":"4,000"},{"$nulls":5},"81-90","с усовершенствованным покрытием","I","81-90с усовершенствованным покрытиемI",{"v":11290,"d":"11,290"}]
[{"$nulls":15},"81-90","с усовершенствованным покрытием","II","81-90с усовершенствованным покрытиемII",{"v":2530,"d":"2,530"},{"$nulls":5},"81-90","с усовершенствованным покрытием","II","81-90с усовершенствованным покрытиемII",{"v":5060,"d":"5,060"}]
[{"$nulls":15},"81-90","с усовершенствованным покрытием","III","81-90с усовершенствованным покрытиемIII",{"v":1280,"d":"1,280"},{"$nulls":5},"81-90","с усовершенствованным покрытием","III","81-90с усовершенствованным покрытиемIII",{"v":2210,"d":"2,210"}]
[{"$nulls":15},"81-90","с неусовершенствованным покрытием","I","81-90с неусовершенствованным покрытиемI",{"v":3210,"d":"3,210"},{"$nulls":5},"81-90","с неусовершенствованным покрытием","I","81-90с неусовершенствованным покрытиемI",{"v":8620,"d":"8,620"}]
[{"$nulls":15},"81-90","с неусовершенствованным покрытием","II","81-90с неусовершенствованным покрытиемII",{"v":2100,"d":"2,100"},{"$nulls":5},"81-90","с неусовершенствованным покрытием","II","81-90с неусовершенствованным покрытиемII",{"v":3960,"d":"3,960"}]
[{"$nulls":15},"81-90","с неусовершенствованным покрытием","III","81-90с неусовершенствованным покрытиемIII",{"v":1100,"d":"1,100"},{"$nulls":5},"81-90","с неусовершенствованным покрытием","III","81-90с неусовершенствованным покрытиемIII",{"v":1800,"d":"1,800"}]
[{"$nulls":15},"81-90","без покрытий","I","81-90без покрытийI",{"v":2770,"d":"2,770"},{"$nulls":5},"81-90","без покрытий","I","81-90без покрытийI",{"v":7520,"d":"7,520"}]
[{"$nulls":15},"91-100","с усовершенствованным покрытием","I","91-100с усовершенствованным покрытиемI",{"v":3780,"d":"3,780"},{"$nulls":5},"91-100","с усовершенствованным покрытием","I","91-100с усовершенствованным покрытиемI",{"v":11450,"d":"11,450"}]
[{"$nulls":15},"91-100","с усовершенствованным покрытием","II","91-100с усовершенствованным покрытиемII",{"v":2450,"d":"2,450"},{"$nulls":5},"91-100","с усовершенствованным покрытием","II","91-100с усовершенствованным покрытиемII",{"v":5140,"d":"5,140"}]
[{"$nulls":15},"91-100","с усовершенствованным покрытием","III",{"$f":"CONCATENATE(P71,Q71,R71)","v":"91-100с усовершенствованным покрытиемIII"},{"v":1200,"d":"1,200"},{"$nulls":5},"91-100","с усовершенствованным покрытием","III",{"$f":"CONCATENATE(Z71,AA71,AB71)","v":"91-100с усовершенствованным покрытиемIII"},{"v":2250,"d":"2,250"}]
[{"$nulls":15},"91-100","с неусовершенствованным покрытием","I","91-100с неусовершенствованным покрытиемI",{"v":3040,"d":"3,040"},{"$nulls":5},"91-100","с неусовершенствованным покрытием","I","91-100с неусовершенствованным покрытиемI",{"v":8740,"d":"8,740"}]
[{"$nulls":15},"91-100","с неусовершенствованным покрытием","II","91-100с неусовершенствованным покрытиемII",{"v":2030,"d":"2,030"},{"$nulls":5},"91-100","с неусовершенствованным покрытием","II","91-100с неусовершенствованным покрытиемII",{"v":4020,"d":"4,020"}]
[{"$nulls":15},"91-100","с неусовершенствованным покрытием","III","91-100с неусовершенствованным покрытиемIII",{"v":1040,"d":"1,040"},{"$nulls":5},"91-100","с неусовершенствованным покрытием","III","91-100с неусовершенствованным покрытиемIII",{"v":1840,"d":"1,840"}]
[{"$nulls":15},"91-100","без покрытий","I","91-100без покрытийI",{"v":2630,"d":"2,630"},{"$nulls":5},"91-100","без покрытий","I","91-100без покрытийI",{"v":7640,"d":"7,640"}]
[{"$nulls":15},"101-110","с усовершенствованным покрытием","I","101-110с усовершенствованным покрытиемI",{"v":3580,"d":"3,580"},{"$nulls":5},"101-110","с усовершенствованным покрытием","I","101-110с усовершенствованным покрытиемI",{"v":11600,"d":"11,600"}]
[{"$nulls":15},"101-110","с усовершенствованным покрытием","II","101-110с усовершенствованным покрытиемII",{"v":2370,"d":"2,370"},{"$nulls":5},"101-110","с усовершенствованным покрытием","II","101-110с усовершенствованным покрытиемII",{"v":5230,"d":"5,230"}]
[{"$nulls":15},"101-110","с усовершенствованным покрытием","III","101-110с усовершенствованным покрытиемIII",{"v":1130,"d":"1,130"},{"$nulls":5},"101-110","с усовершенствованным покрытием","III","101-110с усовершенствованным покрытиемIII",{"v":2290,"d":"2,290"}]
[{"$nulls":15},"101-110","с неусовершенствованным покрытием","I","101-110с неусовершенствованным покрытиемI",{"v":2880,"d":"2,880"},{"$nulls":5},"101-110","с неусовершенствованным покрытием","I","101-110с неусовершенствованным покрытиемI",{"v":8870,"d":"8,870"}]
[{"$nulls":15},"101-110","с неусовершенствованным покрытием","II","101-110с неусовершенствованным покрытиемII",{"v":1970,"d":"1,970"},{"$nulls":5},"101-110","с неусовершенствованным покрытием","II","101-110с неусовершенствованным покрытиемII",{"v":4100,"d":"4,100"}]
[{"$nulls":15},"101-110","с неусовершенствованным покрытием","III","101-110с неусовершенствованным покрытиемIII",980,{"$nulls":5},"101-110","с неусовершенствованным покрытием","III","101-110с неусовершенствованным покрытиемIII",{"v":1880,"d":"1,880"}]
[{"$nulls":15},"101-110","без покрытий","I","101-110без покрытийI",{"v":2510,"d":"2,510"},{"$nulls":5},"101-110","без покрытий","I","101-110без покрытийI",{"v":7750,"d":"7,750"}]
[{"$nulls":15},"111-120","с усовершенствованным покрытием","I","111-120с усовершенствованным покрытиемI",{"v":3410,"d":"3,410"},{"$nulls":5},"111-120","с усовершенствованным покрытием","I","111-120с усовершенствованным покрытиемI",{"v":11790,"d":"11,790"}]
[{"$nulls":15},"111-120","с усовершенствованным покрытием","II","111-120с усовершенствованным покрытиемII",{"v":2300,"d":"2,300"},{"$nulls":5},"111-120","с усовершенствованным покрытием","II","111-120с усовершенствованным покрытиемII",{"v":5320,"d":"5,320"}]
[{"$nulls":15},"111-120","с усовершенствованным покрытием","III","111-120с усовершенствованным покрытиемIII",{"v":1070,"d":"1,070"},{"$nulls":5},"111-120","с усовершенствованным покрытием","III","111-120с усовершенствованным покрытиемIII",{"v":2340,"d":"2,340"}]
[{"$nulls":15},"111-120","с неусовершенствованным покрытием","I","111-120с неусовершенствованным покрытиемI",{"v":2740,"d":"2,740"},{"$nulls":5},"111-120","с неусовершенствованным покрытием","I","111-120с неусовершенствованным покрытиемI",{"v":9010,"d":"9,010"}]
[{"$nulls":15},"111-120","с неусовершенствованным покрытием","II","111-120с неусовершенствованным покрытиемII",{"v":1920,"d":"1,920"},{"$nulls":5},"111-120","с неусовершенствованным покрытием","II","111-120с неусовершенствованным покрытиемII",{"v":4180,"d":"4,180"}]
[{"$nulls":15},"111-120","с неусовершенствованным покрытием","III","111-120с неусовершенствованным покрытиемIII",920,{"$nulls":5},"111-120","с неусовершенствованным покрытием","III","111-120с неусовершенствованным покрытиемIII",{"v":1930,"d":"1,930"}]
[{"$nulls":15},"111-120","без покрытий","I","111-120без покрытийI",{"v":2390,"d":"2,390"},{"$nulls":5},"111-120","без покрытий","I","111-120без покрытийI",{"v":7880,"d":"7,880"}]
[{"$nulls":15},"121-130","с усовершенствованным покрытием","I","121-130с усовершенствованным покрытиемI",{"v":3250,"d":"3,250"},{"$nulls":5},"121-130","с усовершенствованным покрытием","I","121-130с усовершенствованным покрытиемI",{"v":11980,"d":"11,980"}]
[{"$nulls":15},"121-130","с усовершенствованным покрытием","II","121-130с усовершенствованным покрытиемII",{"v":2230,"d":"2,230"},{"$nulls":5},"121-130","с усовершенствованным покрытием","II","121-130с усовершенствованным покрытиемII",{"v":5420,"d":"5,420"}]
[{"$nulls":15},"121-130","с усовершенствованным покрытием","III","121-130с усовершенствованным покрытиемIII",{"v":1010,"d":"1,010"},{"$nulls":5},"121-130","с усовершенствованным покрытием","III","121-130с усовершенствованным покрытиемIII",{"v":2380,"d":"2,380"}]
[{"$nulls":15},"121-130","с неусовершенствованным покрытием","I","121-130с неусовершенствованным покрытиемI",{"v":2610,"d":"2,610"},{"$nulls":5},"121-130","с неусовершенствованным покрытием","I","121-130с неусовершенствованным покрытиемI",{"v":9150,"d":"9,150"}]
[{"$nulls":15},"121-130","с неусовершенствованным покрытием","II","121-130с неусовершенствованным покрытиемII",{"v":1860,"d":"1,860"},{"$nulls":5},"121-130","с неусовершенствованным покрытием","II","121-130с неусовершенствованным покрытиемII",{"v":4260,"d":"4,260"}]
[{"$nulls":15},"121-130","с неусовершенствованным покрытием","III","121-130с неусовершенствованным покрытиемIII",880,{"$nulls":5},"121-130","с неусовершенствованным покрытием","III","121-130с неусовершенствованным покрытиемIII",{"v":1970,"d":"1,970"}]
[{"$nulls":15},"121-130","без покрытий","I","121-130без покрытийI",{"v":2280,"d":"2,280"},{"$nulls":5},"121-130","без покрытий","I","121-130без покрытийI",{"v":8010,"d":"8,010"}]

{"sheet":"Укрупненные нормативы(3)","index":3,"n_rows":96,"n_cols":42,"rows_kept":96,"hidden":true,"merged":[[1,38,3,44],[2,2,2,11],[4,2,4,11],[6,2,6,5],[8,4,8,8],[10,2,10,4],[10,7,10,11],[12,2,12,10],[14,2,14,10],[16,2,16,4],[18,2,18,6],[20,2,20,3],[20,4,20,5],[22,2,22,8],[24,2,24,10],[26,2,26,10],[29,2,29,11],[31,2,31,5],[33,4,33,8],[35,2,35,4],[35,7,35,11],[37,2,37,10],[39,2,39,4],[41,2,41,6],[43,2,43,3],[43,4,43,5],[45,2,45,7],[47,2,47,10],[49,2,49,10],[51,2,51,8]]}
[]
[{"$nulls":38},"Общая штатная численность уборщиков территории, чел."]
[null,null,"Укрупненные нормативы численности уборщиков территорий"]
[]
[null,null,"Нормы обслуживания для холодного периода года",{"$nulls":10},"-",{"$nulls":7},"-","-","-",{"$nulls":17},{"$f":"'Укрупненные нормативы'!$J$52+'Укрупненные нормативы(2)'!$J$52+'Укрупненные нормативы(3)'!$J$52+'Укрупненные нормативы(4)'!$J$52+'Укрупненные нормативы(5)'!$J$52+'Укрупненные нормативы(6)'!$J$52","v":{"v":0,"d":"0.00"}}]
[{"$nulls":13},"0,5; 1,0",{"$f":"CONCATENATE(G7,E9,F11)","v":""},"До 10","с усовершенствованным покрытием","I",{"$f":"CONCATENATE(P6,Q6,R6)","v":"До 10с усовершенствованным покрытиемI"},{"v":7600,"d":"7,600"},null,"До 10","с усовершенствованным покрытием","I",{"$f":"CONCATENATE(G32,E34,F36)","v":""},"До 10","с усовершенствованным покрытием","I",{"$f":"CONCATENATE(Z6,AA6,AB6)","v":"До 10с усовершенствованным покрытиемI"},{"v":10100,"d":"10,100"}]
[null,null,"Число дней с твердыми осадками",{"$nulls":10},"0,25; 0,5; 0,75; 1,0",null,"До 10","с усовершенствованным покрытием","II",{"$f":"CONCATENATE(P7,Q7,R7)","v":"До 10с усовершенствованным покрытиемII"},{"v":3440,"d":"3,440"},null,"11-20","с неусовершенствованным покрытием","II",null,"До 10","с усовершенствованным покрытием","II",{"$f":"CONCATENATE(Z7,AA7,AB7)","v":"До 10с усовершенствованным покрытиемII"},{"v":4480,"d":"4,480"}]
[{"$nulls":15},"До 10","с усовершенствованным покрытием","III","До 10с усовершенствованным покрытиемIII",{"v":2590,"d":"2,590"},null,"21-30","без покрытий","III",null,"До 10","с усовершенствованным покрытием","III","До 10с усовершенствованным покрытиемIII",{"v":1940,"d":"1,940"},{"$nulls":4},{"v":10100,"d":"10,100"},{"v":4480,"d":"4,480"},{"v":1940,"d":"1,940"},{"v":7710,"d":"7,710"},{"v":3500,"d":"3,500"},{"v":1570,"d":"1,570"},{"v":6670,"d":"6,670"}]
[null,null,"Виды покрытий",{"$nulls":12},"До 10","с неусовершенствованным покрытием","I","До 10с неусовершенствованным покрытиемI",{"v":5920,"d":"5,920"},null,"31-40",{"$nulls":3},"До 10","с неусовершенствованным покрытием","I","До 10с неусовершенствованным покрытиемI",{"v":7710,"d":"7,710"},{"$nulls":3},"11-20",{"v":10240,"d":"10,240"},{"v":4550,"d":"4,550"},{"v":1970,"d":"1,970"},{"v":7810,"d":"7,810"},{"v":3560,"d":"3,560"},{"v":1600,"d":"1,600"},{"v":6770,"d":"6,770"}]
[{"$nulls":15},"До 10","с неусовершенствованным покрытием","II","До 10с неусовершенствованным покрытиемII",{"v":2800,"d":"2,800"},null,"41-50",{"$nulls":3},"До 10","с неусовершенствованным покрытием","II","До 10с неусовершенствованным покрытиемII",{"v":3500,"d":"3,500"},{"$nulls":3},"21-30",{"v":10370,"d":"10,370"},{"v":4620,"d":"4,620"},{"v":2010,"d":"2,010"},{"v":7910,"d":"7,910"},{"v":3610,"d":"3,610"},{"v":1620,"d":"1,620"},{"v":6870,"d":"6,870"}]
[null,null,"Классы территорий",{"$nulls":4},{"$f":"IF(AND(E9=\"без покрытий\",OR(F11=\"-\",F11=\"II\",F11=\"III\")),\"Укажите класс территории 'I'\",\"\")","v":""},{"$nulls":6},152,"До 10","с неусовершенствованным покрытием","III","До 10с неусовершенствованным покрытиемIII",{"v":2190,"d":"2,190"},null,"51-60",{"$nulls":3},"До 10","с неусовершенствованным покрытием","III","До 10с неусовершенствованным покрытиемIII",{"v":1570,"d":"1,570"},{"$nulls":3},"31-40",{"v":10520,"d":"10,520"},{"v":4690,"d":"4,690"},{"v":2040,"d":"2,040"},{"v":8030,"d":"8,030"},{"v":3670,"d":"3,670"},{"v":1640,"d":"1,640"},{"v":6980,"d":"6,980"}]
[{"$nulls":14},213,"До 10","без покрытий","I","До 10без покрытийI",{"v":5160,"d":"5,160"},null,"61-70",{"$nulls":3},"До 10","без покрытий","I","До 10без покрытийI",{"v":6670,"d":"6,670"},{"$nulls":3},"41-50",{"v":10670,"d":"10,670"},{"v":4750,"d":"4,750"},{"v":2070,"d":"2,070"},{"v":8140,"d":"8,140"},{"v":3730,"d":"3,730"},{"v":1660,"d":"1,660"},{"v":7080,"d":"7,080"}]
[null,null,"Количество дней выпадения неуплотненного свежевыпавшего снега толщиной слоя более 2 см",{"$nulls":11},{"$f":"L13/O11*100","v":{"v":0,"d":"0.00"}},"11-20","с усовершенствованным покрытием","I","11-20с усовершенствованным покрытиемI",{"v":6910,"d":"6,910"},null,"71-80",{"$nulls":3},"11-20","с усовершенствованным покрытием","I","11-20с усовершенствованным покрытиемI",{"v":10240,"d":"10,240"},{"$nulls":3},"51-60",{"v":10820,"d":"10,820"},{"v":4820,"d":"4,820"},{"v":2110,"d":"2,110"},{"v":8250,"d":"8,250"},{"v":3780,"d":"3,780"},{"v":1700,"d":"1,700"},{"v":7180,"d":"7,180"}]
[{"$nulls":15},"11-20","с усовершенствованным покрытием","II","11-20с усовершенствованным покрытиемII",{"v":3290,"d":"3,290"},null,"81-90",{"$nulls":3},"11-20","с усовершенствованным покрытием","II","11-20с усовершенствованным покрытиемII",{"v":4550,"d":"4,550"},{"$nulls":3},"61-70",{"v":10970,"d":"10,970"},{"v":4900,"d":"4,900"},{"v":2140,"d":"2,140"},{"v":8370,"d":"8,370"},{"v":3840,"d":"3,840"},{"v":1730,"d":"1,730"},{"v":7300,"d":"7,300"}]
[null,null,"Количество дней гололеда, когда осуществляется посыпка территорий песком или смесью песка с хлоридами",{"$nulls":11},{"$f":"IF(O13>30,0.95^(O13-30),1)","v":{"v":1,"d":"1.00"}},"11-20","с усовершенствованным покрытием","III","11-20с усовершенствованным покрытиемIII",{"v":2340,"d":"2,340"},null,"91-100",{"$nulls":3},"11-20","с усовершенствованным покрытием","III","11-20с усовершенствованным покрытиемIII",{"v":1970,"d":"1,970"},{"$nulls":3},"71-80",{"v":11130,"d":"11,130"},{"v":4980,"d":"4,980"},{"v":2180,"d":"2,180"},{"v":8490,"d":"8,490"},{"v":3900,"d":"3,900"},{"v":1770,"d":"1,770"},{"v":7410,"d":"7,410"}]
[{"$nulls":15},"11-20","с неусовершенствованным покрытием","I","11-20с неусовершенствованным покрытиемI",{"v":5440,"d":"5,440"},null,"101-110",{"$nulls":3},"11-20","с неусовершенствованным покрытием","I","11-20с неусовершенствованным покрытиемI",{"v":7810,"d":"7,810"},{"$nulls":3},"81-90",{"v":11290,"d":"11,290"},{"v":5060,"d":"5,060"},{"v":2210,"d":"2,210"},{"v":8620,"d":"8,620"},{"v":3960,"d":"3,960"},{"v":1800,"d":"1,800"},{"v":7520,"d":"7,520"}]
[null,null,"Норма обслуживания, м2",null,null,{"$f":"IFERROR(VLOOKUP(O6,S6:T96,2,FALSE)*O15*O18,0)","v":0},{"$nulls":8},{"$f":"L15/O12*100","v":{"v":0,"d":"0.00"}},"11-20","с неусовершенствованным покрытием","II","11-20с неусовершенствованным покрытиемII",{"v":2690,"d":"2,690"},null,"111-120",{"$nulls":3},"11-20","с неусовершенствованным покрытием","II","11-20с неусовершенствованным покрытиемII",{"v":3560,"d":"3,560"},{"$nulls":3},"91-100",{"v":11450,"d":"11,450"},{"v":5140,"d":"5,140"},{"v":2250,"d":"2,250"},{"v":8740,"d":"8,740"},{"v":4020,"d":"4,020"},{"v":1840,"d":"1,840"},{"v":7640,"d":"7,640"}]
[{"$nulls":14},{"$f":"IF(O17>25,0.99^(O17-25),1)","v":{"v":1,"d":"1.00"}},"11-20","с неусовершенствованным покрытием","III","11-20с неусовершенствованным покрытиемIII",{"v":1980,"d":"1,980"},null,"121-130",{"$nulls":3},"11-20","с неусовершенствованным покрытием","III","11-20с неусовершенствованным покрытиемIII",{"v":1600,"d":"1,600"},{"$nulls":3},"101-110",{"v":11600,"d":"11,600"},{"v":5230,"d":"5,230"},{"v":2290,"d":"2,290"},{"v":8870,"d":"8,870"},{"v":4100,"d":"4,100"},{"v":1880,"d":"1,880"},{"v":7750,"d":"7,750"}]
[null,null,"Обслуживаемая площадь территории, м2",{"$nulls":12},"11-20","без покрытий","I","11-20без покрытийI",{"v":4730,"d":"4,730"},{"$nulls":5},"11-20","без покрытий","I","11-20без покрытийI",{"v":6770,"d":"6,770"},{"$nulls":3},"111-120",{"v":11790,"d":"11,790"},{"v":5320,"d":"5,320"},{"v":2340,"d":"2,340"},{"v":9010,"d":"9,010"},{"v":4180,"d":"4,180"},{"v":1930,"d":"1,930"},{"v":7880,"d":"7,880"}]
[{"$nulls":15},"21-30","с усовершенствованным покрытием","I","21-30с усовершенствованным покрытиемI",{"v":6210,"d":"6,210"},{"$nulls":5},"21-30","с усовершенствованным покрытием","I","21-30с усовершенствованным покрытиемI",{"v":10370,"d":"10,370"},{"$nulls":3},"121-130",{"v":11980,"d":"11,980"},{"v":5420,"d":"5,420"},{"v":2380,"d":"2,380"},{"v":9150,"d":"9,150"},{"v":4260,"d":"4,260"},{"v":1970,"d":"1,970"},{"v":8010,"d":"8,010"}]
[null,null,"Градация",{"$nulls":12},"21-30","с усовершенствованным покрытием","II","21-30с усовершенствованным покрытиемII",{"v":3150,"d":"3,150"},{"$nulls":5},"21-30","с усовершенствованным покрытием","II","21-30с усовершенствованным покрытиемII",{"v":4620,"d":"4,620"}]
[{"$nulls":15},"21-30","с усовершенствованным покрытием","III","21-30с усовершенствованным покрытиемIII",{"v":2090,"d":"2,090"},{"$nulls":5},"21-30","с усовершенствованным покрытием","III","21-30с усовершенствованным покрытиемIII",{"v":2010,"d":"2,010"}]
[null,null,"Нормативная численность уборщиков территорий, чел.",{"$nulls":6},{"$f":"IF(F17=0,0,H19/F17*(1+L25/100))","v":{"v":0,"d":"0.00"}},{"$nulls":5},"21-30","с неусовершенствованным покрытием","I","21-30с неусовершенствованным покрытиемI",{"v":4960,"d":"4,960"},null,{"$f":"J23","v":{"v":0,"d":"0.00"}},{"$f":"INT(V23)","v":{"v":0,"d":"0.00"}},{"$f":"V23-W23","v":{"v":0,"d":"0.00"}},null,"21-30","с неусовершенствованным покрытием","I","21-30с неусовершенствованным покрытиемI",{"v":7910,"d":"7,910"}]
[{"$nulls":15},"21-30","с неусовершенствованным покрытием","II","21-30с неусовершенствованным покрытиемII",{"v":2580,"d":"2,580"},{"$nulls":5},"21-30","с неусовершенствованным покрытием","II","21-30с неусовершенствованным покрытиемII",{"v":3610,"d":"3,610"}]
[null,null,"Планируемый процент невыходов по болезни, выполнению государственных обязанностей, трудовым и дополнительным отпускам, предусмотренным коллективным договором",{"$nulls":12},"21-30","с неусовершенствованным покрытием","III","21-30с неусовершенствованным покрытиемIII",{"v":1790,"d":"1,790"},{"$nulls":5},"21-30","с неусовершенствованным покрытием","III","21-30с неусовершенствованным покрытиемIII",{"v":1620,"d":"1,620"}]
[{"$nulls":15},"21-30","без покрытий","I","21-30без покрытийI",{"v":4300,"d":"4,300"},{"$nulls":5},"21-30","без покрытий","I","21-30без покрытийI",{"v":6870,"d":"6,870"}]
[null,null,"Штатная численность уборщиков территорий в холодный период года, чел.",{"$nulls":8},{"$f":"IF(E21=\"0,5; 1,0\",(IF(X23<=0.25,W23,0)+IF(AND(X23<=0.75,X23>0.25),(W23+0.5),0)+IF(X23>0.75,(W23+1),0)),0)+IF(E21=\"0,25; 0,5; 0,75; 1,0\",(IF(X23<=0.12,W23,0)+IF(AND(X23<=0.37,X23>0.12),(W23+0.25),0)+IF(AND(X23<=0.62,X23>0.37),(W23+0.5),0)+IF(AND(X23<=0.87,X23>0.62),(W23+0.75),0)+IF(X23>0.87,(W23+1),0)),0)","v":{"v":0,"d":"0.00"}},{"$nulls":3},"31-40","с усовершенствованным покрытием","I","31-40с усовершенствованным покрытиемI",{"v":5700,"d":"5,700"},{"$nulls":5},"31-40","с усовершенствованным покрытием","I","31-40с усовершенствованным покрытиемI",{"v":10520,"d":"10,520"}]
[{"$nulls":15},"31-40","с усовершенствованным покрытием","II","31-40с усовершенствованным покрытиемII",{"v":3020,"d":"3,020"},{"$nulls":5},"31-40","с усовершенствованным покрытием","II","31-40с усовершенствованным покрытиемII",{"v":4690,"d":"4,690"}]
[{"$nulls":15},"31-40","с усовершенствованным покрытием","III","31-40с усовершенствованным покрытиемIII",{"v":1890,"d":"1,890"},{"$nulls":5},"31-40","с усовершенствованным покрытием","III","31-40с усовершенствованным покрытиемIII",{"v":2040,"d":"2,040"}]
[null,null,"Нормы обслуживания для теплого периода года",{"$nulls":12},"31-40","с неусовершенствованным покрытием","I","31-40с неусовершенствованным покрытиемI",{"v":4560,"d":"4,560"},{"$nulls":5},"31-40","с неусовершенствованным покрытием","I","31-40с неусовершенствованным покрытиемI",{"v":8030,"d":"8,030"}]
[{"$nulls":15},"31-40","с неусовершенствованным покрытием","II","31-40с неусовершенствованным покрытиемII",{"v":2480,"d":"2,480"},{"$nulls":5},"31-40","с неусовершенствованным покрытием","II","31-40с неусовершенствованным покрытиемII",{"v":3670,"d":"3,670"}]
[null,null,"Число дней с жидкими осадками",{"$nulls":12},"31-40","с неусовершенствованным покрытием","III","31-40с неусовершенствованным покрытиемIII",{"v":1620,"d":"1,620"},{"$nulls":5},"31-40","с неусовершенствованным покрытием","III","31-40с неусовершенствованным покрытиемIII",{"v":1640,"d":"1,640"}]
[{"$nulls":15},"31-40","без покрытий","I","31-40без покрытийI",{"v":3920,"d":"3,920"},{"$nulls":5},"31-40","без покрытий","I","31-40без покрытийI",{"v":6980,"d":"6,980"}]
[null,null,"Виды покрытий",{"$nulls":12},"41-50","с усовершенствованным покрытием","I","41-50с усовершенствованным покрытиемI",{"v":5250,"d":"5,250"},{"$nulls":5},"41-50","с усовершенствованным покрытием","I","41-50с усовершенствованным покрытиемI",{"v":10670,"d":"10,670"}]
[{"$nulls":15},"41-50","с усовершенствованным покрытием","II","41-50с усовершенствованным покрытиемII",{"v":2910,"d":"2,910"},{"$nulls":5},"41-50","с усовершенствованным покрытием","II","41-50с усовершенствованным покрытиемII",{"v":4750,"d":"4,750"}]
[null,null,"Классы территорий",{"$nulls":4},{"$f":"IF(AND(E34=\"без покрытий\",OR(F36=\"-\",F36=\"II\",F36=\"III\")),\"Укажите класс территории 'I'\",\"\")","v":""},{"$nulls":6},152,"41-50","с усовершенствованным покрытием","III","41-50с усовершенствованным покрытиемIII",{"v":1720,"d":"1,720"},{"$nulls":5},"41-50","с усовершенствованным покрытием","III","41-50с усовершенствованным покрытиемIII",{"v":2070,"d":"2,070"}]
[{"$nulls":14},213,"41-50","с неусовершенствованным покрытием","I","41-50с неусовершенствованным покрытиемI",{"v":4220,"d":"4,220"},{"$nulls":5},"41-50","с неусовершенствованным покрытием","I","41-50с неусовершенствованным покрытиемI",{"v":8140,"d":"8,140"}]
[null,null,"Количество дней выпадения жидких осадков более 2 см",{"$nulls":11},{"$f":"L38/O37*100","v":{"v":0,"d":"0.00"}},"41-50","с неусовершенствованным покрытием","II","41-50с неусовершенствованным покрытиемII",{"v":2390,"d":"2,390"},{"$nulls":5},"41-50","с неусовершенствованным покрытием","II","41-50с неусовершенствованным покрытиемII",{"v":3730,"d":"3,730"}]
[{"$nulls":14},{"$f":"IF(O38>30,1.01^(O38-30),1)","v":{"v":1,"d":"1.00"}},"41-50","с неусовершенствованным покрытием","III","41-50с неусовершенствованным покрытиемIII",{"v":1480,"d":"1,480"},{"$nulls":5},"41-50","с неусовершенствованным покрытием","III","41-50с неусовершенствованным покрытиемIII",{"v":1660,"d":"1,660"}]
[null,null,"Норма обслуживания, м2",null,null,{"$f":"IFERROR(VLOOKUP($Y$6,$AC$6:$AD$96,2,FALSE)*O39,0)","v":0},{"$nulls":9},"41-50","без покрытий","I","41-50без покрытийI",{"v":3610,"d":"3,610"},{"$nulls":5},"41-50","без покрытий","I","41-50без покрытийI",{"v":7080,"d":"7,080"}]
[{"$nulls":15},"51-60","с усовершенствованным покрытием","I","51-60с усовершенствованным покрытиемI",{"v":4870,"d":"4,870"},{"$nulls":5},"51-60","с усовершенствованным покрытием","I","51-60с усовершенствованным покрытиемI",{"v":10820,"d":"10,820"}]
[null,null,"Обслуживаемая площадь территории, м2",{"$nulls":12},"51-60","с усовершенствованным покрытием","II","51-60с усовершенствованным покрытиемII",{"v":2800,"d":"2,800"},{"$nulls":5},"51-60","с усовершенствованным покрытием","II","51-60с усовершенствованным покрытиемII",{"v":4820,"d":"4,820"}]
[{"$nulls":15},"51-60","с усовершенствованным покрытием","III","51-60с усовершенствованным покрытиемIII",{"v":1580,"d":"1,580"},{"$nulls":5},"51-60","с усовершенствованным покрытием","III","51-60с усовершенствованным покрытиемIII",{"v":2110,"d":"2,110"}]
[null,null,"Градация",{"$nulls":12},"51-60","с неусовершенствованным покрытием","I","51-60с неусовершенствованным покрытиемI",{"v":3900,"d":"3,900"},{"$nulls":5},"51-60","с неусовершенствованным покрытием","I","51-60с неусовершенствованным покрытиемI",{"v":8250,"d":"8,250"}]
[{"$nulls":15},"51-60","с неусовершенствованным покрытием","II","51-60с неусовершенствованным покрытиемII",{"v":2310,"d":"2,310"},{"$nulls":5},"51-60","с неусовершенствованным покрытием","II","51-60с неусовершенствованным покрытиемII",{"v":3780,"d":"3,780"}]
[null,null,"Нормативная численность уборщиков территорий, чел.",{"$nulls":5},{"$f":"IF(F40=0,0,H42/F40*(1+L48/100))","v":{"v":0,"d":"0.00"}},{"$nulls":6},"51-60","с неусовершенствованным покрытием","III","51-60с неусовершенствованным покрытиемIII",{"v":1370,"d":"1,370"},null,{"$f":"I46","v":{"v":0,"d":"0.00"}},{"$f":"INT(V46)","v":{"v":0,"d":"0.00"}},{"$f":"V46-W46","v":{"v":0,"d":"0.00"}},null,"51-60","с неусовершенствованным покрытием","III","51-60с неусовершенствованным покрытиемIII",{"v":1700,"d":"1,700"}]
[{"$nulls":15},"51-60","без покрытий","I","51-60без покрытийI",{"v":3330,"d":"3,330"},{"$nulls":5},"51-60","без покрытий","I","51-60без покрытийI",{"v":7180,"d":"7,180"}]
[null,null,"Планируемый процент невыходов по болезни, выполнению государственных обязанностей, трудовым и дополнительным отпускам, предусмотренным коллективным договором",{"$nulls":12},"61-70","с усовершенствованным покрытием","I","61-70с усовершенствованным покрытиемI",{"v":4540,"d":"4,540"},{"$nulls":5},"61-70","с усовершенствованным покрытием","I","61-70с усовершенствованным покрытиемI",{"v":10970,"d":"10,970"}]
[{"$nulls":15},"61-70","с усовершенствованным покрытием","II","61-70с усовершенствованным покрытиемII",{"v":2700,"d":"2,700"},{"$nulls":5},"61-70","с усовершенствованным покрытием","II","61-70с усовершенствованным покрытиемII",{"v":4900,"d":"4,900"}]
[null,null,"Штатная численность уборщиков территорий в теплый период года, чел.",{"$nulls":8},{"$f":"IF(E44=\"0,5; 1,0\",(IF(X46<=0.25,W46,0)+IF(AND(X46<=0.75,X46>0.25),(W46+0.5),0)+IF(X46>0.75,(W46+1),0)),0)+IF(E44=\"0,25; 0,5; 0,75; 1,0\",(IF(X46<=0.12,W46,0)+IF(AND(X46<=0.37,X46>0.12),(W46+0.25),0)+IF(AND(X46<=0.62,X46>0.37),(W46+0.5),0)+IF(AND(X46<=0.87,X46>0.62),(W46+0.75),0)+IF(X46>0.87,(W46+1),0)),0)","v":{"v":0,"d":"0.00"}},{"$nulls":3},"61-70","с усовершенствованным покрытием","III","61-70с усовершенствованным покрытиемIII",{"v":1470,"d":"1,470"},{"$nulls":5},"61-70","с усовершенствованным покрытием","III","61-70с усовершенствованным покрытиемIII",{"v":2140,"d":"2,140"}]
[{"$nulls":15},"61-70","с неусовершенствованным покрытием","I","61-70с неусовершенствованным покрытиемI",{"v":3650,"d":"3,650"},{"$nulls":5},"61-70","с неусовершенствованным покрытием","I","61-70с неусовершенствованным покрытиемI",{"v":8370,"d":"8,370"}]
[null,null,"Итого штатная численность уборщиков территории, чел.",{"$nulls":6},{"$f":"L50+L27","v":{"v":0,"d":"0.00"}},{"$nulls":5},"61-70","с неусовершенствованным покрытием","II","61-70с неусовершенствованным покрытиемII",{"v":2230,"d":"2,230"},{"$nulls":5},"61-70","с неусовершенствованным покрытием","II","61-70с неусовершенствованным покрытиемII",{"v":3840,"d":"3,840"}]
[{"$nulls":15},"61-70","с неусовершенствованным покрытием","III","61-70с неусовершенствованным покрытиемIII",{"v":1270,"d":"1,270"},{"$nulls":5},"61-70","с неусовершенствованным покрытием","III","61-70с неусовершенствованным покрытиемIII",{"v":1730,"d":"1,730"}]
[{"$nulls":15},"61-70","без покрытий","I","61-70без покрытийI",{"v":3090,"d":"3,090"},{"$nulls":5},"61-70","без покрытий","I","61-70без покрытийI",{"v":7300,"d":"7,300"}]
[{"$nulls":15},"71-80","с усовершенствованным покрытием","I","71-80с усовершенствованным покрытиемI",{"v":4260,"d":"4,260"},{"$nulls":5},"71-80","с усовершенствованным покрытием","I","71-80с усовершенствованным покрытиемI",{"v":11130,"d":"11,130"}]
[{"$nulls":15},"71-80","с усовершенствованным покрытием","II","71-80с усовершенствованным покрытиемII",{"v":2610,"d":"2,610"},{"$nulls":5},"71-80","с усовершенствованным покрытием","II","71-80с усовершенствованным покрытиемII",{"v":4980,"d":"4,980"}]
[{"$nulls":15},"71-80","с усовершенствованным покрытием","III","71-80с усовершенствованным покрытиемIII",{"v":1370,"d":"1,370"},{"$nulls":5},"71-80","с усовершенствованным покрытием","III","71-80с усовершенствованным покрытиемIII",{"v":2180,"d":"2,180"}]
[{"$nulls":15},"71-80","с неусовершенствованным покрытием","I","71-80с неусовершенствованным покрытиемI",{"v":3420,"d":"3,420"},{"$nulls":5},"71-80","с неусовершенствованным покрытием","I","71-80с неусовершенствованным покрытиемI",{"v":8490,"d":"8,490"}]
[{"$nulls":15},"71-80","с неусовершенствованным покрытием","II","71-80с неусовершенствованным покрытиемII",{"v":2170,"d":"2,170"},{"$nulls":5},"71-80","с неусовершенствованным покрытием","II","71-80с неусовершенствованным покрытиемII",{"v":3900,"d":"3,900"}]
[{"$nulls":15},"71-80","с неусовершенствованным покрытием","III","71-80с неусовершенствованным покрытиемIII",{"v":1190,"d":"1,190"},{"$nulls":5},"71-80","с неусовершенствованным покрытием","III","71-80с неусовершенствованным покрытиемIII",{"v":1770,"d":"1,770"}]
[{"$nulls":15},"71-80","без покрытий","I","71-80без покрытийI",{"v":2930,"d":"2,930"},{"$nulls":5},"71-80","без покрытий","I","71-80без покрытийI",{"v":7410,"d":"7,410"}]
[{"$nulls":15},"81-90","с усовершенствованным покрытием","I","81-90с усовершенствованным покрытиемI",{"v":4000,"d":"4,000"},{"$nulls":5},"81-90","с усовершенствованным покрытием","I","81-90с усовершенствованным покрытиемI",{"v":11290,"d":"11,290"}]
[{"$nulls":15},"81-90","с усовершенствованным покрытием","II","81-90с усовершенствованным покрытиемII",{"v":2530,"d":"2,530"},{"$nulls":5},"81-90","с усовершенствованным покрытием","II","81-90с усовершенствованным покрытиемII",{"v":5060,"d":"5,060"}]
[{"$nulls":15},"81-90","с усовершенствованным покрытием","III","81-90с усовершенствованным покрытиемIII",{"v":1280,"d":"1,280"},{"$nulls":5},"81-90","с усовершенствованным покрытием","III","81-90с усовершенствованным покрытиемIII",{"v":2210,"d":"2,210"}]
[{"$nulls":15},"81-90","с неусовершенствованным покрытием","I","81-90с неусовершенствованным покрытиемI",{"v":3210,"d":"3,210"},{"$nulls":5},"81-90","с неусовершенствованным покрытием","I","81-90с неусовершенствованным покрытиемI",{"v":8620,"d":"8,620"}]
[{"$nulls":15},"81-90","с неусовершенствованным покрытием","II","81-90с неусовершенствованным покрытиемII",{"v":2100,"d":"2,100"},{"$nulls":5},"81-90","с неусовершенствованным покрытием","II","81-90с неусовершенствованным покрытиемII",{"v":3960,"d":"3,960"}]
[{"$nulls":15},"81-90","с неусовершенствованным покрытием","III","81-90с неусовершенствованным покрытиемIII",{"v":1100,"d":"1,100"},{"$nulls":5},"81-90","с неусовершенствованным покрытием","III","81-90с неусовершенствованным покрытиемIII",{"v":1800,"d":"1,800"}]
[{"$nulls":15},"81-90","без покрытий","I","81-90без покрытийI",{"v":2770,"d":"2,770"},{"$nulls":5},"81-90","без покрытий","I","81-90без покрытийI",{"v":7520,"d":"7,520"}]
[{"$nulls":15},"91-100","с усовершенствованным покрытием","I","91-100с усовершенствованным покрытиемI",{"v":3780,"d":"3,780"},{"$nulls":5},"91-100","с усовершенствованным покрытием","I","91-100с усовершенствованным покрытиемI",{"v":11450,"d":"11,450"}]
[{"$nulls":15},"91-100","с усовершенствованным покрытием","II","91-100с усовершенствованным покрытиемII",{"v":2450,"d":"2,450"},{"$nulls":5},"91-100","с усовершенствованным покрытием","II","91-100с усовершенствованным покрытиемII",{"v":5140,"d":"5,140"}]
[{"$nulls":15},"91-100","с усовершенствованным покрытием","III",{"$f":"CONCATENATE(P71,Q71,R71)","v":"91-100с усовершенствованным покрытиемIII"},{"v":1200,"d":"1,200"},{"$nulls":5},"91-100","с усовершенствованным покрытием","III",{"$f":"CONCATENATE(Z71,AA71,AB71)","v":"91-100с усовершенствованным покрытиемIII"},{"v":2250,"d":"2,250"}]
[{"$nulls":15},"91-100","с неусовершенствованным покрытием","I","91-100с неусовершенствованным покрытиемI",{"v":3040,"d":"3,040"},{"$nulls":5},"91-100","с неусовершенствованным покрытием","I","91-100с неусовершенствованным покрытиемI",{"v":8740,"d":"8,740"}]
[{"$nulls":15},"91-100","с неусовершенствованным покрытием","II","91-100с неусовершенствованным покрытиемII",{"v":2030,"d":"2,030"},{"$nulls":5},"91-100","с неусовершенствованным покрытием","II","91-100с неусовершенствованным покрытиемII",{"v":4020,"d":"4,020"}]
[{"$nulls":15},"91-100","с неусовершенствованным покрытием","III","91-100с неусовершенствованным покрытиемIII",{"v":1040,"d":"1,040"},{"$nulls":5},"91-100","с неусовершенствованным покрытием","III","91-100с неусовершенствованным покрытиемIII",{"v":1840,"d":"1,840"}]
[{"$nulls":15},"91-100","без покрытий","I","91-100без покрытийI",{"v":2630,"d":"2,630"},{"$nulls":5},"91-100","без покрытий","I","91-100без покрытийI",{"v":7640,"d":"7,640"}]
[{"$nulls":15},"101-110","с усовершенствованным покрытием","I","101-110с усовершенствованным покрытиемI",{"v":3580,"d":"3,580"},{"$nulls":5},"101-110","с усовершенствованным покрытием","I","101-110с усовершенствованным покрытиемI",{"v":11600,"d":"11,600"}]
[{"$nulls":15},"101-110","с усовершенствованным покрытием","II","101-110с усовершенствованным покрытиемII",{"v":2370,"d":"2,370"},{"$nulls":5},"101-110","с усовершенствованным покрытием","II","101-110с усовершенствованным покрытиемII",{"v":5230,"d":"5,230"}]
[{"$nulls":15},"101-110","с усовершенствованным покрытием","III","101-110с усовершенствованным покрытиемIII",{"v":1130,"d":"1,130"},{"$nulls":5},"101-110","с усовершенствованным покрытием","III","101-110с усовершенствованным покрытиемIII",{"v":2290,"d":"2,290"}]
[{"$nulls":15},"101-110","с неусовершенствованным покрытием","I","101-110с неусовершенствованным покрытиемI",{"v":2880,"d":"2,880"},{"$nulls":5},"101-110","с неусовершенствованным покрытием","I","101-110с неусовершенствованным покрытиемI",{"v":8870,"d":"8,870"}]
[{"$nulls":15},"101-110","с неусовершенствованным покрытием","II","101-110с неусовершенствованным покрытиемII",{"v":1970,"d":"1,970"},{"$nulls":5},"101-110","с неусовершенствованным покрытием","II","101-110с неусовершенствованным покрытиемII",{"v":4100,"d":"4,100"}]
[{"$nulls":15},"101-110","с неусовершенствованным покрытием","III","101-110с неусовершенствованным покрытиемIII",980,{"$nulls":5},"101-110","с неусовершенствованным покрытием","III","101-110с неусовершенствованным покрытиемIII",{"v":1880,"d":"1,880"}]
[{"$nulls":15},"101-110","без покрытий","I","101-110без покрытийI",{"v":2510,"d":"2,510"},{"$nulls":5},"101-110","без покрытий","I","101-110без покрытийI",{"v":7750,"d":"7,750"}]
[{"$nulls":15},"111-120","с усовершенствованным покрытием","I","111-120с усовершенствованным покрытиемI",{"v":3410,"d":"3,410"},{"$nulls":5},"111-120","с усовершенствованным покрытием","I","111-120с усовершенствованным покрытиемI",{"v":11790,"d":"11,790"}]
[{"$nulls":15},"111-120","с усовершенствованным покрытием","II","111-120с усовершенствованным покрытиемII",{"v":2300,"d":"2,300"},{"$nulls":5},"111-120","с усовершенствованным покрытием","II","111-120с усовершенствованным покрытиемII",{"v":5320,"d":"5,320"}]
[{"$nulls":15},"111-120","с усовершенствованным покрытием","III","111-120с усовершенствованным покрытиемIII",{"v":1070,"d":"1,070"},{"$nulls":5},"111-120","с усовершенствованным покрытием","III","111-120с усовершенствованным покрытиемIII",{"v":2340,"d":"2,340"}]
[{"$nulls":15},"111-120","с неусовершенствованным покрытием","I","111-120с неусовершенствованным покрытиемI",{"v":2740,"d":"2,740"},{"$nulls":5},"111-120","с неусовершенствованным покрытием","I","111-120с неусовершенствованным покрытиемI",{"v":9010,"d":"9,010"}]
[{"$nulls":15},"111-120","с неусовершенствованным покрытием","II","111-120с неусовершенствованным покрытиемII",{"v":1920,"d":"1,920"},{"$nulls":5},"111-120","с неусовершенствованным покрытием","II","111-120с неусовершенствованным покрытиемII",{"v":4180,"d":"4,180"}]
[{"$nulls":15},"111-120","с неусовершенствованным покрытием","III","111-120с неусовершенствованным покрытиемIII",920,{"$nulls":5},"111-120","с неусовершенствованным покрытием","III","111-120с неусовершенствованным покрытиемIII",{"v":1930,"d":"1,930"}]
[{"$nulls":15},"111-120","без покрытий","I","111-120без покрытийI",{"v":2390,"d":"2,390"},{"$nulls":5},"111-120","без покрытий","I","111-120без покрытийI",{"v":7880,"d":"7,880"}]
[{"$nulls":15},"121-130","с усовершенствованным покрытием","I","121-130с усовершенствованным покрытиемI",{"v":3250,"d":"3,250"},{"$nulls":5},"121-130","с усовершенствованным покрытием","I","121-130с усовершенствованным покрытиемI",{"v":11980,"d":"11,980"}]
[{"$nulls":15},"121-130","с усовершенствованным покрытием","II","121-130с усовершенствованным покрытиемII",{"v":2230,"d":"2,230"},{"$nulls":5},"121-130","с усовершенствованным покрытием","II","121-130с усовершенствованным покрытиемII",{"v":5420,"d":"5,420"}]
[{"$nulls":15},"121-130","с усовершенствованным покрытием","III","121-130с усовершенствованным покрытиемIII",{"v":1010,"d":"1,010"},{"$nulls":5},"121-130","с усовершенствованным покрытием","III","121-130с усовершенствованным покрытиемIII",{"v":2380,"d":"2,380"}]
[{"$nulls":15},"121-130","с неусовершенствованным покрытием","I","121-130с неусовершенствованным покрытиемI",{"v":2610,"d":"2,610"},{"$nulls":5},"121-130","с неусовершенствованным покрытием","I","121-130с неусовершенствованным покрытиемI",{"v":9150,"d":"9,150"}]
[{"$nulls":15},"121-130","с неусовершенствованным покрытием","II","121-130с неусовершенствованным покрытиемII",{"v":1860,"d":"1,860"},{"$nulls":5},"121-130","с неусовершенствованным покрытием","II","121-130с неусовершенствованным покрытиемII",{"v":4260,"d":"4,260"}]
[{"$nulls":15},"121-130","с неусовершенствованным покрытием","III","121-130с неусовершенствованным покрытиемIII",880,{"$nulls":5},"121-130","с неусовершенствованным покрытием","III","121-130с неусовершенствованным покрытиемIII",{"v":1970,"d":"1,970"}]
[{"$nulls":15},"121-130","без покрытий","I","121-130без покрытийI",{"v":2280,"d":"2,280"},{"$nulls":5},"121-130","без покрытий","I","121-130без покрытийI",{"v":8010,"d":"8,010"}]

{"sheet":"Укрупненные нормативы(4)","index":4,"n_rows":96,"n_cols":42,"rows_kept":96,"hidden":true,"merged":[[1,38,3,44],[2,2,2,11],[4,2,4,11],[6,2,6,5],[8,4,8,8],[10,2,10,4],[10,7,10,11],[12,2,12,10],[14,2,14,10],[16,2,16,4],[18,2,18,6],[20,2,20,3],[20,4,20,5],[22,2,22,8],[24,2,24,10],[26,2,26,10],[29,2,29,11],[31,2,31,5],[33,4,33,8],[35,2,35,4],[35,7,35,11],[37,2,37,10],[39,2,39,4],[41,2,41,6],[43,2,43,3],[43,4,43,5],[45,2,45,7],[47,2,47,10],[49,2,49,10],[51,2,51,8]]}
[]
[{"$nulls":38},"Общая штатная численность уборщиков территории, чел."]
[null,null,"Укрупненные нормативы численности уборщиков территорий"]
[]
[null,null,"Нормы обслуживания для холодного периода года",{"$nulls":10},"-",{"$nulls":7},"-","-","-",{"$nulls":17},{"$f":"'Укрупненные нормативы'!$J$52+'Укрупненные нормативы(2)'!$J$52+'Укрупненные нормативы(3)'!$J$52+'Укрупненные нормативы(4)'!$J$52+'Укрупненные нормативы(5)'!$J$52+'Укрупненные нормативы(6)'!$J$52","v":{"v":0,"d":"0.00"}}]
[{"$nulls":13},"0,5; 1,0",{"$f":"CONCATENATE(G7,E9,F11)","v":""},"До 10","с усовершенствованным покрытием","I",{"$f":"CONCATENATE(P6,Q6,R6)","v":"До 10с усовершенствованным покрытиемI"},{"v":7600,"d":"7,600"},null,"До 10","с усовершенствованным покрытием","I",{"$f":"CONCATENATE(G32,E34,F36)","v":""},"До 10","с усовершенствованным покрытием","I",{"$f":"CONCATENATE(Z6,AA6,AB6)","v":"До 10с усовершенствованным покрытиемI"},{"v":10100,"d":"10,100"}]
[null,null,"Число дней с твердыми осадками",{"$nulls":10},"0,25; 0,5; 0,75; 1,0",null,"До 10","с усовершенствованным покрытием","II",{"$f":"CONCATENATE(P7,Q7,R7)","v":"До 10с усовершенствованным покрытиемII"},{"v":3440,"d":"3,440"},null,"11-20","с неусовершенствованным покрытием","II",null,"До 10","с усовершенствованным покрытием","II",{"$f":"CONCATENATE(Z7,AA7,AB7)","v":"До 10с усовершенствованным покрытиемII"},{"v":4480,"d":"4,480"}]
[{"$nulls":15},"До 10","с усовершенствованным покрытием","III","До 10с усовершенствованным покрытиемIII",{"v":2590,"d":"2,590"},null,"21-30","без покрытий","III",null,"До 10","с усовершенствованным покрытием","III","До 10с усовершенствованным покрытиемIII",{"v":1940,"d":"1,940"},{"$nulls":4},{"v":10100,"d":"10,100"},{"v":4480,"d":"4,480"},{"v":1940,"d":"1,940"},{"v":7710,"d":"7,710"},{"v":3500,"d":"3,500"},{"v":1570,"d":"1,570"},{"v":6670,"d":"6,670"}]
[null,null,"Виды покрытий",{"$nulls":12},"До 10","с неусовершенствованным покрытием","I","До 10с неусовершенствованным покрытиемI",{"v":5920,"d":"5,920"},null,"31-40",{"$nulls":3},"До 10","с неусовершенствованным покрытием","I","До 10с неусовершенствованным покрытиемI",{"v":7710,"d":"7,710"},{"$nulls":3},"11-20",{"v":10240,"d":"10,240"},{"v":4550,"d":"4,550"},{"v":1970,"d":"1,970"},{"v":7810,"d":"7,810"},{"v":3560,"d":"3,560"},{"v":1600,"d":"1,600"},{"v":6770,"d":"6,770"}]
[{"$nulls":15},"До 10","с неусовершенствованным покрытием","II","До 10с неусовершенствованным покрытиемII",{"v":2800,"d":"2,800"},null,"41-50",{"$nulls":3},"До 10","с неусовершенствованным покрытием","II","До 10с неусовершенствованным покрытиемII",{"v":3500,"d":"3,500"},{"$nulls":3},"21-30",{"v":10370,"d":"10,370"},{"v":4620,"d":"4,620"},{"v":2010,"d":"2,010"},{"v":7910,"d":"7,910"},{"v":3610,"d":"3,610"},{"v":1620,"d":"1,620"},{"v":6870,"d":"6,870"}]
[null,null,"Классы территорий",{"$nulls":4},{"$f":"IF(AND(E9=\"без покрытий\",OR(F11=\"-\",F11=\"II\",F11=\"III\")),\"Укажите класс территории 'I'\",\"\")","v":""},{"$nulls":6},152,"До 10","с неусовершенствованным покрытием","III","До 10с неусовершенствованным покрытиемIII",{"v":2190,"d":"2,190"},null,"51-60",{"$nulls":3},"До 10","с неусовершенствованным покрытием","III","До 10с неусовершенствованным покрытиемIII",{"v":1570,"d":"1,570"},{"$nulls":3},"31-40",{"v":10520,"d":"10,520"},{"v":4690,"d":"4,690"},{"v":2040,"d":"2,040"},{"v":8030,"d":"8,030"},{"v":3670,"d":"3,670"},{"v":1640,"d":"1,640"},{"v":6980,"d":"6,980"}]
[{"$nulls":14},213,"До 10","без покрытий","I","До 10без покрытийI",{"v":5160,"d":"5,160"},null,"61-70",{"$nulls":3},"До 10","без покрытий","I","До 10без покрытийI",{"v":6670,"d":"6,670"},{"$nulls":3},"41-50",{"v":10670,"d":"10,670"},{"v":4750,"d":"4,750"},{"v":2070,"d":"2,070"},{"v":8140,"d":"8,140"},{"v":3730,"d":"3,730"},{"v":1660,"d":"1,660"},{"v":7080,"d":"7,080"}]
[null,null,"Количество дней выпадения неуплотненного свежевыпавшего снега толщиной слоя более 2 см",{"$nulls":11},{"$f":"L13/O11*100","v":{"v":0,"d":"0.00"}},"11-20","с усовершенствованным покрытием","I","11-20с усовершенствованным покрытиемI",{"v":6910,"d":"6,910"},null,"71-80",{"$nulls":3},"11-20","с усовершенствованным покрытием","I","11-20с усовершенствованным покрытиемI",{"v":10240,"d":"10,240"},{"$nulls":3},"51-60",{"v":10820,"d":"10,820"},{"v":4820,"d":"4,820"},{"v":2110,"d":"2,110"},{"v":8250,"d":"8,250"},{"v":3780,"d":"3,780"},{"v":1700,"d":"1,700"},{"v":7180,"d":"7,180"}]
[{"$nulls":15},"11-20","с усовершенствованным покрытием","II","11-20с усовершенствованным покрытиемII",{"v":3290,"d":"3,290"},null,"81-90",{"$nulls":3},"11-20","с усовершенствованным покрытием","II","11-20с усовершенствованным покрытиемII",{"v":4550,"d":"4,550"},{"$nulls":3},"61-70",{"v":10970,"d":"10,970"},{"v":4900,"d":"4,900"},{"v":2140,"d":"2,140"},{"v":8370,"d":"8,370"},{"v":3840,"d":"3,840"},{"v":1730,"d":"1,730"},{"v":7300,"d":"7,300"}]
[null,null,"Количество дней гололеда, когда осуществляется посыпка территорий песком или смесью песка с хлоридами",{"$nulls":11},{"$f":"IF(O13>30,0.95^(O13-30),1)","v":{"v":1,"d":"1.00"}},"11-20","с усовершенствованным покрытием","III","11-20с усовершенствованным покрытиемIII",{"v":2340,"d":"2,340"},null,"91-100",{"$nulls":3},"11-20","с усовершенствованным покрытием","III","11-20с усовершенствованным покрытиемIII",{"v":1970,"d":"1,970"},{"$nulls":3},"71-80",{"v":11130,"d":"11,130"},{"v":4980,"d":"4,980"},{"v":2180,"d":"2,180"},{"v":8490,"d":"8,490"},{"v":3900,"d":"3,900"},{"v":1770,"d":"1,770"},{"v":7410,"d":"7,410"}]
[{"$nulls":15},"11-20","с неусовершенствованным покрытием","I","11-20с неусовершенствованным покрытиемI",{"v":5440,"d":"5,440"},null,"101-110",{"$nulls":3},"11-20","с неусовершенствованным покрытием","I","11-20с неусовершенствованным покрытиемI",{"v":7810,"d":"7,810"},{"$nulls":3},"81-90",{"v":11290,"d":"11,290"},{"v":5060,"d":"5,060"},{"v":2210,"d":"2,210"},{"v":8620,"d":"8,620"},{"v":3960,"d":"3,960"},{"v":1800,"d":"1,800"},{"v":7520,"d":"7,520"}]
[null,null,"Норма обслуживания, м2",null,null,{"$f":"IFERROR(VLOOKUP(O6,S6:T96,2,FALSE)*O15*O18,0)","v":0},{"$nulls":8},{"$f":"L15/O12*100","v":{"v":0,"d":"0.00"}},"11-20","с неусовершенствованным покрытием","II","11-20с неусовершенствованным покрытиемII",{"v":2690,"d":"2,690"},null,"111-120",{"$nulls":3},"11-20","с неусовершенствованным покрытием","II","11-20с неусовершенствованным покрытиемII",{"v":3560,"d":"3,560"},{"$nulls":3},"91-100",{"v":11450,"d":"11,450"},{"v":5140,"d":"5,140"},{"v":2250,"d":"2,250"},{"v":8740,"d":"8,740"},{"v":4020,"d":"4,020"},{"v":1840,"d":"1,840"},{"v":7640,"d":"7,640"}]
[{"$nulls":14},{"$f":"IF(O17>25,0.99^(O17-25),1)","v":{"v":1,"d":"1.00"}},"11-20","с неусовершенствованным покрытием","III","11-20с неусовершенствованным покрытиемIII",{"v":1980,"d":"1,980"},null,"121-130",{"$nulls":3},"11-20","с неусовершенствованным покрытием","III","11-20с неусовершенствованным покрытиемIII",{"v":1600,"d":"1,600"},{"$nulls":3},"101-110",{"v":11600,"d":"11,600"},{"v":5230,"d":"5,230"},{"v":2290,"d":"2,290"},{"v":8870,"d":"8,870"},{"v":4100,"d":"4,100"},{"v":1880,"d":"1,880"},{"v":7750,"d":"7,750"}]
[null,null,"Обслуживаемая площадь территории, м2",{"$nulls":12},"11-20","без покрытий","I","11-20без покрытийI",{"v":4730,"d":"4,730"},{"$nulls":5},"11-20","без покрытий","I","11-20без покрытийI",{"v":6770,"d":"6,770"},{"$nulls":3},"111-120",{"v":11790,"d":"11,790"},{"v":5320,"d":"5,320"},{"v":2340,"d":"2,340"},{"v":9010,"d":"9,010"},{"v":4180,"d":"4,180"},{"v":1930,"d":"1,930"},{"v":7880,"d":"7,880"}]
[{"$nulls":15},"21-30","с усовершенствованным покрытием","I","21-30с усовершенствованным покрытиемI",{"v":6210,"d":"6,210"},{"$nulls":5},"21-30","с усовершенствованным покрытием","I","21-30с усовершенствованным покрытиемI",{"v":10370,"d":"10,370"},{"$nulls":3},"121-130",{"v":11980,"d":"11,980"},{"v":5420,"d":"5,420"},{"v":2380,"d":"2,380"},{"v":9150,"d":"9,150"},{"v":4260,"d":"4,260"},{"v":1970,"d":"1,970"},{"v":8010,"d":"8,010"}]
[null,null,"Градация",{"$nulls":12},"21-30","с усовершенствованным покрытием","II","21-30с усовершенствованным покрытиемII",{"v":3150,"d":"3,150"},{"$nulls":5},"21-30","с усовершенствованным покрытием","II","21-30с усовершенствованным покрытиемII",{"v":4620,"d":"4,620"}]
[{"$nulls":15},"21-30","с усовершенствованным покрытием","III","21-30с усовершенствованным покрытиемIII",{"v":2090,"d":"2,090"},{"$nulls":5},"21-30","с усовершенствованным покрытием","III","21-30с усовершенствованным покрытиемIII",{"v":2010,"d":"2,010"}]
[null,null,"Нормативная численность уборщиков территорий, чел.",{"$nulls":6},{"$f":"IF(F17=0,0,H19/F17*(1+L25/100))","v":{"v":0,"d":"0.00"}},{"$nulls":5},"21-30","с неусовершенствованным покрытием","I","21-30с неусовершенствованным покрытиемI",{"v":4960,"d":"4,960"},null,{"$f":"J23","v":{"v":0,"d":"0.00"}},{"$f":"INT(V23)","v":{"v":0,"d":"0.00"}},{"$f":"V23-W23","v":{"v":0,"d":"0.00"}},null,"21-30","с неусовершенствованным покрытием","I","21-30с неусовершенствованным покрытиемI",{"v":7910,"d":"7,910"}]
[{"$nulls":15},"21-30","с неусовершенствованным покрытием","II","21-30с неусовершенствованным покрытиемII",{"v":2580,"d":"2,580"},{"$nulls":5},"21-30","с неусовершенствованным покрытием","II","21-30с неусовершенствованным покрытиемII",{"v":3610,"d":"3,610"}]
[null,null,"Планируемый процент невыходов по болезни, выполнению государственных обязанностей, трудовым и дополнительным отпускам, предусмотренным коллективным договором",{"$nulls":12},"21-30","с неусовершенствованным покрытием","III","21-30с неусовершенствованным покрытиемIII",{"v":1790,"d":"1,790"},{"$nulls":5},"21-30","с неусовершенствованным покрытием","III","21-30с неусовершенствованным покрытиемIII",{"v":1620,"d":"1,620"}]
[{"$nulls":15},"21-30","без покрытий","I","21-30без покрытийI",{"v":4300,"d":"4,300"},{"$nulls":5},"21-30","без покрытий","I","21-30без покрытийI",{"v":6870,"d":"6,870"}]
[null,null,"Штатная численность уборщиков территорий в холодный период года, чел.",{"$nulls":8},{"$f":"IF(E21=\"0,5; 1,0\",(IF(X23<=0.25,W23,0)+IF(AND(X23<=0.75,X23>0.25),(W23+0.5),0)+IF(X23>0.75,(W23+1),0)),0)+IF(E21=\"0,25; 0,5; 0,75; 1,0\",(IF(X23<=0.12,W23,0)+IF(AND(X23<=0.37,X23>0.12),(W23+0.25),0)+IF(AND(X23<=0.62,X23>0.37),(W23+0.5),0)+IF(AND(X23<=0.87,X23>0.62),(W23+0.75),0)+IF(X23>0.87,(W23+1),0)),0)","v":{"v":0,"d":"0.00"}},{"$nulls":3},"31-40","с усовершенствованным покрытием","I","31-40с усовершенствованным покрытиемI",{"v":5700,"d":"5,700"},{"$nulls":5},"31-40","с усовершенствованным покрытием","I","31-40с усовершенствованным покрытиемI",{"v":10520,"d":"10,520"}]
[{"$nulls":15},"31-40","с усовершенствованным покрытием","II","31-40с усовершенствованным покрытиемII",{"v":3020,"d":"3,020"},{"$nulls":5},"31-40","с усовершенствованным покрытием","II","31-40с усовершенствованным покрытиемII",{"v":4690,"d":"4,690"}]
[{"$nulls":15},"31-40","с усовершенствованным покрытием","III","31-40с усовершенствованным покрытиемIII",{"v":1890,"d":"1,890"},{"$nulls":5},"31-40","с усовершенствованным покрытием","III","31-40с усовершенствованным покрытиемIII",{"v":2040,"d":"2,040"}]
[null,null,"Нормы обслуживания для теплого периода года",{"$nulls":12},"31-40","с неусовершенствованным покрытием","I","31-40с неусовершенствованным покрытиемI",{"v":4560,"d":"4,560"},{"$nulls":5},"31-40","с неусовершенствованным покрытием","I","31-40с неусовершенствованным покрытиемI",{"v":8030,"d":"8,030"}]
[{"$nulls":15},"31-40","с неусовершенствованным покрытием","II","31-40с неусовершенствованным покрытиемII",{"v":2480,"d":"2,480"},{"$nulls":5},"31-40","с неусовершенствованным покрытием","II","31-40с неусовершенствованным покрытиемII",{"v":3670,"d":"3,670"}]
[null,null,"Число дней с жидкими осадками",{"$nulls":12},"31-40","с неусовершенствованным покрытием","III","31-40с неусовершенствованным покрытиемIII",{"v":1620,"d":"1,620"},{"$nulls":5},"31-40","с неусовершенствованным покрытием","III","31-40с неусовершенствованным покрытиемIII",{"v":1640,"d":"1,640"}]
[{"$nulls":15},"31-40","без покрытий","I","31-40без покрытийI",{"v":3920,"d":"3,920"},{"$nulls":5},"31-40","без покрытий","I","31-40без покрытийI",{"v":6980,"d":"6,980"}]
[null,null,"Виды покрытий",{"$nulls":12},"41-50","с усовершенствованным покрытием","I","41-50с усовершенствованным покрытиемI",{"v":5250,"d":"5,250"},{"$nulls":5},"41-50","с усовершенствованным покрытием","I","41-50с усовершенствованным покрытиемI",{"v":10670,"d":"10,670"}]
[{"$nulls":15},"41-50","с усовершенствованным покрытием","II","41-50с усовершенствованным покрытиемII",{"v":2910,"d":"2,910"},{"$nulls":5},"41-50","с усовершенствованным покрытием","II","41-50с усовершенствованным покрытиемII",{"v":4750,"d":"4,750"}]
[null,null,"Классы территорий",{"$nulls":4},{"$f":"IF(AND(E34=\"без покрытий\",OR(F36=\"-\",F36=\"II\",F36=\"III\")),\"Укажите класс территории 'I'\",\"\")","v":""},{"$nulls":6},152,"41-50","с усовершенствованным покрытием","III","41-50с усовершенствованным покрытиемIII",{"v":1720,"d":"1,720"},{"$nulls":5},"41-50","с усовершенствованным покрытием","III","41-50с усовершенствованным покрытиемIII",{"v":2070,"d":"2,070"}]
[{"$nulls":14},213,"41-50","с неусовершенствованным покрытием","I","41-50с неусовершенствованным покрытиемI",{"v":4220,"d":"4,220"},{"$nulls":5},"41-50","с неусовершенствованным покрытием","I","41-50с неусовершенствованным покрытиемI",{"v":8140,"d":"8,140"}]
[null,null,"Количество дней выпадения жидких осадков более 2 см",{"$nulls":11},{"$f":"L38/O37*100","v":{"v":0,"d":"0.00"}},"41-50","с неусовершенствованным покрытием","II","41-50с неусовершенствованным покрытиемII",{"v":2390,"d":"2,390"},{"$nulls":5},"41-50","с неусовершенствованным покрытием","II","41-50с неусовершенствованным покрытиемII",{"v":3730,"d":"3,730"}]
[{"$nulls":14},{"$f":"IF(O38>30,1.01^(O38-30),1)","v":{"v":1,"d":"1.00"}},"41-50","с неусовершенствованным покрытием","III","41-50с неусовершенствованным покрытиемIII",{"v":1480,"d":"1,480"},{"$nulls":5},"41-50","с неусовершенствованным покрытием","III","41-50с неусовершенствованным покрытиемIII",{"v":1660,"d":"1,660"}]
[null,null,"Норма обслуживания, м2",null,null,{"$f":"IFERROR(VLOOKUP($Y$6,$AC$6:$AD$96,2,FALSE)*O39,0)","v":0},{"$nulls":9},"41-50","без покрытий","I","41-50без покрытийI",{"v":3610,"d":"3,610"},{"$nulls":5},"41-50","без покрытий","I","41-50без покрытийI",{"v":7080,"d":"7,080"}]
[{"$nulls":15},"51-60","с усовершенствованным покрытием","I","51-60с усовершенствованным покрытиемI",{"v":4870,"d":"4,870"},{"$nulls":5},"51-60","с усовершенствованным покрытием","I","51-60с усовершенствованным покрытиемI",{"v":10820,"d":"10,820"}]
[null,null,"Обслуживаемая площадь территории, м2",{"$nulls":12},"51-60","с усовершенствованным покрытием","II","51-60с усовершенствованным покрытиемII",{"v":2800,"d":"2,800"},{"$nulls":5},"51-60","с усовершенствованным покрытием","II","51-60с усовершенствованным покрытиемII",{"v":4820,"d":"4,820"}]
[{"$nulls":15},"51-60","с усовершенствованным покрытием","III","51-60с усовершенствованным покрытиемIII",{"v":1580,"d":"1,580"},{"$nulls":5},"51-60","с усовершенствованным покрытием","III","51-60с усовершенствованным покрытиемIII",{"v":2110,"d":"2,110"}]
[null,null,"Градация",{"$nulls":12},"51-60","с неусовершенствованным покрытием","I","51-60с неусовершенствованным покрытиемI",{"v":3900,"d":"3,900"},{"$nulls":5},"51-60","с неусовершенствованным покрытием","I","51-60с неусовершенствованным покрытиемI",{"v":8250,"d":"8,250"}]
[{"$nulls":15},"51-60","с неусовершенствованным покрытием","II","51-60с неусовершенствованным покрытиемII",{"v":2310,"d":"2,310"},{"$nulls":5},"51-60","с неусовершенствованным покрытием","II","51-60с неусовершенствованным покрытиемII",{"v":3780,"d":"3,780"}]
[null,null,"Нормативная численность уборщиков территорий, чел.",{"$nulls":5},{"$f":"IF(F40=0,0,H42/F40*(1+L48/100))","v":{"v":0,"d":"0.00"}},{"$nulls":6},"51-60","с неусовершенствованным покрытием","III","51-60с неусовершенствованным покрытиемIII",{"v":1370,"d":"1,370"},null,{"$f":"I46","v":{"v":0,"d":"0.00"}},{"$f":"INT(V46)","v":{"v":0,"d":"0.00"}},{"$f":"V46-W46","v":{"v":0,"d":"0.00"}},null,"51-60","с неусовершенствованным покрытием","III","51-60с неусовершенствованным покрытиемIII",{"v":1700,"d":"1,700"}]
[{"$nulls":15},"51-60","без покрытий","I","51-60без покрытийI",{"v":3330,"d":"3,330"},{"$nulls":5},"51-60","без покрытий","I","51-60без покрытийI",{"v":7180,"d":"7,180"}]
[null,null,"Планируемый процент невыходов по болезни, выполнению государственных обязанностей, трудовым и дополнительным отпускам, предусмотренным коллективным договором",{"$nulls":12},"61-70","с усовершенствованным покрытием","I","61-70с усовершенствованным покрытиемI",{"v":4540,"d":"4,540"},{"$nulls":5},"61-70","с усовершенствованным покрытием","I","61-70с усовершенствованным покрытиемI",{"v":10970,"d":"10,970"}]
[{"$nulls":15},"61-70","с усовершенствованным покрытием","II","61-70с усовершенствованным покрытиемII",{"v":2700,"d":"2,700"},{"$nulls":5},"61-70","с усовершенствованным покрытием","II","61-70с усовершенствованным покрытиемII",{"v":4900,"d":"4,900"}]
[null,null,"Штатная численность уборщиков территорий в теплый период года, чел.",{"$nulls":8},{"$f":"IF(E44=\"0,5; 1,0\",(IF(X46<=0.25,W46,0)+IF(AND(X46<=0.75,X46>0.25),(W46+0.5),0)+IF(X46>0.75,(W46+1),0)),0)+IF(E44=\"0,25; 0,5; 0,75; 1,0\",(IF(X46<=0.12,W46,0)+IF(AND(X46<=0.37,X46>0.12),(W46+0.25),0)+IF(AND(X46<=0.62,X46>0.37),(W46+0.5),0)+IF(AND(X46<=0.87,X46>0.62),(W46+0.75),0)+IF(X46>0.87,(W46+1),0)),0)","v":{"v":0,"d":"0.00"}},{"$nulls":3},"61-70","с усовершенствованным покрытием","III","61-70с усовершенствованным покрытиемIII",{"v":1470,"d":"1,470"},{"$nulls":5},"61-70","с усовершенствованным покрытием","III","61-70с усовершенствованным покрытиемIII",{"v":2140,"d":"2,140"}]
[{"$nulls":15},"61-70","с неусовершенствованным покрытием","I","61-70с неусовершенствованным покрытиемI",{"v":3650,"d":"3,650"},{"$nulls":5},"61-70","с неусовершенствованным покрытием","I","61-70с неусовершенствованным покрытиемI",{"v":8370,"d":"8,370"}]
[null,null,"Итого штатная численность уборщиков территории, чел.",{"$nulls":6},{"$f":"L50+L27","v":{"v":0,"d":"0.00"}},{"$nulls":5},"61-70","с неусовершенствованным покрытием","II","61-70с неусовершенствованным покрытиемII",{"v":2230,"d":"2,230"},{"$nulls":5},"61-70","с неусовершенствованным покрытием","II","61-70с неусовершенствованным покрытиемII",{"v":3840,"d":"3,840"}]
[{"$nulls":15},"61-70","с неусовершенствованным покрытием","III","61-70с неусовершенствованным покрытиемIII",{"v":1270,"d":"1,270"},{"$nulls":5},"61-70","с неусовершенствованным покрытием","III","61-70с неусовершенствованным покрытиемIII",{"v":1730,"d":"1,730"}]
[{"$nulls":15},"61-70","без покрытий","I","61-70без покрытийI",{"v":3090,"d":"3,090"},{"$nulls":5},"61-70","без покрытий","I","61-70без покрытийI",{"v":7300,"d":"7,300"}]
[{"$nulls":15},"71-80","с усовершенствованным покрытием","I","71-80с усовершенствованным покрытиемI",{"v":4260,"d":"4,260"},{"$nulls":5},"71-80","с усовершенствованным покрытием","I","71-80с усовершенствованным покрытиемI",{"v":11130,"d":"11,130"}]
[{"$nulls":15},"71-80","с усовершенствованным покрытием","II","71-80с усовершенствованным покрытиемII",{"v":2610,"d":"2,610"},{"$nulls":5},"71-80","с усовершенствованным покрытием","II","71-80с усовершенствованным покрытиемII",{"v":4980,"d":"4,980"}]
[{"$nulls":15},"71-80","с усовершенствованным покрытием","III","71-80с усовершенствованным покрытиемIII",{"v":1370,"d":"1,370"},{"$nulls":5},"71-80","с усовершенствованным покрытием","III","71-80с усовершенствованным покрытиемIII",{"v":2180,"d":"2,180"}]
[{"$nulls":15},"71-80","с неусовершенствованным покрытием","I","71-80с неусовершенствованным покрытиемI",{"v":3420,"d":"3,420"},{"$nulls":5},"71-80","с неусовершенствованным покрытием","I","71-80с неусовершенствованным покрытиемI",{"v":8490,"d":"8,490"}]
[{"$nulls":15},"71-80","с неусовершенствованным покрытием","II","71-80с неусовершенствованным покрытиемII",{"v":2170,"d":"2,170"},{"$nulls":5},"71-80","с неусовершенствованным покрытием","II","71-80с неусовершенствованным покрытиемII",{"v":3900,"d":"3,900"}]
[{"$nulls":15},"71-80","с неусовершенствованным покрытием","III","71-80с неусовершенствованным покрытиемIII",{"v":1190,"d":"1,190"},{"$nulls":5},"71-80","с неусовершенствованным покрытием","III","71-80с неусовершенствованным покрытиемIII",{"v":1770,"d":"1,770"}]
[{"$nulls":15},"71-80","без покрытий","I","71-80без покрытийI",{"v":2930,"d":"2,930"},{"$nulls":5},"71-80","без покрытий","I","71-80без покрытийI",{"v":7410,"d":"7,410"}]
[{"$nulls":15},"81-90","с усовершенствованным покрытием","I","81-90с усовершенствованным покрытиемI",{"v":4000,"d":"4,000"},{"$nulls":5},"81-90","с усовершенствованным покрытием","I","81-90с усовершенствованным покрытиемI",{"v":11290,"d":"11,290"}]
[{"$nulls":15},"81-90","с усовершенствованным покрытием","II","81-90с усовершенствованным покрытиемII",{"v":2530,"d":"2,530"},{"$nulls":5},"81-90","с усовершенствованным покрытием","II","81-90с усовершенствованным покрытиемII",{"v":5060,"d":"5,060"}]
[{"$nulls":15},"81-90","с усовершенствованным покрытием","III","81-90с усовершенствованным покрытиемIII",{"v":1280,"d":"1,280"},{"$nulls":5},"81-90","с усовершенствованным покрытием","III","81-90с усовершенствованным покрытиемIII",{"v":2210,"d":"2,210"}]
[{"$nulls":15},"81-90","с неусовершенствованным покрытием","I","81-90с неусовершенствованным покрытиемI",{"v":3210,"d":"3,210"},{"$nulls":5},"81-90","с неусовершенствованным покрытием","I","81-90с неусовершенствованным покрытиемI",{"v":8620,"d":"8,620"}]
[{"$nulls":15},"81-90","с неусовершенствованным покрытием","II","81-90с неусовершенствованным покрытиемII",{"v":2100,"d":"2,100"},{"$nulls":5},"81-90","с неусовершенствованным покрытием","II","81-90с неусовершенствованным покрытиемII",{"v":3960,"d":"3,960"}]
[{"$nulls":15},"81-90","с неусовершенствованным покрытием","III","81-90с неусовершенствованным покрытиемIII",{"v":1100,"d":"1,100"},{"$nulls":5},"81-90","с неусовершенствованным покрытием","III","81-90с неусовершенствованным покрытиемIII",{"v":1800,"d":"1,800"}]
[{"$nulls":15},"81-90","без покрытий","I","81-90без покрытийI",{"v":2770,"d":"2,770"},{"$nulls":5},"81-90","без покрытий","I","81-90без покрытийI",{"v":7520,"d":"7,520"}]
[{"$nulls":15},"91-100","с усовершенствованным покрытием","I","91-100с усовершенствованным покрытиемI",{"v":3780,"d":"3,780"},{"$nulls":5},"91-100","с усовершенствованным покрытием","I","91-100с усовершенствованным покрытиемI",{"v":11450,"d":"11,450"}]
[{"$nulls":15},"91-100","с усовершенствованным покрытием","II","91-100с усовершенствованным покрытиемII",{"v":2450,"d":"2,450"},{"$nulls":5},"91-100","с усовершенствованным покрытием","II","91-100с усовершенствованным покрытиемII",{"v":5140,"d":"5,140"}]
[{"$nulls":15},"91-100","с усовершенствованным покрытием","III",{"$f":"CONCATENATE(P71,Q71,R71)","v":"91-100с усовершенствованным покрытиемIII"},{"v":1200,"d":"1,200"},{"$nulls":5},"91-100","с усовершенствованным покрытием","III",{"$f":"CONCATENATE(Z71,AA71,AB71)","v":"91-100с усовершенствованным покрытиемIII"},{"v":2250,"d":"2,250"}]
[{"$nulls":15},"91-100","с неусовершенствованным покрытием","I","91-100с неусовершенствованным покрытиемI",{"v":3040,"d":"3,040"},{"$nulls":5},"91-100","с неусовершенствованным покрытием","I","91-100с неусовершенствованным покрытиемI",{"v":8740,"d":"8,740"}]
[{"$nulls":15},"91-100","с неусовершенствованным покрытием","II","91-100с неусовершенствованным покрытиемII",{"v":2030,"d":"2,030"},{"$nulls":5},"91-100","с неусовершенствованным покрытием","II","91-100с неусовершенствованным покрытиемII",{"v":4020,"d":"4,020"}]
[{"$nulls":15},"91-100","с неусовершенствованным покрытием","III","91-100с неусовершенствованным покрытиемIII",{"v":1040,"d":"1,040"},{"$nulls":5},"91-100","с неусовершенствованным покрытием","III","91-100с неусовершенствованным покрытиемIII",{"v":1840,"d":"1,840"}]
[{"$nulls":15},"91-100","без покрытий","I","91-100без покрытийI",{"v":2630,"d":"2,630"},{"$nulls":5},"91-100","без покрытий","I","91-100без покрытийI",{"v":7640,"d":"7,640"}]
[{"$nulls":15},"101-110","с усовершенствованным покрытием","I","101-110с усовершенствованным покрытиемI",{"v":3580,"d":"3,580"},{"$nulls":5},"101-110","с усовершенствованным покрытием","I","101-110с усовершенствованным покрытиемI",{"v":11600,"d":"11,600"}]
[{"$nulls":15},"101-110","с усовершенствованным покрытием","II","101-110с усовершенствованным покрытиемII",{"v":2370,"d":"2,370"},{"$nulls":5},"101-110","с усовершенствованным покрытием","II","101-110с усовершенствованным покрытиемII",{"v":5230,"d":"5,230"}]
[{"$nulls":15},"101-110","с усовершенствованным покрытием","III","101-110с усовершенствованным покрытиемIII",{"v":1130,"d":"1,130"},{"$nulls":5},"101-110","с усовершенствованным покрытием","III","101-110с усовершенствованным покрытиемIII",{"v":2290,"d":"2,290"}]
[{"$nulls":15},"101-110","с неусовершенствованным покрытием","I","101-110с неусовершенствованным покрытиемI",{"v":2880,"d":"2,880"},{"$nulls":5},"101-110","с неусовершенствованным покрытием","I","101-110с неусовершенствованным покрытиемI",{"v":8870,"d":"8,870"}]
[{"$nulls":15},"101-110","с неусовершенствованным покрытием","II","101-110с неусовершенствованным покрытиемII",{"v":1970,"d":"1,970"},{"$nulls":5},"101-110","с неусовершенствованным покрытием","II","101-110с неусовершенствованным покрытиемII",{"v":4100,"d":"4,100"}]
[{"$nulls":15},"101-110","с неусовершенствованным покрытием","III","101-110с неусовершенствованным покрытиемIII",980,{"$nulls":5},"101-110","с неусовершенствованным покрытием","III","101-110с неусовершенствованным покрытиемIII",{"v":1880,"d":"1,880"}]
[{"$nulls":15},"101-110","без покрытий","I","101-110без покрытийI",{"v":2510,"d":"2,510"},{"$nulls":5},"101-110","без покрытий","I","101-110без покрытийI",{"v":7750,"d":"7,750"}]
[{"$nulls":15},"111-120","с усовершенствованным покрытием","I","111-120с усовершенствованным покрытиемI",{"v":3410,"d":"3,410"},{"$nulls":5},"111-120","с усовершенствованным покрытием","I","111-120с усовершенствованным покрытиемI",{"v":11790,"d":"11,790"}]
[{"$nulls":15},"111-120","с усовершенствованным покрытием","II","111-120с усовершенствованным покрытиемII",{"v":2300,"d":"2,300"},{"$nulls":5},"111-120","с усовершенствованным покрытием","II","111-120с усовершенствованным покрытиемII",{"v":5320,"d":"5,320"}]
[{"$nulls":15},"111-120","с усовершенствованным покрытием","III","111-120с усовершенствованным покрытиемIII",{"v":1070,"d":"1,070"},{"$nulls":5},"111-120","с усовершенствованным покрытием","III","111-120с усовершенствованным покрытиемIII",{"v":2340,"d":"2,340"}]
[{"$nulls":15},"111-120","с неусовершенствованным покрытием","I","111-120с неусовершенствованным покрытиемI",{"v":2740,"d":"2,740"},{"$nulls":5},"111-120","с неусовершенствованным покрытием","I","111-120с неусовершенствованным покрытиемI",{"v":9010,"d":"9,010"}]
[{"$nulls":15},"111-120","с неусовершенствованным покрытием","II","111-120с неусовершенствованным покрытиемII",{"v":1920,"d":"1,920"},{"$nulls":5},"111-120","с неусовершенствованным покрытием","II","111-120с неусовершенствованным покрытиемII",{"v":4180,"d":"4,180"}]
[{"$nulls":15},"111-120","с неусовершенствованным покрытием","III","111-120с неусовершенствованным покрытиемIII",920,{"$nulls":5},"111-120","с неусовершенствованным покрытием","III","111-120с неусовершенствованным покрытиемIII",{"v":1930,"d":"1,930"}]
[{"$nulls":15},"111-120","без покрытий","I","111-120без покрытийI",{"v":2390,"d":"2,390"},{"$nulls":5},"111-120","без покрытий","I","111-120без покрытийI",{"v":7880,"d":"7,880"}]
[{"$nulls":15},"121-130","с усовершенствованным покрытием","I","121-130с усовершенствованным покрытиемI",{"v":3250,"d":"3,250"},{"$nulls":5},"121-130","с усовершенствованным покрытием","I","121-130с усовершенствованным покрытиемI",{"v":11980,"d":"11,980"}]
[{"$nulls":15},"121-130","с усовершенствованным покрытием","II","121-130с усовершенствованным покрытиемII",{"v":2230,"d":"2,230"},{"$nulls":5},"121-130","с усовершенствованным покрытием","II","121-130с усовершенствованным покрытиемII",{"v":5420,"d":"5,420"}]
[{"$nulls":15},"121-130","с усовершенствованным покрытием","III","121-130с усовершенствованным покрытиемIII",{"v":1010,"d":"1,010"},{"$nulls":5},"121-130","с усовершенствованным покрытием","III","121-130с усовершенствованным покрытиемIII",{"v":2380,"d":"2,380"}]
[{"$nulls":15},"121-130","с неусовершенствованным покрытием","I","121-130с неусовершенствованным покрытиемI",{"v":2610,"d":"2,610"},{"$nulls":5},"121-130","с неусовершенствованным покрытием","I","121-130с неусовершенствованным покрытиемI",{"v":9150,"d":"9,150"}]
[{"$nulls":15},"121-130","с неусовершенствованным покрытием","II","121-130с неусовершенствованным покрытиемII",{"v":1860,"d":"1,860"},{"$nulls":5},"121-130","с неусовершенствованным покрытием","II","121-130с неусовершенствованным покрытиемII",{"v":4260,"d":"4,260"}]
[{"$nulls":15},"121-130","с неусовершенствованным покрытием","III","121-130с неусовершенствованным покрытиемIII",880,{"$nulls":5},"121-130","с неусовершенствованным покрытием","III","121-130с неусовершенствованным покрытиемIII",{"v":1970,"d":"1,970"}]
[{"$nulls":15},"121-130","без покрытий","I","121-130без покрытийI",{"v":2280,"d":"2,280"},{"$nulls":5},"121-130","без покрытий","I","121-130без покрытийI",{"v":8010,"d":"8,010"}]

{"sheet":"Укрупненные нормативы(5)","index":5,"n_rows":96,"n_cols":42,"rows_kept":96,"hidden":true,"merged":[[1,38,3,44],[2,2,2,11],[4,2,4,11],[6,2,6,5],[8,4,8,8],[10,2,10,4],[10,7,10,11],[12,2,12,10],[14,2,14,10],[16,2,16,4],[18,2,18,6],[20,2,20,3],[20,4,20,5],[22,2,22,8],[24,2,24,10],[26,2,26,10],[29,2,29,11],[31,2,31,5],[33,4,33,8],[35,2,35,4],[35,7,35,11],[37,2,37,10],[39,2,39,4],[41,2,41,6],[43,2,43,3],[43,4,43,5],[45,2,45,7],[47,2,47,10],[49,2,49,10],[51,2,51,8]]}
[]
[{"$nulls":38},"Общая штатная численность уборщиков территории, чел."]
[null,null,"Укрупненные нормативы численности уборщиков территорий"]
[]
[null,null,"Нормы обслуживания для холодного периода года",{"$nulls":10},"-",{"$nulls":7},"-","-","-",{"$nulls":17},{"$f":"'Укрупненные нормативы'!$J$52+'Укрупненные нормативы(2)'!$J$52+'Укрупненные нормативы(3)'!$J$52+'Укрупненные нормативы(4)'!$J$52+'Укрупненные нормативы(5)'!$J$52+'Укрупненные нормативы(6)'!$J$52","v":{"v":0,"d":"0.00"}}]
[{"$nulls":13},"0,5; 1,0",{"$f":"CONCATENATE(G7,E9,F11)","v":""},"До 10","с усовершенствованным покрытием","I",{"$f":"CONCATENATE(P6,Q6,R6)","v":"До 10с усовершенствованным покрытиемI"},{"v":7600,"d":"7,600"},null,"До 10","с усовершенствованным покрытием","I",{"$f":"CONCATENATE(G32,E34,F36)","v":""},"До 10","с усовершенствованным покрытием","I",{"$f":"CONCATENATE(Z6,AA6,AB6)","v":"До 10с усовершенствованным покрытиемI"},{"v":10100,"d":"10,100"}]
[null,null,"Число дней с твердыми осадками",{"$nulls":10},"0,25; 0,5; 0,75; 1,0",null,"До 10","с усовершенствованным покрытием","II",{"$f":"CONCATENATE(P7,Q7,R7)","v":"До 10с усовершенствованным покрытиемII"},{"v":3440,"d":"3,440"},null,"11-20","с неусовершенствованным покрытием","II",null,"До 10","с усовершенствованным покрытием","II",{"$f":"CONCATENATE(Z7,AA7,AB7)","v":"До 10с усовершенствованным покрытиемII"},{"v":4480,"d":"4,480"}]
[{"$nulls":15},"До 10","с усовершенствованным покрытием","III","До 10с усовершенствованным покрытиемIII",{"v":2590,"d":"2,590"},null,"21-30","без покрытий","III",null,"До 10","с усовершенствованным покрытием","III","До 10с усовершенствованным покрытиемIII",{"v":1940,"d":"1,940"},{"$nulls":4},{"v":10100,"d":"10,100"},{"v":4480,"d":"4,480"},{"v":1940,"d":"1,940"},{"v":7710,"d":"7,710"},{"v":3500,"d":"3,500"},{"v":1570,"d":"1,570"},{"v":6670,"d":"6,670"}]
[null,null,"Виды покрытий",{"$nulls":12},"До 10","с неусовершенствованным покрытием","I","До 10с неусовершенствованным покрытиемI",{"v":5920,"d":"5,920"},null,"31-40",{"$nulls":3},"До 10","с неусовершенствованным покрытием","I","До 10с неусовершенствованным покрытиемI",{"v":7710,"d":"7,710"},{"$nulls":3},"11-20",{"v":10240,"d":"10,240"},{"v":4550,"d":"4,550"},{"v":1970,"d":"1,970"},{"v":7810,"d":"7,810"},{"v":3560,"d":"3,560"},{"v":1600,"d":"1,600"},{"v":6770,"d":"6,770"}]
[{"$nulls":15},"До 10","с неусовершенствованным покрытием","II","До 10с неусовершенствованным покрытиемII",{"v":2800,"d":"2,800"},null,"41-50",{"$nulls":3},"До 10","с неусовершенствованным покрытием","II","До 10с неусовершенствованным покрытиемII",{"v":3500,"d":"3,500"},{"$nulls":3},"21-30",{"v":10370,"d":"10,370"},{"v":4620,"d":"4,620"},{"v":2010,"d":"2,010"},{"v":7910,"d":"7,910"},{"v":3610,"d":"3,610"},{"v":1620,"d":"1,620"},{"v":6870,"d":"6,870"}]
[null,null,"Классы территорий",{"$nulls":4},{"$f":"IF(AND(E9=\"без покрытий\",OR(F11=\"-\",F11=\"II\",F11=\"III\")),\"Укажите класс территории 'I'\",\"\")","v":""},{"$nulls":6},152,"До 10","с неусовершенствованным покрытием","III","До 10с неусовершенствованным покрытиемIII",{"v":2190,"d":"2,190"},null,"51-60",{"$nulls":3},"До 10","с неусовершенствованным покрытием","III","До 10с неусовершенствованным покрытиемIII",{"v":1570,"d":"1,570"},{"$nulls":3},"31-40",{"v":10520,"d":"10,520"},{"v":4690,"d":"4,690"},{"v":2040,"d":"2,040"},{"v":8030,"d":"8,030"},{"v":3670,"d":"3,670"},{"v":1640,"d":"1,640"},{"v":6980,"d":"6,980"}]
[{"$nulls":14},213,"До 10","без покрытий","I","До 10без покрытийI",{"v":5160,"d":"5,160"},null,"61-70",{"$nulls":3},"До 10","без покрытий","I","До 10без покрытийI",{"v":6670,"d":"6,670"},{"$nulls":3},"41-50",{"v":10670,"d":"10,670"},{"v":4750,"d":"4,750"},{"v":2070,"d":"2,070"},{"v":8140,"d":"8,140"},{"v":3730,"d":"3,730"},{"v":1660,"d":"1,660"},{"v":7080,"d":"7,080"}]
[null,null,"Количество дней выпадения неуплотненного свежевыпавшего снега толщиной слоя более 2 см",{"$nulls":11},{"$f":"L13/O11*100","v":{"v":0,"d":"0.00"}},"11-20","с усовершенствованным покрытием","I","11-20с усовершенствованным покрытиемI",{"v":6910,"d":"6,910"},null,"71-80",{"$nulls":3},"11-20","с усовершенствованным покрытием","I","11-20с усовершенствованным покрытиемI",{"v":10240,"d":"10,240"},{"$nulls":3},"51-60",{"v":10820,"d":"10,820"},{"v":4820,"d":"4,820"},{"v":2110,"d":"2,110"},{"v":8250,"d":"8,250"},{"v":3780,"d":"3,780"},{"v":1700,"d":"1,700"},{"v":7180,"d":"7,180"}]
[{"$nulls":15},"11-20","с усовершенствованным покрытием","II","11-20с усовершенствованным покрытиемII",{"v":3290,"d":"3,290"},null,"81-90",{"$nulls":3},"11-20","с усовершенствованным покрытием","II","11-20с усовершенствованным покрытиемII",{"v":4550,"d":"4,550"},{"$nulls":3},"61-70",{"v":10970,"d":"10,970"},{"v":4900,"d":"4,900"},{"v":2140,"d":"2,140"},{"v":8370,"d":"8,370"},{"v":3840,"d":"3,840"},{"v":1730,"d":"1,730"},{"v":7300,"d":"7,300"}]
[null,null,"Количество дней гололеда, когда осуществляется посыпка территорий песком или смесью песка с хлоридами",{"$nulls":11},{"$f":"IF(O13>30,0.95^(O13-30),1)","v":{"v":1,"d":"1.00"}},"11-20","с усовершенствованным покрытием","III","11-20с усовершенствованным покрытиемIII",{"v":2340,"d":"2,340"},null,"91-100",{"$nulls":3},"11-20","с усовершенствованным покрытием","III","11-20с усовершенствованным покрытиемIII",{"v":1970,"d":"1,970"},{"$nulls":3},"71-80",{"v":11130,"d":"11,130"},{"v":4980,"d":"4,980"},{"v":2180,"d":"2,180"},{"v":8490,"d":"8,490"},{"v":3900,"d":"3,900"},{"v":1770,"d":"1,770"},{"v":7410,"d":"7,410"}]
[{"$nulls":15},"11-20","с неусовершенствованным покрытием","I","11-20с неусовершенствованным покрытиемI",{"v":5440,"d":"5,440"},null,"101-110",{"$nulls":3},"11-20","с неусовершенствованным покрытием","I","11-20с неусовершенствованным покрытиемI",{"v":7810,"d":"7,810"},{"$nulls":3},"81-90",{"v":11290,"d":"11,290"},{"v":5060,"d":"5,060"},{"v":2210,"d":"2,210"},{"v":8620,"d":"8,620"},{"v":3960,"d":"3,960"},{"v":1800,"d":"1,800"},{"v":7520,"d":"7,520"}]
[null,null,"Норма обслуживания, м2",null,null,{"$f":"IFERROR(VLOOKUP(O6,S6:T96,2,FALSE)*O15*O18,0)","v":0},{"$nulls":8},{"$f":"L15/O12*100","v":{"v":0,"d":"0.00"}},"11-20","с неусовершенствованным покрытием","II","11-20с неусовершенствованным покрытиемII",{"v":2690,"d":"2,690"},null,"111-120",{"$nulls":3},"11-20","с неусовершенствованным покрытием","II","11-20с неусовершенствованным покрытиемII",{"v":3560,"d":"3,560"},{"$nulls":3},"91-100",{"v":11450,"d":"11,450"},{"v":5140,"d":"5,140"},{"v":2250,"d":"2,250"},{"v":8740,"d":"8,740"},{"v":4020,"d":"4,020"},{"v":1840,"d":"1,840"},{"v":7640,"d":"7,640"}]
[{"$nulls":14},{"$f":"IF(O17>25,0.99^(O17-25),1)","v":{"v":1,"d":"1.00"}},"11-20","с неусовершенствованным покрытием","III","11-20с неусовершенствованным покрытиемIII",{"v":1980,"d":"1,980"},null,"121-130",{"$nulls":3},"11-20","с неусовершенствованным покрытием","III","11-20с неусовершенствованным покрытиемIII",{"v":1600,"d":"1,600"},{"$nulls":3},"101-110",{"v":11600,"d":"11,600"},{"v":5230,"d":"5,230"},{"v":2290,"d":"2,290"},{"v":8870,"d":"8,870"},{"v":4100,"d":"4,100"},{"v":1880,"d":"1,880"},{"v":7750,"d":"7,750"}]
[null,null,"Обслуживаемая площадь территории, м2",{"$nulls":12},"11-20","без покрытий","I","11-20без покрытийI",{"v":4730,"d":"4,730"},{"$nulls":5},"11-20","без покрытий","I","11-20без покрытийI",{"v":6770,"d":"6,770"},{"$nulls":3},"111-120",{"v":11790,"d":"11,790"},{"v":5320,"d":"5,320"},{"v":2340,"d":"2,340"},{"v":9010,"d":"9,010"},{"v":4180,"d":"4,180"},{"v":1930,"d":"1,930"},{"v":7880,"d":"7,880"}]
[{"$nulls":15},"21-30","с усовершенствованным покрытием","I","21-30с усовершенствованным покрытиемI",{"v":6210,"d":"6,210"},{"$nulls":5},"21-30","с усовершенствованным покрытием","I","21-30с усовершенствованным покрытиемI",{"v":10370,"d":"10,370"},{"$nulls":3},"121-130",{"v":11980,"d":"11,980"},{"v":5420,"d":"5,420"},{"v":2380,"d":"2,380"},{"v":9150,"d":"9,150"},{"v":4260,"d":"4,260"},{"v":1970,"d":"1,970"},{"v":8010,"d":"8,010"}]
[null,null,"Градация",{"$nulls":12},"21-30","с усовершенствованным покрытием","II","21-30с усовершенствованным покрытиемII",{"v":3150,"d":"3,150"},{"$nulls":5},"21-30","с усовершенствованным покрытием","II","21-30с усовершенствованным покрытиемII",{"v":4620,"d":"4,620"}]
[{"$nulls":15},"21-30","с усовершенствованным покрытием","III","21-30с усовершенствованным покрытиемIII",{"v":2090,"d":"2,090"},{"$nulls":5},"21-30","с усовершенствованным покрытием","III","21-30с усовершенствованным покрытиемIII",{"v":2010,"d":"2,010"}]
[null,null,"Нормативная численность уборщиков территорий, чел.",{"$nulls":6},{"$f":"IF(F17=0,0,H19/F17*(1+L25/100))","v":{"v":0,"d":"0.00"}},{"$nulls":5},"21-30","с неусовершенствованным покрытием","I","21-30с неусовершенствованным покрытиемI",{"v":4960,"d":"4,960"},null,{"$f":"J23","v":{"v":0,"d":"0.00"}},{"$f":"INT(V23)","v":{"v":0,"d":"0.00"}},{"$f":"V23-W23","v":{"v":0,"d":"0.00"}},null,"21-30","с неусовершенствованным покрытием","I","21-30с неусовершенствованным покрытиемI",{"v":7910,"d":"7,910"}]
[{"$nulls":15},"21-30","с неусовершенствованным покрытием","II","21-30с неусовершенствованным покрытиемII",{"v":2580,"d":"2,580"},{"$nulls":5},"21-30","с неусовершенствованным покрытием","II","21-30с неусовершенствованным покрытиемII",{"v":3610,"d":"3,610"}]
[null,null,"Планируемый процент невыходов по болезни, выполнению государственных обязанностей, трудовым и дополнительным отпускам, предусмотренным коллективным договором",{"$nulls":12},"21-30","с неусовершенствованным покрытием","III","21-30с неусовершенствованным покрытиемIII",{"v":1790,"d":"1,790"},{"$nulls":5},"21-30","с неусовершенствованным покрытием","III","21-30с неусовершенствованным покрытиемIII",{"v":1620,"d":"1,620"}]
[{"$nulls":15},"21-30","без покрытий","I","21-30без покрытийI",{"v":4300,"d":"4,300"},{"$nulls":5},"21-30","без покрытий","I","21-30без покрытийI",{"v":6870,"d":"6,870"}]
[null,null,"Штатная численность уборщиков территорий в холодный период года, чел.",{"$nulls":8},{"$f":"IF(E21=\"0,5; 1,0\",(IF(X23<=0.25,W23,0)+IF(AND(X23<=0.75,X23>0.25),(W23+0.5),0)+IF(X23>0.75,(W23+1),0)),0)+IF(E21=\"0,25; 0,5; 0,75; 1,0\",(IF(X23<=0.12,W23,0)+IF(AND(X23<=0.37,X23>0.12),(W23+0.25),0)+IF(AND(X23<=0.62,X23>0.37),(W23+0.5),0)+IF(AND(X23<=0.87,X23>0.62),(W23+0.75),0)+IF(X23>0.87,(W23+1),0)),0)","v":{"v":0,"d":"0.00"}},{"$nulls":3},"31-40","с усовершенствованным покрытием","I","31-40с усовершенствованным покрытиемI",{"v":5700,"d":"5,700"},{"$nulls":5},"31-40","с усовершенствованным покрытием","I","31-40с усовершенствованным покрытиемI",{"v":10520,"d":"10,520"}]
[{"$nulls":15},"31-40","с усовершенствованным покрытием","II","31-40с усовершенствованным покрытиемII",{"v":3020,"d":"3,020"},{"$nulls":5},"31-40","с усовершенствованным покрытием","II","31-40с усовершенствованным покрытиемII",{"v":4690,"d":"4,690"}]
[{"$nulls":15},"31-40","с усовершенствованным покрытием","III","31-40с усовершенствованным покрытиемIII",{"v":1890,"d":"1,890"},{"$nulls":5},"31-40","с усовершенствованным покрытием","III","31-40с усовершенствованным покрытиемIII",{"v":2040,"d":"2,040"}]
[null,null,"Нормы обслуживания для теплого периода года",{"$nulls":12},"31-40","с неусовершенствованным покрытием","I","31-40с неусовершенствованным покрытиемI",{"v":4560,"d":"4,560"},{"$nulls":5},"31-40","с неусовершенствованным покрытием","I","31-40с неусовершенствованным покрытиемI",{"v":8030,"d":"8,030"}]
[{"$nulls":15},"31-40","с неусовершенствованным покрытием","II","31-40с неусовершенствованным покрытиемII",{"v":2480,"d":"2,480"},{"$nulls":5},"31-40","с неусовершенствованным покрытием","II","31-40с неусовершенствованным покрытиемII",{"v":3670,"d":"3,670"}]
[null,null,"Число дней с жидкими осадками",{"$nulls":12},"31-40","с неусовершенствованным покрытием","III","31-40с неусовершенствованным покрытиемIII",{"v":1620,"d":"1,620"},{"$nulls":5},"31-40","с неусовершенствованным покрытием","III","31-40с неусовершенствованным покрытиемIII",{"v":1640,"d":"1,640"}]
[{"$nulls":15},"31-40","без покрытий","I","31-40без покрытийI",{"v":3920,"d":"3,920"},{"$nulls":5},"31-40","без покрытий","I","31-40без покрытийI",{"v":6980,"d":"6,980"}]
[null,null,"Виды покрытий",{"$nulls":12},"41-50","с усовершенствованным покрытием","I","41-50с усовершенствованным покрытиемI",{"v":5250,"d":"5,250"},{"$nulls":5},"41-50","с усовершенствованным покрытием","I","41-50с усовершенствованным покрытиемI",{"v":10670,"d":"10,670"}]
[{"$nulls":15},"41-50","с усовершенствованным покрытием","II","41-50с усовершенствованным покрытиемII",{"v":2910,"d":"2,910"},{"$nulls":5},"41-50","с усовершенствованным покрытием","II","41-50с усовершенствованным покрытиемII",{"v":4750,"d":"4,750"}]
[null,null,"Классы территорий",{"$nulls":4},{"$f":"IF(AND(E34=\"без покрытий\",OR(F36=\"-\",F36=\"II\",F36=\"III\")),\"Укажите класс территории 'I'\",\"\")","v":""},{"$nulls":6},152,"41-50","с усовершенствованным покрытием","III","41-50с усовершенствованным покрытиемIII",{"v":1720,"d":"1,720"},{"$nulls":5},"41-50","с усовершенствованным покрытием","III","41-50с усовершенствованным покрытиемIII",{"v":2070,"d":"2,070"}]
[{"$nulls":14},213,"41-50","с неусовершенствованным покрытием","I","41-50с неусовершенствованным покрытиемI",{"v":4220,"d":"4,220"},{"$nulls":5},"41-50","с неусовершенствованным покрытием","I","41-50с неусовершенствованным покрытиемI",{"v":8140,"d":"8,140"}]
[null,null,"Количество дней выпадения жидких осадков более 2 см",{"$nulls":11},{"$f":"L38/O37*100","v":{"v":0,"d":"0.00"}},"41-50","с неусовершенствованным покрытием","II","41-50с неусовершенствованным покрытиемII",{"v":2390,"d":"2,390"},{"$nulls":5},"41-50","с неусовершенствованным покрытием","II","41-50с неусовершенствованным покрытиемII",{"v":3730,"d":"3,730"}]
[{"$nulls":14},{"$f":"IF(O38>30,1.01^(O38-30),1)","v":{"v":1,"d":"1.00"}},"41-50","с неусовершенствованным покрытием","III","41-50с неусовершенствованным покрытиемIII",{"v":1480,"d":"1,480"},{"$nulls":5},"41-50","с неусовершенствованным покрытием","III","41-50с неусовершенствованным покрытиемIII",{"v":1660,"d":"1,660"}]
[null,null,"Норма обслуживания, м2",null,null,{"$f":"IFERROR(VLOOKUP($Y$6,$AC$6:$AD$96,2,FALSE)*O39,0)","v":0},{"$nulls":9},"41-50","без покрытий","I","41-50без покрытийI",{"v":3610,"d":"3,610"},{"$nulls":5},"41-50","без покрытий","I","41-50без покрытийI",{"v":7080,"d":"7,080"}]
[{"$nulls":15},"51-60","с усовершенствованным покрытием","I","51-60с усовершенствованным покрытиемI",{"v":4870,"d":"4,870"},{"$nulls":5},"51-60","с усовершенствованным покрытием","I","51-60с усовершенствованным покрытиемI",{"v":10820,"d":"10,820"}]
[null,null,"Обслуживаемая площадь территории, м2",{"$nulls":12},"51-60","с усовершенствованным покрытием","II","51-60с усовершенствованным покрытиемII",{"v":2800,"d":"2,800"},{"$nulls":5},"51-60","с усовершенствованным покрытием","II","51-60с усовершенствованным покрытиемII",{"v":4820,"d":"4,820"}]
[{"$nulls":15},"51-60","с усовершенствованным покрытием","III","51-60с усовершенствованным покрытиемIII",{"v":1580,"d":"1,580"},{"$nulls":5},"51-60","с усовершенствованным покрытием","III","51-60с усовершенствованным покрытиемIII",{"v":2110,"d":"2,110"}]
[null,null,"Градация",{"$nulls":12},"51-60","с неусовершенствованным покрытием","I","51-60с неусовершенствованным покрытиемI",{"v":3900,"d":"3,900"},{"$nulls":5},"51-60","с неусовершенствованным покрытием","I","51-60с неусовершенствованным покрытиемI",{"v":8250,"d":"8,250"}]
[{"$nulls":15},"51-60","с неусовершенствованным покрытием","II","51-60с неусовершенствованным покрытиемII",{"v":2310,"d":"2,310"},{"$nulls":5},"51-60","с неусовершенствованным покрытием","II","51-60с неусовершенствованным покрытиемII",{"v":3780,"d":"3,780"}]
[null,null,"Нормативная численность уборщиков территорий, чел.",{"$nulls":5},{"$f":"IF(F40=0,0,H42/F40*(1+L48/100))","v":{"v":0,"d":"0.00"}},{"$nulls":6},"51-60","с неусовершенствованным покрытием","III","51-60с неусовершенствованным покрытиемIII",{"v":1370,"d":"1,370"},null,{"$f":"I46","v":{"v":0,"d":"0.00"}},{"$f":"INT(V46)","v":{"v":0,"d":"0.00"}},{"$f":"V46-W46","v":{"v":0,"d":"0.00"}},null,"51-60","с неусовершенствованным покрытием","III","51-60с неусовершенствованным покрытиемIII",{"v":1700,"d":"1,700"}]
[{"$nulls":15},"51-60","без покрытий","I","51-60без покрытийI",{"v":3330,"d":"3,330"},{"$nulls":5},"51-60","без покрытий","I","51-60без покрытийI",{"v":7180,"d":"7,180"}]
[null,null,"Планируемый процент невыходов по болезни, выполнению государственных обязанностей, трудовым и дополнительным отпускам, предусмотренным коллективным договором",{"$nulls":12},"61-70","с усовершенствованным покрытием","I","61-70с усовершенствованным покрытиемI",{"v":4540,"d":"4,540"},{"$nulls":5},"61-70","с усовершенствованным покрытием","I","61-70с усовершенствованным покрытиемI",{"v":10970,"d":"10,970"}]
[{"$nulls":15},"61-70","с усовершенствованным покрытием","II","61-70с усовершенствованным покрытиемII",{"v":2700,"d":"2,700"},{"$nulls":5},"61-70","с усовершенствованным покрытием","II","61-70с усовершенствованным покрытиемII",{"v":4900,"d":"4,900"}]
[null,null,"Штатная численность уборщиков территорий в теплый период года, чел.",{"$nulls":8},{"$f":"IF(E44=\"0,5; 1,0\",(IF(X46<=0.25,W46,0)+IF(AND(X46<=0.75,X46>0.25),(W46+0.5),0)+IF(X46>0.75,(W46+1),0)),0)+IF(E44=\"0,25; 0,5; 0,75; 1,0\",(IF(X46<=0.12,W46,0)+IF(AND(X46<=0.37,X46>0.12),(W46+0.25),0)+IF(AND(X46<=0.62,X46>0.37),(W46+0.5),0)+IF(AND(X46<=0.87,X46>0.62),(W46+0.75),0)+IF(X46>0.87,(W46+1),0)),0)","v":{"v":0,"d":"0.00"}},{"$nulls":3},"61-70","с усовершенствованным покрытием","III","61-70с усовершенствованным покрытиемIII",{"v":1470,"d":"1,470"},{"$nulls":5},"61-70","с усовершенствованным покрытием","III","61-70с усовершенствованным покрытиемIII",{"v":2140,"d":"2,140"}]
[{"$nulls":15},"61-70","с неусовершенствованным покрытием","I","61-70с неусовершенствованным покрытиемI",{"v":3650,"d":"3,650"},{"$nulls":5},"61-70","с неусовершенствованным покрытием","I","61-70с неусовершенствованным покрытиемI",{"v":8370,"d":"8,370"}]
[null,null,"Итого штатная численность уборщиков территории, чел.",{"$nulls":6},{"$f":"L50+L27","v":{"v":0,"d":"0.00"}},{"$nulls":5},"61-70","с неусовершенствованным покрытием","II","61-70с неусовершенствованным покрытиемII",{"v":2230,"d":"2,230"},{"$nulls":5},"61-70","с неусовершенствованным покрытием","II","61-70с неусовершенствованным покрытиемII",{"v":3840,"d":"3,840"}]
[{"$nulls":15},"61-70","с неусовершенствованным покрытием","III","61-70с неусовершенствованным покрытиемIII",{"v":1270,"d":"1,270"},{"$nulls":5},"61-70","с неусовершенствованным покрытием","III","61-70с неусовершенствованным покрытиемIII",{"v":1730,"d":"1,730"}]
[{"$nulls":15},"61-70","без покрытий","I","61-70без покрытийI",{"v":3090,"d":"3,090"},{"$nulls":5},"61-70","без покрытий","I","61-70без покрытийI",{"v":7300,"d":"7,300"}]
[{"$nulls":15},"71-80","с усовершенствованным покрытием","I","71-80с усовершенствованным покрытиемI",{"v":4260,"d":"4,260"},{"$nulls":5},"71-80","с усовершенствованным покрытием","I","71-80с усовершенствованным покрытиемI",{"v":11130,"d":"11,130"}]
[{"$nulls":15},"71-80","с усовершенствованным покрытием","II","71-80с усовершенствованным покрытиемII",{"v":2610,"d":"2,610"},{"$nulls":5},"71-80","с усовершенствованным покрытием","II","71-80с усовершенствованным покрытиемII",{"v":4980,"d":"4,980"}]
[{"$nulls":15},"71-80","с усовершенствованным покрытием","III","71-80с усовершенствованным покрытиемIII",{"v":1370,"d":"1,370"},{"$nulls":5},"71-80","с усовершенствованным покрытием","III","71-80с усовершенствованным покрытиемIII",{"v":2180,"d":"2,180"}]
[{"$nulls":15},"71-80","с неусовершенствованным покрытием","I","71-80с неусовершенствованным покрытиемI",{"v":3420,"d":"3,420"},{"$nulls":5},"71-80","с неусовершенствованным покрытием","I","71-80с неусовершенствованным покрытиемI",{"v":8490,"d":"8,490"}]
[{"$nulls":15},"71-80","с неусовершенствованным покрытием","II","71-80с неусовершенствованным покрытиемII",{"v":2170,"d":"2,170"},{"$nulls":5},"71-80","с неусовершенствованным покрытием","II","71-80с неусовершенствованным покрытиемII",{"v":3900,"d":"3,900"}]
[{"$nulls":15},"71-80","с неусовершенствованным покрытием","III","71-80с неусовершенствованным покрытиемIII",{"v":1190,"d":"1,190"},{"$nulls":5},"71-80","с неусовершенствованным покрытием","III","71-80с неусовершенствованным покрытиемIII",{"v":1770,"d":"1,770"}]
[{"$nulls":15},"71-80","без покрытий","I","71-80без покрытийI",{"v":2930,"d":"2,930"},{"$nulls":5},"71-80","без покрытий","I","71-80без покрытийI",{"v":7410,"d":"7,410"}]
[{"$nulls":15},"81-90","с усовершенствованным покрытием","I","81-90с усовершенствованным покрытиемI",{"v":4000,"d":"4,000"},{"$nulls":5},"81-90","с усовершенствованным покрытием","I","81-90с усовершенствованным покрытиемI",{"v":11290,"d":"11,290"}]
[{"$nulls":15},"81-90","с усовершенствованным покрытием","II","81-90с усовершенствованным покрытиемII",{"v":2530,"d":"2,530"},{"$nulls":5},"81-90","с усовершенствованным покрытием","II","81-90с усовершенствованным покрытиемII",{"v":5060,"d":"5,060"}]
[{"$nulls":15},"81-90","с усовершенствованным покрытием","III","81-90с усовершенствованным покрытиемIII",{"v":1280,"d":"1,280"},{"$nulls":5},"81-90","с усовершенствованным покрытием","III","81-90с усовершенствованным покрытиемIII",{"v":2210,"d":"2,210"}]
[{"$nulls":15},"81-90","с неусовершенствованным покрытием","I","81-90с неусовершенствованным покрытиемI",{"v":3210,"d":"3,210"},{"$nulls":5},"81-90","с неусовершенствованным покрытием","I","81-90с неусовершенствованным покрытиемI",{"v":8620,"d":"8,620"}]
[{"$nulls":15},"81-90","с неусовершенствованным покрытием","II","81-90с неусовершенствованным покрытиемII",{"v":2100,"d":"2,100"},{"$nulls":5},"81-90","с неусовершенствованным покрытием","II","81-90с неусовершенствованным покрытиемII",{"v":3960,"d":"3,960"}]
[{"$nulls":15},"81-90","с неусовершенствованным покрытием","III","81-90с неусовершенствованным покрытиемIII",{"v":1100,"d":"1,100"},{"$nulls":5},"81-90","с неусовершенствованным покрытием","III","81-90с неусовершенствованным покрытиемIII",{"v":1800,"d":"1,800"}]
[{"$nulls":15},"81-90","без покрытий","I","81-90без покрытийI",{"v":2770,"d":"2,770"},{"$nulls":5},"81-90","без покрытий","I","81-90без покрытийI",{"v":7520,"d":"7,520"}]
[{"$nulls":15},"91-100","с усовершенствованным покрытием","I","91-100с усовершенствованным покрытиемI",{"v":3780,"d":"3,780"},{"$nulls":5},"91-100","с усовершенствованным покрытием","I","91-100с усовершенствованным покрытиемI",{"v":11450,"d":"11,450"}]
[{"$nulls":15},"91-100","с усовершенствованным покрытием","II","91-100с усовершенствованным покрытиемII",{"v":2450,"d":"2,450"},{"$nulls":5},"91-100","с усовершенствованным покрытием","II","91-100с усовершенствованным покрытиемII",{"v":5140,"d":"5,140"}]
[{"$nulls":15},"91-100","с усовершенствованным покрытием","III",{"$f":"CONCATENATE(P71,Q71,R71)","v":"91-100с усовершенствованным покрытиемIII"},{"v":1200,"d":"1,200"},{"$nulls":5},"91-100","с усовершенствованным покрытием","III",{"$f":"CONCATENATE(Z71,AA71,AB71)","v":"91-100с усовершенствованным покрытиемIII"},{"v":2250,"d":"2,250"}]
[{"$nulls":15},"91-100","с неусовершенствованным покрытием","I","91-100с неусовершенствованным покрытиемI",{"v":3040,"d":"3,040"},{"$nulls":5},"91-100","с неусовершенствованным покрытием","I","91-100с неусовершенствованным покрытиемI",{"v":8740,"d":"8,740"}]
[{"$nulls":15},"91-100","с неусовершенствованным покрытием","II","91-100с неусовершенствованным покрытиемII",{"v":2030,"d":"2,030"},{"$nulls":5},"91-100","с неусовершенствованным покрытием","II","91-100с неусовершенствованным покрытиемII",{"v":4020,"d":"4,020"}]
[{"$nulls":15},"91-100","с неусовершенствованным покрытием","III","91-100с неусовершенствованным покрытиемIII",{"v":1040,"d":"1,040"},{"$nulls":5},"91-100","с неусовершенствованным покрытием","III","91-100с неусовершенствованным покрытиемIII",{"v":1840,"d":"1,840"}]
[{"$nulls":15},"91-100","без покрытий","I","91-100без покрытийI",{"v":2630,"d":"2,630"},{"$nulls":5},"91-100","без покрытий","I","91-100без покрытийI",{"v":7640,"d":"7,640"}]
[{"$nulls":15},"101-110","с усовершенствованным покрытием","I","101-110с усовершенствованным покрытиемI",{"v":3580,"d":"3,580"},{"$nulls":5},"101-110","с усовершенствованным покрытием","I","101-110с усовершенствованным покрытиемI",{"v":11600,"d":"11,600"}]
[{"$nulls":15},"101-110","с усовершенствованным покрытием","II","101-110с усовершенствованным покрытиемII",{"v":2370,"d":"2,370"},{"$nulls":5},"101-110","с усовершенствованным покрытием","II","101-110с усовершенствованным покрытиемII",{"v":5230,"d":"5,230"}]
[{"$nulls":15},"101-110","с усовершенствованным покрытием","III","101-110с усовершенствованным покрытиемIII",{"v":1130,"d":"1,130"},{"$nulls":5},"101-110","с усовершенствованным покрытием","III","101-110с усовершенствованным покрытиемIII",{"v":2290,"d":"2,290"}]
[{"$nulls":15},"101-110","с неусовершенствованным покрытием","I","101-110с неусовершенствованным покрытиемI",{"v":2880,"d":"2,880"},{"$nulls":5},"101-110","с неусовершенствованным покрытием","I","101-110с неусовершенствованным покрытиемI",{"v":8870,"d":"8,870"}]
[{"$nulls":15},"101-110","с неусовершенствованным покрытием","II","101-110с неусовершенствованным покрытиемII",{"v":1970,"d":"1,970"},{"$nulls":5},"101-110","с неусовершенствованным покрытием","II","101-110с неусовершенствованным покрытиемII",{"v":4100,"d":"4,100"}]
[{"$nulls":15},"101-110","с неусовершенствованным покрытием","III","101-110с неусовершенствованным покрытиемIII",980,{"$nulls":5},"101-110","с неусовершенствованным покрытием","III","101-110с неусовершенствованным покрытиемIII",{"v":1880,"d":"1,880"}]
[{"$nulls":15},"101-110","без покрытий","I","101-110без покрытийI",{"v":2510,"d":"2,510"},{"$nulls":5},"101-110","без покрытий","I","101-110без покрытийI",{"v":7750,"d":"7,750"}]
[{"$nulls":15},"111-120","с усовершенствованным покрытием","I","111-120с усовершенствованным покрытиемI",{"v":3410,"d":"3,410"},{"$nulls":5},"111-120","с усовершенствованным покрытием","I","111-120с усовершенствованным покрытиемI",{"v":11790,"d":"11,790"}]
[{"$nulls":15},"111-120","с усовершенствованным покрытием","II","111-120с усовершенствованным покрытиемII",{"v":2300,"d":"2,300"},{"$nulls":5},"111-120","с усовершенствованным покрытием","II","111-120с усовершенствованным покрытиемII",{"v":5320,"d":"5,320"}]
[{"$nulls":15},"111-120","с усовершенствованным покрытием","III","111-120с усовершенствованным покрытиемIII",{"v":1070,"d":"1,070"},{"$nulls":5},"111-120","с усовершенствованным покрытием","III","111-120с усовершенствованным покрытиемIII",{"v":2340,"d":"2,340"}]
[{"$nulls":15},"111-120","с неусовершенствованным покрытием","I","111-120с неусовершенствованным покрытиемI",{"v":2740,"d":"2,740"},{"$nulls":5},"111-120","с неусовершенствованным покрытием","I","111-120с неусовершенствованным покрытиемI",{"v":9010,"d":"9,010"}]
[{"$nulls":15},"111-120","с неусовершенствованным покрытием","II","111-120с неусовершенствованным покрытиемII",{"v":1920,"d":"1,920"},{"$nulls":5},"111-120","с неусовершенствованным покрытием","II","111-120с неусовершенствованным покрытиемII",{"v":4180,"d":"4,180"}]
[{"$nulls":15},"111-120","с неусовершенствованным покрытием","III","111-120с неусовершенствованным покрытиемIII",920,{"$nulls":5},"111-120","с неусовершенствованным покрытием","III","111-120с неусовершенствованным покрытиемIII",{"v":1930,"d":"1,930"}]
[{"$nulls":15},"111-120","без покрытий","I","111-120без покрытийI",{"v":2390,"d":"2,390"},{"$nulls":5},"111-120","без покрытий","I","111-120без покрытийI",{"v":7880,"d":"7,880"}]
[{"$nulls":15},"121-130","с усовершенствованным покрытием","I","121-130с усовершенствованным покрытиемI",{"v":3250,"d":"3,250"},{"$nulls":5},"121-130","с усовершенствованным покрытием","I","121-130с усовершенствованным покрытиемI",{"v":11980,"d":"11,980"}]
[{"$nulls":15},"121-130","с усовершенствованным покрытием","II","121-130с усовершенствованным покрытиемII",{"v":2230,"d":"2,230"},{"$nulls":5},"121-130","с усовершенствованным покрытием","II","121-130с усовершенствованным покрытиемII",{"v":5420,"d":"5,420"}]
[{"$nulls":15},"121-130","с усовершенствованным покрытием","III","121-130с усовершенствованным покрытиемIII",{"v":1010,"d":"1,010"},{"$nulls":5},"121-130","с усовершенствованным покрытием","III","121-130с усовершенствованным покрытиемIII",{"v":2380,"d":"2,380"}]
[{"$nulls":15},"121-130","с неусовершенствованным покрытием","I","121-130с неусовершенствованным покрытиемI",{"v":2610,"d":"2,610"},{"$nulls":5},"121-130","с неусовершенствованным покрытием","I","121-130с неусовершенствованным покрытиемI",{"v":9150,"d":"9,150"}]
[{"$nulls":15},"121-130","с неусовершенствованным покрытием","II","121-130с неусовершенствованным покрытиемII",{"v":1860,"d":"1,860"},{"$nulls":5},"121-130","с неусовершенствованным покрытием","II","121-130с неусовершенствованным покрытиемII",{"v":4260,"d":"4,260"}]
[{"$nulls":15},"121-130","с неусовершенствованным покрытием","III","121-130с неусовершенствованным покрытиемIII",880,{"$nulls":5},"121-130","с неусовершенствованным покрытием","III","121-130с неусовершенствованным покрытиемIII",{"v":1970,"d":"1,970"}]
[{"$nulls":15},"121-130","без покрытий","I","121-130без покрытийI",{"v":2280,"d":"2,280"},{"$nulls":5},"121-130","без покрытий","I","121-130без покрытийI",{"v":8010,"d":"8,010"}]

{"sheet":"Укрупненные нормативы(6)","index":6,"n_rows":96,"n_cols":42,"rows_kept":96,"hidden":true,"merged":[[1,38,3,44],[2,2,2,11],[4,2,4,11],[6,2,6,5],[8,4,8,8],[10,2,10,4],[10,7,10,11],[12,2,12,10],[14,2,14,10],[16,2,16,4],[18,2,18,6],[20,2,20,3],[20,4,20,5],[22,2,22,8],[24,2,24,10],[26,2,26,10],[29,2,29,11],[31,2,31,5],[33,4,33,8],[35,2,35,4],[35,7,35,11],[37,2,37,10],[39,2,39,4],[41,2,41,6],[43,2,43,3],[43,4,43,5],[45,2,45,7],[47,2,47,10],[49,2,49,10],[51,2,51,8]]}
[]
[{"$nulls":38},"Общая штатная численность уборщиков территории, чел."]
[null,null,"Укрупненные нормативы численности уборщиков территорий"]
[]
[null,null,"Нормы обслуживания для холодного периода года",{"$nulls":10},"-",{"$nulls":7},"-","-","-",{"$nulls":17},{"$f":"'Укрупненные нормативы'!$J$52+'Укрупненные нормативы(2)'!$J$52+'Укрупненные нормативы(3)'!$J$52+'Укрупненные нормативы(4)'!$J$52+'Укрупненные нормативы(5)'!$J$52+'Укрупненные нормативы(6)'!$J$52","v":{"v":0,"d":"0.00"}}]
[{"$nulls":13},"0,5; 1,0",{"$f":"CONCATENATE(G7,E9,F11)","v":""},"До 10","с усовершенствованным покрытием","I",{"$f":"CONCATENATE(P6,Q6,R6)","v":"До 10с усовершенствованным покрытиемI"},{"v":7600,"d":"7,600"},null,"До 10","с усовершенствованным покрытием","I",{"$f":"CONCATENATE(G32,E34,F36)","v":""},"До 10","с усовершенствованным покрытием","I",{"$f":"CONCATENATE(Z6,AA6,AB6)","v":"До 10с усовершенствованным покрытиемI"},{"v":10100,"d":"10,100"}]
[null,null,"Число дней с твердыми осадками",{"$nulls":10},"0,25; 0,5; 0,75; 1,0",null,"До 10","с усовершенствованным покрытием","II",{"$f":"CONCATENATE(P7,Q7,R7)","v":"До 10с усовершенствованным покрытиемII"},{"v":3440,"d":"3,440"},null,"11-20","с неусовершенствованным покрытием","II",null,"До 10","с усовершенствованным покрытием","II",{"$f":"CONCATENATE(Z7,AA7,AB7)","v":"До 10с усовершенствованным покрытиемII"},{"v":4480,"d":"4,480"}]
[{"$nulls":15},"До 10","с усовершенствованным покрытием","III","До 10с усовершенствованным покрытиемIII",{"v":2590,"d":"2,590"},null,"21-30","без покрытий","III",null,"До 10","с усовершенствованным покрытием","III","До 10с усовершенствованным покрытиемIII",{"v":1940,"d":"1,940"},{"$nulls":4},{"v":10100,"d":"10,100"},{"v":4480,"d":"4,480"},{"v":1940,"d":"1,940"},{"v":7710,"d":"7,710"},{"v":3500,"d":"3,500"},{"v":1570,"d":"1,570"},{"v":6670,"d":"6,670"}]
[null,null,"Виды покрытий",{"$nulls":12},"До 10","с неусовершенствованным покрытием","I","До 10с неусовершенствованным покрытиемI",{"v":5920,"d":"5,920"},null,"31-40",{"$nulls":3},"До 10","с неусовершенствованным покрытием","I","До 10с неусовершенствованным покрытиемI",{"v":7710,"d":"7,710"},{"$nulls":3},"11-20",{"v":10240,"d":"10,240"},{"v":4550,"d":"4,550"},{"v":1970,"d":"1,970"},{"v":7810,"d":"7,810"},{"v":3560,"d":"3,560"},{"v":1600,"d":"1,600"},{"v":6770,"d":"6,770"}]
[{"$nulls":15},"До 10","с неусовершенствованным покрытием","II","До 10с неусовершенствованным покрытиемII",{"v":2800,"d":"2,800"},null,"41-50",{"$nulls":3},"До 10","с неусовершенствованным покрытием","II","До 10с неусовершенствованным покрытиемII",{"v":3500,"d":"3,500"},{"$nulls":3},"21-30",{"v":10370,"d":"10,370"},{"v":4620,"d":"4,620"},{"v":2010,"d":"2,010"},{"v":7910,"d":"7,910"},{"v":3610,"d":"3,610"},{"v":1620,"d":"1,620"},{"v":6870,"d":"6,870"}]
[null,null,"Классы территорий",{"$nulls":4},{"$f":"IF(AND(E9=\"без покрытий\",OR(F11=\"-\",F11=\"II\",F11=\"III\")),\"Укажите класс территории 'I'\",\"\")","v":""},{"$nulls":6},152,"До 10","с неусовершенствованным покрытием","III","До 10с неусовершенствованным покрытиемIII",{"v":2190,"d":"2,190"},null,"51-60",{"$nulls":3},"До 10","с неусовершенствованным покрытием","III","До 10с неусовершенствованным покрытиемIII",{"v":1570,"d":"1,570"},{"$nulls":3},"31-40",{"v":10520,"d":"10,520"},{"v":4690,"d":"4,690"},{"v":2040,"d":"2,040"},{"v":8030,"d":"8,030"},{"v":3670,"d":"3,670"},{"v":1640,"d":"1,640"},{"v":6980,"d":"6,980"}]
[{"$nulls":14},213,"До 10","без покрытий","I","До 10без покрытийI",{"v":5160,"d":"5,160"},null,"61-70",{"$nulls":3},"До 10","без покрытий","I","До 10без покрытийI",{"v":6670,"d":"6,670"},{"$nulls":3},"41-50",{"v":10670,"d":"10,670"},{"v":4750,"d":"4,750"},{"v":2070,"d":"2,070"},{"v":8140,"d":"8,140"},{"v":3730,"d":"3,730"},{"v":1660,"d":"1,660"},{"v":7080,"d":"7,080"}]
[null,null,"Количество дней выпадения неуплотненного свежевыпавшего снега толщиной слоя более 2 см",{"$nulls":11},{"$f":"L13/O11*100","v":{"v":0,"d":"0.00"}},"11-20","с усовершенствованным покрытием","I","11-20с усовершенствованным покрытиемI",{"v":6910,"d":"6,910"},null,"71-80",{"$nulls":3},"11-20","с усовершенствованным покрытием","I","11-20с усовершенствованным покрытиемI",{"v":10240,"d":"10,240"},{"$nulls":3},"51-60",{"v":10820,"d":"10,820"},{"v":4820,"d":"4,820"},{"v":2110,"d":"2,110"},{"v":8250,"d":"8,250"},{"v":3780,"d":"3,780"},{"v":1700,"d":"1,700"},{"v":7180,"d":"7,180"}]
[{"$nulls":15},"11-20","с усовершенствованным покрытием","II","11-20с усовершенствованным покрытиемII",{"v":3290,"d":"3,290"},null,"81-90",{"$nulls":3},"11-20","с усовершенствованным покрытием","II","11-20с усовершенствованным покрытиемII",{"v":4550,"d":"4,550"},{"$nulls":3},"61-70",{"v":10970,"d":"10,970"},{"v":4900,"d":"4,900"},{"v":2140,"d":"2,140"},{"v":8370,"d":"8,370"},{"v":3840,"d":"3,840"},{"v":1730,"d":"1,730"},{"v":7300,"d":"7,300"}]
[null,null,"Количество дней гололеда, когда осуществляется посыпка территорий песком или смесью песка с хлоридами",{"$nulls":11},{"$f":"IF(O13>30,0.95^(O13-30),1)","v":{"v":1,"d":"1.00"}},"11-20","с усовершенствованным покрытием","III","11-20с усовершенствованным покрытиемIII",{"v":2340,"d":"2,340"},null,"91-100",{"$nulls":3},"11-20","с усовершенствованным покрытием","III","11-20с усовершенствованным покрытиемIII",{"v":1970,"d":"1,970"},{"$nulls":3},"71-80",{"v":11130,"d":"11,130"},{"v":4980,"d":"4,980"},{"v":2180,"d":"2,180"},{"v":8490,"d":"8,490"},{"v":3900,"d":"3,900"},{"v":1770,"d":"1,770"},{"v":7410,"d":"7,410"}]
[{"$nulls":15},"11-20","с неусовершенствованным покрытием","I","11-20с неусовершенствованным покрытиемI",{"v":5440,"d":"5,440"},null,"101-110",{"$nulls":3},"11-20","с неусовершенствованным покрытием","I","11-20с неусовершенствованным покрытиемI",{"v":7810,"d":"7,810"},{"$nulls":3},"81-90",{"v":11290,"d":"11,290"},{"v":5060,"d":"5,060"},{"v":2210,"d":"2,210"},{"v":8620,"d":"8,620"},{"v":3960,"d":"3,960"},{"v":1800,"d":"1,800"},{"v":7520,"d":"7,520"}]
[null,null,"Норма обслуживания, м2",null,null,{"$f":"IFERROR(VLOOKUP(O6,S6:T96,2,FALSE)*O15*O18,0)","v":0},{"$nulls":8},{"$f":"L15/O12*100","v":{"v":0,"d":"0.00"}},"11-20","с неусовершенствованным покрытием","II","11-20с неусовершенствованным покрытиемII",{"v":2690,"d":"2,690"},null,"111-120",{"$nulls":3},"11-20","с неусовершенствованным покрытием","II","11-20с неусовершенствованным покрытиемII",{"v":3560,"d":"3,560"},{"$nulls":3},"91-100",{"v":11450,"d":"11,450"},{"v":5140,"d":"5,140"},{"v":2250,"d":"2,250"},{"v":8740,"d":"8,740"},{"v":4020,"d":"4,020"},{"v":1840,"d":"1,840"},{"v":7640,"d":"7,640"}]
[{"$nulls":14},{"$f":"IF(O17>25,0.99^(O17-25),1)","v":{"v":1,"d":"1.00"}},"11-20","с неусовершенствованным покрытием","III","11-20с неусовершенствованным покрытиемIII",{"v":1980,"d":"1,980"},null,"121-130",{"$nulls":3},"11-20","с неусовершенствованным покрытием","III","11-20с неусовершенствованным покрытиемIII",{"v":1600,"d":"1,600"},{"$nulls":3},"101-110",{"v":11600,"d":"11,600"},{"v":5230,"d":"5,230"},{"v":2290,"d":"2,290"},{"v":8870,"d":"8,870"},{"v":4100,"d":"4,100"},{"v":1880,"d":"1,880"},{"v":7750,"d":"7,750"}]
[null,null,"Обслуживаемая площадь территории, м2",{"$nulls":12},"11-20","без покрытий","I","11-20без покрытийI",{"v":4730,"d":"4,730"},{"$nulls":5},"11-20","без покрытий","I","11-20без покрытийI",{"v":6770,"d":"6,770"},{"$nulls":3},"111-120",{"v":11790,"d":"11,790"},{"v":5320,"d":"5,320"},{"v":2340,"d":"2,340"},{"v":9010,"d":"9,010"},{"v":4180,"d":"4,180"},{"v":1930,"d":"1,930"},{"v":7880,"d":"7,880"}]
[{"$nulls":15},"21-30","с усовершенствованным покрытием","I","21-30с усовершенствованным покрытиемI",{"v":6210,"d":"6,210"},{"$nulls":5},"21-30","с усовершенствованным покрытием","I","21-30с усовершенствованным покрытиемI",{"v":10370,"d":"10,370"},{"$nulls":3},"121-130",{"v":11980,"d":"11,980"},{"v":5420,"d":"5,420"},{"v":2380,"d":"2,380"},{"v":9150,"d":"9,150"},{"v":4260,"d":"4,260"},{"v":1970,"d":"1,970"},{"v":8010,"d":"8,010"}]
[null,null,"Градация",{"$nulls":12},"21-30","с усовершенствованным покрытием","II","21-30с усовершенствованным покрытиемII",{"v":3150,"d":"3,150"},{"$nulls":5},"21-30","с усовершенствованным покрытием","II","21-30с усовершенствованным покрытиемII",{"v":4620,"d":"4,620"}]
[{"$nulls":15},"21-30","с усовершенствованным покрытием","III","21-30с усовершенствованным покрытиемIII",{"v":2090,"d":"2,090"},{"$nulls":5},"21-30","с усовершенствованным покрытием","III","21-30с усовершенствованным покрытиемIII",{"v":2010,"d":"2,010"}]
[null,null,"Нормативная численность уборщиков территорий, чел.",{"$nulls":6},{"$f":"IF(F17=0,0,H19/F17*(1+L25/100))","v":{"v":0,"d":"0.00"}},{"$nulls":5},"21-30","с неусовершенствованным покрытием","I","21-30с неусовершенствованным покрытиемI",{"v":4960,"d":"4,960"},null,{"$f":"J23","v":{"v":0,"d":"0.00"}},{"$f":"INT(V23)","v":{"v":0,"d":"0.00"}},{"$f":"V23-W23","v":{"v":0,"d":"0.00"}},null,"21-30","с неусовершенствованным покрытием","I","21-30с неусовершенствованным покрытиемI",{"v":7910,"d":"7,910"}]
[{"$nulls":15},"21-30","с неусовершенствованным покрытием","II","21-30с неусовершенствованным покрытиемII",{"v":2580,"d":"2,580"},{"$nulls":5},"21-30","с неусовершенствованным покрытием","II","21-30с неусовершенствованным покрытиемII",{"v":3610,"d":"3,610"}]
[null,null,"Планируемый процент невыходов по болезни, выполнению государственных обязанностей, трудовым и дополнительным отпускам, предусмотренным коллективным договором",{"$nulls":12},"21-30","с неусовершенствованным покрытием","III","21-30с неусовершенствованным покрытиемIII",{"v":1790,"d":"1,790"},{"$nulls":5},"21-30","с неусовершенствованным покрытием","III","21-30с неусовершенствованным покрытиемIII",{"v":1620,"d":"1,620"}]
[{"$nulls":15},"21-30","без покрытий","I","21-30без покрытийI",{"v":4300,"d":"4,300"},{"$nulls":5},"21-30","без покрытий","I","21-30без покрытийI",{"v":6870,"d":"6,870"}]
[null,null,"Штатная численность уборщиков территорий в холодный период года, чел.",{"$nulls":8},{"$f":"IF(E21=\"0,5; 1,0\",(IF(X23<=0.25,W23,0)+IF(AND(X23<=0.75,X23>0.25),(W23+0.5),0)+IF(X23>0.75,(W23+1),0)),0)+IF(E21=\"0,25; 0,5; 0,75; 1,0\",(IF(X23<=0.12,W23,0)+IF(AND(X23<=0.37,X23>0.12),(W23+0.25),0)+IF(AND(X23<=0.62,X23>0.37),(W23+0.5),0)+IF(AND(X23<=0.87,X23>0.62),(W23+0.75),0)+IF(X23>0.87,(W23+1),0)),0)","v":{"v":0,"d":"0.00"}},{"$nulls":3},"31-40","с усовершенствованным покрытием","I","31-40с усовершенствованным покрытиемI",{"v":5700,"d":"5,700"},{"$nulls":5},"31-40","с усовершенствованным покрытием","I","31-40с усовершенствованным покрытиемI",{"v":10520,"d":"10,520"}]
[{"$nulls":15},"31-40","с усовершенствованным покрытием","II","31-40с усовершенствованным покрытиемII",{"v":3020,"d":"3,020"},{"$nulls":5},"31-40","с усовершенствованным покрытием","II","31-40с усовершенствованным покрытиемII",{"v":4690,"d":"4,690"}]
[{"$nulls":15},"31-40","с усовершенствованным покрытием","III","31-40с усовершенствованным покрытиемIII",{"v":1890,"d":"1,890"},{"$nulls":5},"31-40","с усовершенствованным покрытием","III","31-40с усовершенствованным покрытиемIII",{"v":2040,"d":"2,040"}]
[null,null,"Нормы обслуживания для теплого периода года",{"$nulls":12},"31-40","с неусовершенствованным покрытием","I","31-40с неусовершенствованным покрытиемI",{"v":4560,"d":"4,560"},{"$nulls":5},"31-40","с неусовершенствованным покрытием","I","31-40с неусовершенствованным покрытиемI",{"v":8030,"d":"8,030"}]
[{"$nulls":15},"31-40","с неусовершенствованным покрытием","II","31-40с неусовершенствованным покрытиемII",{"v":2480,"d":"2,480"},{"$nulls":5},"31-40","с неусовершенствованным покрытием","II","31-40с неусовершенствованным покрытиемII",{"v":3670,"d":"3,670"}]
[null,null,"Число дней с жидкими осадками",{"$nulls":12},"31-40","с неусовершенствованным покрытием","III","31-40с неусовершенствованным покрытиемIII",{"v":1620,"d":"1,620"},{"$nulls":5},"31-40","с неусовершенствованным покрытием","III","31-40с неусовершенствованным покрытиемIII",{"v":1640,"d":"1,640"}]
[{"$nulls":15},"31-40","без покрытий","I","31-40без покрытийI",{"v":3920,"d":"3,920"},{"$nulls":5},"31-40","без покрытий","I","31-40без покрытийI",{"v":6980,"d":"6,980"}]
[null,null,"Виды покрытий",{"$nulls":12},"41-50","с усовершенствованным покрытием","I","41-50с усовершенствованным покрытиемI",{"v":5250,"d":"5,250"},{"$nulls":5},"41-50","с усовершенствованным покрытием","I","41-50с усовершенствованным покрытиемI",{"v":10670,"d":"10,670"}]
[{"$nulls":15},"41-50","с усовершенствованным покрытием","II","41-50с усовершенствованным покрытиемII",{"v":2910,"d":"2,910"},{"$nulls":5},"41-50","с усовершенствованным покрытием","II","41-50с усовершенствованным покрытиемII",{"v":4750,"d":"4,750"}]
[null,null,"Классы территорий",{"$nulls":4},{"$f":"IF(AND(E34=\"без покрытий\",OR(F36=\"-\",F36=\"II\",F36=\"III\")),\"Укажите класс территории 'I'\",\"\")","v":""},{"$nulls":6},152,"41-50","с усовершенствованным покрытием","III","41-50с усовершенствованным покрытиемIII",{"v":1720,"d":"1,720"},{"$nulls":5},"41-50","с усовершенствованным покрытием","III","41-50с усовершенствованным покрытиемIII",{"v":2070,"d":"2,070"}]
[{"$nulls":14},213,"41-50","с неусовершенствованным покрытием","I","41-50с неусовершенствованным покрытиемI",{"v":4220,"d":"4,220"},{"$nulls":5},"41-50","с неусовершенствованным покрытием","I","41-50с неусовершенствованным покрытиемI",{"v":8140,"d":"8,140"}]
[null,null,"Количество дней выпадения жидких осадков более 2 см",{"$nulls":11},{"$f":"L38/O37*100","v":{"v":0,"d":"0.00"}},"41-50","с неусовершенствованным покрытием","II","41-50с неусовершенствованным покрытиемII",{"v":2390,"d":"2,390"},{"$nulls":5},"41-50","с неусовершенствованным покрытием","II","41-50с неусовершенствованным покрытиемII",{"v":3730,"d":"3,730"}]
[{"$nulls":14},{"$f":"IF(O38>30,1.01^(O38-30),1)","v":{"v":1,"d":"1.00"}},"41-50","с неусовершенствованным покрытием","III","41-50с неусовершенствованным покрытиемIII",{"v":1480,"d":"1,480"},{"$nulls":5},"41-50","с неусовершенствованным покрытием","III","41-50с неусовершенствованным покрытиемIII",{"v":1660,"d":"1,660"}]
[null,null,"Норма обслуживания, м2",null,null,{"$f":"IFERROR(VLOOKUP($Y$6,$AC$6:$AD$96,2,FALSE)*O39,0)","v":0},{"$nulls":9},"41-50","без покрытий","I","41-50без покрытийI",{"v":3610,"d":"3,610"},{"$nulls":5},"41-50","без покрытий","I","41-50без покрытийI",{"v":7080,"d":"7,080"}]
[{"$nulls":15},"51-60","с усовершенствованным покрытием","I","51-60с усовершенствованным покрытиемI",{"v":4870,"d":"4,870"},{"$nulls":5},"51-60","с усовершенствованным покрытием","I","51-60с усовершенствованным покрытиемI",{"v":10820,"d":"10,820"}]
[null,null,"Обслуживаемая площадь территории, м2",{"$nulls":12},"51-60","с усовершенствованным покрытием","II","51-60с усовершенствованным покрытиемII",{"v":2800,"d":"2,800"},{"$nulls":5},"51-60","с усовершенствованным покрытием","II","51-60с усовершенствованным покрытиемII",{"v":4820,"d":"4,820"}]
[{"$nulls":15},"51-60","с усовершенствованным покрытием","III","51-60с усовершенствованным покрытиемIII",{"v":1580,"d":"1,580"},{"$nulls":5},"51-60","с усовершенствованным покрытием","III","51-60с усовершенствованным покрытиемIII",{"v":2110,"d":"2,110"}]
[null,null,"Градация",{"$nulls":12},"51-60","с неусовершенствованным покрытием","I","51-60с неусовершенствованным покрытиемI",{"v":3900,"d":"3,900"},{"$nulls":5},"51-60","с неусовершенствованным покрытием","I","51-60с неусовершенствованным покрытиемI",{"v":8250,"d":"8,250"}]
[{"$nulls":15},"51-60","с неусовершенствованным покрытием","II","51-60с неусовершенствованным покрытиемII",{"v":2310,"d":"2,310"},{"$nulls":5},"51-60","с неусовершенствованным покрытием","II","51-60с неусовершенствованным покрытиемII",{"v":3780,"d":"3,780"}]
[null,null,"Нормативная численность уборщиков территорий, чел.",{"$nulls":5},{"$f":"IF(F40=0,0,H42/F40*(1+L48/100))","v":{"v":0,"d":"0.00"}},{"$nulls":6},"51-60","с неусовершенствованным покрытием","III","51-60с неусовершенствованным покрытиемIII",{"v":1370,"d":"1,370"},null,{"$f":"I46","v":{"v":0,"d":"0.00"}},{"$f":"INT(V46)","v":{"v":0,"d":"0.00"}},{"$f":"V46-W46","v":{"v":0,"d":"0.00"}},null,"51-60","с неусовершенствованным покрытием","III","51-60с неусовершенствованным покрытиемIII",{"v":1700,"d":"1,700"}]
[{"$nulls":15},"51-60","без покрытий","I","51-60без покрытийI",{"v":3330,"d":"3,330"},{"$nulls":5},"51-60","без покрытий","I","51-60без покрытийI",{"v":7180,"d":"7,180"}]
[null,null,"Планируемый процент невыходов по болезни, выполнению государственных обязанностей, трудовым и дополнительным отпускам, предусмотренным коллективным договором",{"$nulls":12},"61-70","с усовершенствованным покрытием","I","61-70с усовершенствованным покрытиемI",{"v":4540,"d":"4,540"},{"$nulls":5},"61-70","с усовершенствованным покрытием","I","61-70с усовершенствованным покрытиемI",{"v":10970,"d":"10,970"}]
[{"$nulls":15},"61-70","с усовершенствованным покрытием","II","61-70с усовершенствованным покрытиемII",{"v":2700,"d":"2,700"},{"$nulls":5},"61-70","с усовершенствованным покрытием","II","61-70с усовершенствованным покрытиемII",{"v":4900,"d":"4,900"}]
[null,null,"Штатная численность уборщиков территорий в теплый период года, чел.",{"$nulls":8},{"$f":"IF(E44=\"0,5; 1,0\",(IF(X46<=0.25,W46,0)+IF(AND(X46<=0.75,X46>0.25),(W46+0.5),0)+IF(X46>0.75,(W46+1),0)),0)+IF(E44=\"0,25; 0,5; 0,75; 1,0\",(IF(X46<=0.12,W46,0)+IF(AND(X46<=0.37,X46>0.12),(W46+0.25),0)+IF(AND(X46<=0.62,X46>0.37),(W46+0.5),0)+IF(AND(X46<=0.87,X46>0.62),(W46+0.75),0)+IF(X46>0.87,(W46+1),0)),0)","v":{"v":0,"d":"0.00"}},{"$nulls":3},"61-70","с усовершенствованным покрытием","III","61-70с усовершенствованным покрытиемIII",{"v":1470,"d":"1,470"},{"$nulls":5},"61-70","с усовершенствованным покрытием","III","61-70с усовершенствованным покрытиемIII",{"v":2140,"d":"2,140"}]
[{"$nulls":15},"61-70","с неусовершенствованным покрытием","I","61-70с неусовершенствованным покрытиемI",{"v":3650,"d":"3,650"},{"$nulls":5},"61-70","с неусовершенствованным покрытием","I","61-70с неусовершенствованным покрытиемI",{"v":8370,"d":"8,370"}]
[null,null,"Итого штатная численность уборщиков территории, чел.",{"$nulls":6},{"$f":"L50+L27","v":{"v":0,"d":"0.00"}},{"$nulls":5},"61-70","с неусовершенствованным покрытием","II","61-70с неусовершенствованным покрытиемII",{"v":2230,"d":"2,230"},{"$nulls":5},"61-70","с неусовершенствованным покрытием","II","61-70с неусовершенствованным покрытиемII",{"v":3840,"d":"3,840"}]
[{"$nulls":15},"61-70","с неусовершенствованным покрытием","III","61-70с неусовершенствованным покрытиемIII",{"v":1270,"d":"1,270"},{"$nulls":5},"61-70","с неусовершенствованным покрытием","III","61-70с неусовершенствованным покрытиемIII",{"v":1730,"d":"1,730"}]
[{"$nulls":15},"61-70","без покрытий","I","61-70без покрытийI",{"v":3090,"d":"3,090"},{"$nulls":5},"61-70","без покрытий","I","61-70без покрытийI",{"v":7300,"d":"7,300"}]
[{"$nulls":15},"71-80","с усовершенствованным покрытием","I","71-80с усовершенствованным покрытиемI",{"v":4260,"d":"4,260"},{"$nulls":5},"71-80","с усовершенствованным покрытием","I","71-80с усовершенствованным покрытиемI",{"v":11130,"d":"11,130"}]
[{"$nulls":15},"71-80","с усовершенствованным покрытием","II","71-80с усовершенствованным покрытиемII",{"v":2610,"d":"2,610"},{"$nulls":5},"71-80","с усовершенствованным покрытием","II","71-80с усовершенствованным покрытиемII",{"v":4980,"d":"4,980"}]
[{"$nulls":15},"71-80","с усовершенствованным покрытием","III","71-80с усовершенствованным покрытиемIII",{"v":1370,"d":"1,370"},{"$nulls":5},"71-80","с усовершенствованным покрытием","III","71-80с усовершенствованным покрытиемIII",{"v":2180,"d":"2,180"}]
[{"$nulls":15},"71-80","с неусовершенствованным покрытием","I","71-80с неусовершенствованным покрытиемI",{"v":3420,"d":"3,420"},{"$nulls":5},"71-80","с неусовершенствованным покрытием","I","71-80с неусовершенствованным покрытиемI",{"v":8490,"d":"8,490"}]
[{"$nulls":15},"71-80","с неусовершенствованным покрытием","II","71-80с неусовершенствованным покрытиемII",{"v":2170,"d":"2,170"},{"$nulls":5},"71-80","с неусовершенствованным покрытием","II","71-80с неусовершенствованным покрытиемII",{"v":3900,"d":"3,900"}]
[{"$nulls":15},"71-80","с неусовершенствованным покрытием","III","71-80с неусовершенствованным покрытиемIII",{"v":1190,"d":"1,190"},{"$nulls":5},"71-80","с неусовершенствованным покрытием","III","71-80с неусовершенствованным покрытиемIII",{"v":1770,"d":"1,770"}]
[{"$nulls":15},"71-80","без покрытий","I","71-80без покрытийI",{"v":2930,"d":"2,930"},{"$nulls":5},"71-80","без покрытий","I","71-80без покрытийI",{"v":7410,"d":"7,410"}]
[{"$nulls":15},"81-90","с усовершенствованным покрытием","I","81-90с усовершенствованным покрытиемI",{"v":4000,"d":"4,000"},{"$nulls":5},"81-90","с усовершенствованным покрытием","I","81-90с усовершенствованным покрытиемI",{"v":11290,"d":"11,290"}]
[{"$nulls":15},"81-90","с усовершенствованным покрытием","II","81-90с усовершенствованным покрытиемII",{"v":2530,"d":"2,530"},{"$nulls":5},"81-90","с усовершенствованным покрытием","II","81-90с усовершенствованным покрытиемII",{"v":5060,"d":"5,060"}]
[{"$nulls":15},"81-90","с усовершенствованным покрытием","III","81-90с усовершенствованным покрытиемIII",{"v":1280,"d":"1,280"},{"$nulls":5},"81-90","с усовершенствованным покрытием","III","81-90с усовершенствованным покрытиемIII",{"v":2210,"d":"2,210"}]
[{"$nulls":15},"81-90","с неусовершенствованным покрытием","I","81-90с неусовершенствованным покрытиемI",{"v":3210,"d":"3,210"},{"$nulls":5},"81-90","с неусовершенствованным покрытием","I","81-90с неусовершенствованным покрытиемI",{"v":8620,"d":"8,620"}]
[{"$nulls":15},"81-90","с неусовершенствованным покрытием","II","81-90с неусовершенствованным покрытиемII",{"v":2100,"d":"2,100"},{"$nulls":5},"81-90","с неусовершенствованным покрытием","II","81-90с неусовершенствованным покрытиемII",{"v":3960,"d":"3,960"}]
[{"$nulls":15},"81-90","с неусовершенствованным покрытием","III","81-90с неусовершенствованным покрытиемIII",{"v":1100,"d":"1,100"},{"$nulls":5},"81-90","с неусовершенствованным покрытием","III","81-90с неусовершенствованным покрытиемIII",{"v":1800,"d":"1,800"}]
[{"$nulls":15},"81-90","без покрытий","I","81-90без покрытийI",{"v":2770,"d":"2,770"},{"$nulls":5},"81-90","без покрытий","I","81-90без покрытийI",{"v":7520,"d":"7,520"}]
[{"$nulls":15},"91-100","с усовершенствованным покрытием","I","91-100с усовершенствованным покрытиемI",{"v":3780,"d":"3,780"},{"$nulls":5},"91-100","с усовершенствованным покрытием","I","91-100с усовершенствованным покрытиемI",{"v":11450,"d":"11,450"}]
[{"$nulls":15},"91-100","с усовершенствованным покрытием","II","91-100с усовершенствованным покрытиемII",{"v":2450,"d":"2,450"},{"$nulls":5},"91-100","с усовершенствованным покрытием","II","91-100с усовершенствованным покрытиемII",{"v":5140,"d":"5,140"}]
[{"$nulls":15},"91-100","с усовершенствованным покрытием","III",{"$f":"CONCATENATE(P71,Q71,R71)","v":"91-100с усовершенствованным покрытиемIII"},{"v":1200,"d":"1,200"},{"$nulls":5},"91-100","с усовершенствованным покрытием","III",{"$f":"CONCATENATE(Z71,AA71,AB71)","v":"91-100с усовершенствованным покрытиемIII"},{"v":2250,"d":"2,250"}]
[{"$nulls":15},"91-100","с неусовершенствованным покрытием","I","91-100с неусовершенствованным покрытиемI",{"v":3040,"d":"3,040"},{"$nulls":5},"91-100","с неусовершенствованным покрытием","I","91-100с неусовершенствованным покрытиемI",{"v":8740,"d":"8,740"}]
[{"$nulls":15},"91-100","с неусовершенствованным покрытием","II","91-100с неусовершенствованным покрытиемII",{"v":2030,"d":"2,030"},{"$nulls":5},"91-100","с неусовершенствованным покрытием","II","91-100с неусовершенствованным покрытиемII",{"v":4020,"d":"4,020"}]
[{"$nulls":15},"91-100","с неусовершенствованным покрытием","III","91-100с неусовершенствованным покрытиемIII",{"v":1040,"d":"1,040"},{"$nulls":5},"91-100","с неусовершенствованным покрытием","III","91-100с неусовершенствованным покрытиемIII",{"v":1840,"d":"1,840"}]
[{"$nulls":15},"91-100","без покрытий","I","91-100без покрытийI",{"v":2630,"d":"2,630"},{"$nulls":5},"91-100","без покрытий","I","91-100без покрытийI",{"v":7640,"d":"7,640"}]
[{"$nulls":15},"101-110","с усовершенствованным покрытием","I","101-110с усовершенствованным покрытиемI",{"v":3580,"d":"3,580"},{"$nulls":5},"101-110","с усовершенствованным покрытием","I","101-110с усовершенствованным покрытиемI",{"v":11600,"d":"11,600"}]
[{"$nulls":15},"101-110","с усовершенствованным покрытием","II","101-110с усовершенствованным покрытиемII",{"v":2370,"d":"2,370"},{"$nulls":5},"101-110","с усовершенствованным покрытием","II","101-110с усовершенствованным покрытиемII",{"v":5230,"d":"5,230"}]
[{"$nulls":15},"101-110","с усовершенствованным покрытием","III","101-110с усовершенствованным покрытиемIII",{"v":1130,"d":"1,130"},{"$nulls":5},"101-110","с усовершенствованным покрытием","III","101-110с усовершенствованным покрытиемIII",{"v":2290,"d":"2,290"}]
[{"$nulls":15},"101-110","с неусовершенствованным покрытием","I","101-110с неусовершенствованным покрытиемI",{"v":2880,"d":"2,880"},{"$nulls":5},"101-110","с неусовершенствованным покрытием","I","101-110с неусовершенствованным покрытиемI",{"v":8870,"d":"8,870"}]
[{"$nulls":15},"101-110","с неусовершенствованным покрытием","II","101-110с неусовершенствованным покрытиемII",{"v":1970,"d":"1,970"},{"$nulls":5},"101-110","с неусовершенствованным покрытием","II","101-110с неусовершенствованным покрытиемII",{"v":4100,"d":"4,100"}]
[{"$nulls":15},"101-110","с неусовершенствованным покрытием","III","101-110с неусовершенствованным покрытиемIII",980,{"$nulls":5},"101-110","с неусовершенствованным покрытием","III","101-110с неусовершенствованным покрытиемIII",{"v":1880,"d":"1,880"}]
[{"$nulls":15},"101-110","без покрытий","I","101-110без покрытийI",{"v":2510,"d":"2,510"},{"$nulls":5},"101-110","без покрытий","I","101-110без покрытийI",{"v":7750,"d":"7,750"}]
[{"$nulls":15},"111-120","с усовершенствованным покрытием","I","111-120с усовершенствованным покрытиемI",{"v":3410,"d":"3,410"},{"$nulls":5},"111-120","с усовершенствованным покрытием","I","111-120с усовершенствованным покрытиемI",{"v":11790,"d":"11,790"}]
[{"$nulls":15},"111-120","с усовершенствованным покрытием","II","111-120с усовершенствованным покрытиемII",{"v":2300,"d":"2,300"},{"$nulls":5},"111-120","с усовершенствованным покрытием","II","111-120с усовершенствованным покрытиемII",{"v":5320,"d":"5,320"}]
[{"$nulls":15},"111-120","с усовершенствованным покрытием","III","111-120с усовершенствованным покрытиемIII",{"v":1070,"d":"1,070"},{"$nulls":5},"111-120","с усовершенствованным покрытием","III","111-120с усовершенствованным покрытиемIII",{"v":2340,"d":"2,340"}]
[{"$nulls":15},"111-120","с неусовершенствованным покрытием","I","111-120с неусовершенствованным покрытиемI",{"v":2740,"d":"2,740"},{"$nulls":5},"111-120","с неусовершенствованным покрытием","I","111-120с неусовершенствованным покрытиемI",{"v":9010,"d":"9,010"}]
[{"$nulls":15},"111-120","с неусовершенствованным покрытием","II","111-120с неусовершенствованным покрытиемII",{"v":1920,"d":"1,920"},{"$nulls":5},"111-120","с неусовершенствованным покрытием","II","111-120с неусовершенствованным покрытиемII",{"v":4180,"d":"4,180"}]
[{"$nulls":15},"111-120","с неусовершенствованным покрытием","III","111-120с неусовершенствованным покрытиемIII",920,{"$nulls":5},"111-120","с неусовершенствованным покрытием","III","111-120с неусовершенствованным покрытиемIII",{"v":1930,"d":"1,930"}]
[{"$nulls":15},"111-120","без покрытий","I","111-120без покрытийI",{"v":2390,"d":"2,390"},{"$nulls":5},"111-120","без покрытий","I","111-120без покрытийI",{"v":7880,"d":"7,880"}]
[{"$nulls":15},"121-130","с усовершенствованным покрытием","I","121-130с усовершенствованным покрытиемI",{"v":3250,"d":"3,250"},{"$nulls":5},"121-130","с усовершенствованным покрытием","I","121-130с усовершенствованным покрытиемI",{"v":11980,"d":"11,980"}]
[{"$nulls":15},"121-130","с усовершенствованным покрытием","II","121-130с усовершенствованным покрытиемII",{"v":2230,"d":"2,230"},{"$nulls":5},"121-130","с усовершенствованным покрытием","II","121-130с усовершенствованным покрытиемII",{"v":5420,"d":"5,420"}]
[{"$nulls":15},"121-130","с усовершенствованным покрытием","III","121-130с усовершенствованным покрытиемIII",{"v":1010,"d":"1,010"},{"$nulls":5},"121-130","с усовершенствованным покрытием","III","121-130с усовершенствованным покрытиемIII",{"v":2380,"d":"2,380"}]
[{"$nulls":15},"121-130","с неусовершенствованным покрытием","I","121-130с неусовершенствованным покрытиемI",{"v":2610,"d":"2,610"},{"$nulls":5},"121-130","с неусовершенствованным покрытием","I","121-130с неусовершенствованным покрытиемI",{"v":9150,"d":"9,150"}]
[{"$nulls":15},"121-130","с неусовершенствованным покрытием","II","121-130с неусовершенствованным покрытиемII",{"v":1860,"d":"1,860"},{"$nulls":5},"121-130","с неусовершенствованным покрытием","II","121-130с неусовершенствованным покрытиемII",{"v":4260,"d":"4,260"}]
[{"$nulls":15},"121-130","с неусовершенствованным покрытием","III","121-130с неусовершенствованным покрытиемIII",880,{"$nulls":5},"121-130","с неусовершенствованным покрытием","III","121-130с неусовершенствованным покрытиемIII",{"v":1970,"d":"1,970"}]
[{"$nulls":15},"121-130","без покрытий","I","121-130без покрытийI",{"v":2280,"d":"2,280"},{"$nulls":5},"121-130","без покрытий","I","121-130без покрытийI",{"v":8010,"d":"8,010"}]

{"sheet":"Нормативы при ручной уборке","index":7,"n_rows":435,"n_cols":29,"rows_kept":435,"merged":[[2,2,2,11],[2,14,2,18],[4,2,4,9],[4,10,4,11],[4,14,4,18],[6,2,6,3],[6,4,6,6],[6,14,6,18],[8,2,8,10],[10,2,10,11],[12,2,12,10],[14,2,14,3],[15,2,15,11],[17,2,17,11],[19,2,19,4],[21,2,21,4],[21,5,21,6],[23,2,23,5],[25,2,25,11],[27,2,27,4],[29,2,29,4],[29,5,29,6],[31,2,31,5],[33,2,33,11],[35,2,35,4],[37,2,37,4],[37,5,37,6],[39,2,39,5],[41,2,41,5],[44,2,44,11],[46,2,46,3],[49,2,49,5],[51,2,51,8],[53,2,53,5],[56,2,56,11],[58,2,58,3],[59,2,59,8],[61,2,61,10],[63,2,63,4],[65,2,65,5],[67,10,67,11],[69,2,69,5],[71,2,71,11],[73,2,73,10],[75,2,75,3],[76,2,76,11],[78,2,78,11],[80,2,80,4],[82,2,82,4],[82,5,82,6],[84,2,84,5],[86,2,86,11],[88,2,88,4],[90,2,90,4],[90,5,90,6],[92,2,92,5],[94,2,94,11],[96,2,96,4],[98,2,98,4],[98,5,98,6],[100,2,100,5],[102,2,102,5],[105,2,105,11],[107,2,107,10],[109,2,109,3],[110,2,110,11],[112,2,112,11],[114,2,114,4],[116,2,116,4],[116,5,116,6],[118,2,118,5],[120,2,120,11],[122,2,122,4],[124,2,124,4],[124,5,124,6],[126,2,126,5],[128,2,128,11],[130,2,130,4],[132,2,132,4],[132,5,132,6],[134,2,134,5],[136,2,136,5],[139,2,139,11],[141,2,141,3],[142,2,142,11],[144,2,144,10],[146,2,146,4],[148,2,148,5],[150,2,150,9],[150,10,150,11],[152,2,152,5],[154,2,154,11],[156,2,156,3],[157,2,157,11],[159,2,159,10],[161,2,161,4],[163,2,163,5],[165,2,165,9],[165,10,165,11],[167,2,167,5],[169,2,169,11],[171,2,171,3],[172,2,172,11],[174,2,174,10],[176,2,176,4],[178,2,178,5],[180,2,180,9],[180,10,180,11],[182,2,182,5],[184,2,184,11],[186,2,186,3],[187,2,187,6],[189,2,189,5],[193,2,193,5],[195,2,195,11],[197,2,197,3],[198,2,198,11],[200,2,200,10],[202,2,202,4],[204,2,204,10],[206,2,206,9],[206,10,206,11],[208,2,208,5],[210,2,210,11],[212,2,212,3],[213,2,213,6],[215,2,215,5],[217,2,217,8],[219,2,219,5],[221,2,221,11],[223,2,223,10],[225,2,225,3],[226,2,226,11],[228,2,228,11],[230,2,230,4],[232,2,232,4],[232,5,232,6],[234,2,234,5],[236,2,236,11],[238,2,238,4],[240,2,240,4],[240,5,240,6],[242,2,242,5],[244,2,244,11],[246,2,246,4],[248,2,248,4],[248,5,248,6],[250,2,250,5],[252,2,252,5],[255,2,255,11],[257,2,257,3],[258,2,258,11],[260,2,260,5],[263,2,263,4],[263,5,263,6],[265,2,265,5],[267,2,267,11],[269,2,269,3],[270,2,270,11],[272,2,272,10],[274,2,274,4],[276,2,276,10],[278,2,278,9],[278,10,278,11],[280,2,280,5],[282,2,282,11],[284,2,284,3],[285,2,285,11],[287,2,287,10],[289,2,289,4],[291,2,291,5],[293,2,293,9],[293,10,293,11],[295,2,295,5],[297,2,297,11],[299,2,299,3],[300,2,300,11],[302,2,302,10],[304,2,304,4],[306,2,306,5],[308,2,308,9],[308,10,308,11],[310,2,310,5],[312,2,312,11],[314,2,314,3],[315,2,315,11],[317,2,317,8],[319,2,319,4],[323,2,323,10],[325,2,325,6],[327,2,327,11],[328,2,328,4],[332,2,332,10],[334,2,334,6],[336,2,336,11],[337,2,337,4],[341,2,341,10],[343,2,343,6],[345,2,345,11],[347,2,347,4],[351,2,351,10],[353,2,353,6],[356,2,356,11],[358,2,358,3],[359,2,359,11],[361,2,361,10],[363,2,363,3],[363,4,363,5],[365,2,365,3],[365,4,365,8],[367,2,367,5],[369,2,369,4],[371,2,371,5],[373,2,373,3],[373,4,373,5],[375,2,375,3],[375,4,375,8],[377,2,377,5],[379,2,379,4],[381,2,381,5],[383,2,383,3],[383,4,383,5],[385,2,385,3],[385,4,385,8],[387,2,387,5],[389,2,389,4],[391,2,391,5],[393,2,393,3],[393,4,393,5],[395,2,395,3],[395,4,395,8],[397,2,397,5],[399,2,399,4],[401,2,401,5],[404,2,404,11],[406,2,406,3],[407,2,407,11],[409,2,409,6],[411,2,411,4],[411,5,411,6],[413,2,413,10],[415,2,415,5],[417,2,417,11],[419,2,419,3],[420,2,420,11],[422,2,422,6],[424,2,424,4],[424,5,424,6],[426,2,426,10],[428,2,428,5],[430,2,430,6],[432,2,432,5],[434,2,434,4]]}
[]
[]
[null,null,"Нормативы численности уборщиков территорий при ручной уборке тротуаров и дворовых территорий",{"$nulls":11},"Итоговая нормативная трудоемкость, чел.-ч",{"$nulls":4},{"$f":"$G$42+$G$54+$G$70+$G$103+$G$137+$G$153+$G$168+$G$183+$G$194+$G$209+$G$220+$G$253+$G$266+$G$281+$G$296+$G$311+$H$326+$H$335+$H$344+$H$354+$G$372+$G$382+$G$392+$G$402+$G$416+$G$429","v":{"v":0,"d":"0.00"}}]
[]
[null,null,"Плановый полезный фонд рабочего времени одного работника в расчетном периоде, ч",{"$nulls":11},"Нормативная численность, чел.",{"$nulls":4},{"$f":"IF($K$5=0,0,$H$431/$K$5*(1+$L$9/100))","v":{"v":0,"d":"0.00"}}]
[]
[null,null,"Градация",{"$nulls":11},"Общая штатная численность, чел.",{"$nulls":4},{"$f":"IF($E$7=\"0,5; 1,0\",(IF($Q$429<=0.25,$P$429,0)+IF(AND($Q$429<=0.75,$Q$429>0.25),($P$429+0.5),0)+IF($Q$429>0.75,($P$429+1),0)),0)+IF(Q$7=\"0,25; 0,5; 0,75; 1,0\",(IF($Q$429<=0.12,$P$429,0)+IF(AND($Q$429<=0.37,$Q$429>0.12),($P$429+0.25),0)+IF(AND($Q$429<=0.62,$Q$429>0.37),($P$429+0.5),0)+IF(AND($Q$429<=0.87,$Q$429>0.62),($P$429+0.75),0)+IF($Q$429>0.87,($P$429+1),0)),0)","v":{"v":0,"d":"0.00"}}]
[]
[null,null,"Планируемый процент невыходов по болезни, выполнению государственных обязанностей, трудовым и дополнительным отпускам, предусмотренным коллективным договором"]
[]
[null,null,"Подметание свежевыпавшего снега без предварительной обработки территорий смесью песка с хлоридами\n\n"]
[]
[null,null,"Повторяемость конкретного вида работы в течение расчетного периода"]
[{"$nulls":13},"-","-","-","-"]
[null,null,"Состав работ:\n\n",{"$nulls":10},{"$f":"CONCATENATE(O15,P15)","v":"С усовершенствованными покрытиямиI"},"С усовершенствованными покрытиями","I",0.18,{"$f":"CONCATENATE(C18,F20)","v":"С усовершенствованными покрытиями"}]
[null,null,"Подметание свежевыпавшего снега толщиной слоя до 2 см. Сгребание снега в кучи или валы.",{"$nulls":10},{"$f":"CONCATENATE(O16,P16)","v":"С усовершенствованными покрытиямиII"},"С усовершенствованными покрытиями","II",0.22]
[{"$nulls":13},"С усовершенствованными покрытиямиIII","С усовершенствованными покрытиями","III",0.27]
[null,null,"С усовершенствованными покрытиями",{"$nulls":10},"С неусовершенствованными покрытиямиI","С неусовершенствованными покрытиями","I",0.23]
[{"$nulls":13},"С неусовершенствованными покрытиямиII","С неусовершенствованными покрытиями","II",0.27]
[null,null,"Классы территорий",{"$nulls":10},"С неусовершенствованными покрытиямиIII","С неусовершенствованными покрытиями","III",0.3]
[{"$nulls":13},"Без покрытийI","Без покрытий","I",0.28]
[null,null,"Площадь территории, м2",{"$nulls":10},"Без покрытийII","Без покрытий","II",0.33]
[{"$nulls":13},"Без покрытийIII","Без покрытий","III",0.38]
[null,null,"Нормы времени на 100 м2, чел.-ч",{"$nulls":3},{"$f":"IFERROR(VLOOKUP(R15,N15:Q23,4,FALSE),0)","v":{"v":0,"d":"0.00"}}]
[]
[null,null,"С неусовершенствованными покрытиями",{"$nulls":10},"-","-","-","-",null,"-","-","-","-"]
[{"$nulls":13},{"$f":"CONCATENATE(O27,P27)","v":"С усовершенствованными покрытиямиI"},"С усовершенствованными покрытиями","I",0.18,{"$f":"CONCATENATE(C26,F28)","v":"С неусовершенствованными покрытиями"},{"$f":"CONCATENATE(T27,U27)","v":"С усовершенствованными покрытиямиI"},"С усовершенствованными покрытиями","I",0.18,{"$f":"CONCATENATE(C34,F36)","v":"Без покрытий"}]
[null,null,"Классы территорий",{"$nulls":10},{"$f":"CONCATENATE(O28,P28)","v":"С усовершенствованными покрытиямиII"},"С усовершенствованными покрытиями","II",0.22,null,{"$f":"CONCATENATE(T28,U28)","v":"С усовершенствованными покрытиямиII"},"С усовершенствованными покрытиями","II",0.22]
[{"$nulls":13},"С усовершенствованными покрытиямиIII","С усовершенствованными покрытиями","III",0.27,null,"С усовершенствованными покрытиямиIII","С усовершенствованными покрытиями","III",0.27]
[null,null,"Площадь территории, м2",{"$nulls":10},"С неусовершенствованными покрытиямиI","С неусовершенствованными покрытиями","I",0.23,null,"С неусовершенствованными покрытиямиI","С неусовершенствованными покрытиями","I",0.23]
[{"$nulls":13},"С неусовершенствованными покрытиямиII","С неусовершенствованными покрытиями","II",0.27,null,"С неусовершенствованными покрытиямиII","С неусовершенствованными покрытиями","II",0.27]
[null,null,"Нормы времени на 100 м2, чел.-ч",{"$nulls":3},{"$f":"IFERROR(VLOOKUP(R27,N27:Q35,4,FALSE),0)","v":{"v":0,"d":"0.00"}},{"$nulls":6},"С неусовершенствованными покрытиямиIII","С неусовершенствованными покрытиями","III",0.3,null,"С неусовершенствованными покрытиямиIII","С неусовершенствованными покрытиями","III",0.3]
[{"$nulls":13},"Без покрытийI","Без покрытий","I",0.28,null,"Без покрытийI","Без покрытий","I",0.28]
[null,null,"Без покрытий",{"$nulls":10},"Без покрытийII","Без покрытий","II",0.33,null,"Без покрытийII","Без покрытий","II",0.33]
[{"$nulls":13},"Без покрытийIII","Без покрытий","III",0.38,null,"Без покрытийIII","Без покрытий","III",0.38]
[null,null,"Классы территорий"]
[]
[null,null,"Площадь территории, м2"]
[]
[null,null,"Нормы времени на 100 м2, чел.-ч",{"$nulls":3},{"$f":"IFERROR(VLOOKUP(W27,S27:V35,4,FALSE),0)","v":{"v":0,"d":"0.00"}}]
[]
[null,null,"Нормативная трудоемкость, чел.-ч",{"$nulls":3},{"$f":"L13*F22*G24/100+L13*F30*G32/100+L13*F38*G40/100","v":{"v":0,"d":"0.00"}}]
[]
[]
[null,null,"Подготовка смеси песка с хлоридами"]
[]
[null,null,"Состав работ:\n\n"]
[null,null,"Просеивание песка через сито. Размешивание песка с хлоридами."]
[]
[null,null,"Норма времени на 1 м3, чел.-ч",{"$nulls":3},0.83]
[]
[null,null,"Подготовлено смеси песка с хлоридами в расчетном периоде, м3"]
[]
[null,null,"Нормативная трудоемкость, чел.-ч",{"$nulls":3},{"$f":"G50*J52","v":{"v":0,"d":"0.00"}}]
[]
[]
[null,null,"Посыпка территории",{"$nulls":11},"I",0.22]
[{"$nulls":14},"II",0.25]
[null,null,"Состав работ:\n\n",{"$nulls":11},"III",0.28]
[null,null,"Посыпка территорий песком или смесью песка с хлоридами."]
[]
[null,null,"Повторяемость конкретного вида работы в течение расчетного периода"]
[]
[null,null,"Классы территорий"]
[]
[null,null,"Нормы времени на 100 м2, чел.-ч",{"$nulls":3},{"$f":"IFERROR(VLOOKUP(F64,O57:P59,2,FALSE),0)","v":{"v":0,"d":"0.00"}}]
[]
[null,null,"Площадь территории, посыпаемая песком или смесью песка с хлоридами, м2"]
[]
[null,null,"Нормативная трудоемкость, чел.-ч",{"$nulls":3},{"$f":"G66*K68/100*L62","v":{"v":0,"d":"0.00"}}]
[]
[null,null,"Подметание свежевыпавшего снега после обработки смесью песка с хлоридами"]
[]
[null,null,"Повторяемость конкретного вида работы в течение расчетного периода"]
[{"$nulls":13},"-","-","-","-"]
[null,null,"Состав работ:\n\n",{"$nulls":10},{"$f":"CONCATENATE(O76,P76)","v":"С усовершенствованными покрытиямиI"},"С усовершенствованными покрытиями","I",0.48,{"$f":"CONCATENATE(C79,F81)","v":"С усовершенствованными покрытиями"}]
[null,null,"Подметание свежевыпавшего снега толщиной слоя до 2 см. Сгребание снега в кучи или валы.",{"$nulls":10},{"$f":"CONCATENATE(O77,P77)","v":"С усовершенствованными покрытиямиII"},"С усовершенствованными покрытиями","II",0.59]
[{"$nulls":13},"С усовершенствованными покрытиямиIII","С усовершенствованными покрытиями","III",0.72]
[null,null,"С усовершенствованными покрытиями",{"$nulls":10},"С неусовершенствованными покрытиямиI","С неусовершенствованными покрытиями","I",0.75]
[{"$nulls":13},"С неусовершенствованными покрытиямиII","С неусовершенствованными покрытиями","II",0.83]
[null,null,"Классы территорий",{"$nulls":10},"С неусовершенствованными покрытиямиIII","С неусовершенствованными покрытиями","III",0.93]
[{"$nulls":13},"Без покрытийI","Без покрытий","I",0.86]
[null,null,"Площадь территории, м2",{"$nulls":10},"Без покрытийII","Без покрытий","II",0.96]
[{"$nulls":13},"Без покрытийIII","Без покрытий","III",1.1]
[null,null,"Нормы времени на 100 м2, чел.-ч",{"$nulls":3},{"$f":"IFERROR(VLOOKUP(R76,N76:Q84,4,FALSE),0)","v":{"v":0,"d":"0.00"}}]
[]
[null,null,"С неусовершенствованными покрытиями",{"$nulls":10},"-","-","-","-",null,"-","-","-","-"]
[{"$nulls":13},{"$f":"CONCATENATE(O88,P88)","v":"С усовершенствованными покрытиямиI"},"С усовершенствованными покрытиями","I",0.48,{"$f":"CONCATENATE(C87,F89)","v":"С неусовершенствованными покрытиями"},{"$f":"CONCATENATE(T88,U88)","v":"С усовершенствованными покрытиямиI"},"С усовершенствованными покрытиями","I",0.48,{"$f":"CONCATENATE(C95,F97)","v":"Без покрытий"}]
[null,null,"Классы территорий",{"$nulls":10},{"$f":"CONCATENATE(O89,P89)","v":"С усовершенствованными покрытиямиII"},"С усовершенствованными покрытиями","II",0.59,null,{"$f":"CONCATENATE(T89,U89)","v":"С усовершенствованными покрытиямиII"},"С усовершенствованными покрытиями","II",0.59,{"$f":"CONCATENATE(C96,F98)","v":""}]
[{"$nulls":13},"С усовершенствованными покрытиямиIII","С усовершенствованными покрытиями","III",0.72,null,"С усовершенствованными покрытиямиIII","С усовершенствованными покрытиями","III",0.72]
[null,null,"Площадь территории, м2",{"$nulls":10},"С неусовершенствованными покрытиямиI","С неусовершенствованными покрытиями","I",0.75,null,"С неусовершенствованными покрытиямиI","С неусовершенствованными покрытиями","I",0.75]
[{"$nulls":13},"С неусовершенствованными покрытиямиII","С неусовершенствованными покрытиями","II",0.83,null,"С неусовершенствованными покрытиямиII","С неусовершенствованными покрытиями","II",0.83]
[null,null,"Нормы времени на 100 м2, чел.-ч",{"$nulls":3},{"$f":"IFERROR(VLOOKUP(R88,N88:Q96,4,FALSE),0)","v":{"v":0,"d":"0.00"}},{"$nulls":6},"С неусовершенствованными покрытиямиIII","С неусовершенствованными покрытиями","III",0.93,null,"С неусовершенствованными покрытиямиIII","С неусовершенствованными покрытиями","III",0.93]
[{"$nulls":13},"Без покрытийI","Без покрытий","I",0.86,null,"Без покрытийI","Без покрытий","I",0.86]
[null,null,"Без покрытий",{"$nulls":10},"Без покрытийII","Без покрытий","II",0.96,null,"Без покрытийII","Без покрытий","II",0.96]
[{"$nulls":13},"Без покрытийIII","Без покрытий","III",1.1,null,"Без покрытийIII","Без покрытий","III",1.1]
[null,null,"Классы территорий"]
[]
[null,null,"Площадь территории, м2"]
[]
[null,null,"Нормы времени на 100 м2, чел.-ч",{"$nulls":3},{"$f":"IFERROR(VLOOKUP(W88,S88:V96,4,FALSE),0)","v":{"v":0,"d":"0.00"}}]
[]
[null,null,"Нормативная трудоемкость, чел.-ч",{"$nulls":3},{"$f":"L74*F83*G85/100+L74*F91*G93/100+L74*F99*G101/100","v":{"v":0,"d":"0.00"}}]
[]
[]
[null,null,"Сдвигание свежевыпавшего снега"]
[]
[null,null,"Повторяемость конкретного вида работы в течение расчетного периода"]
[{"$nulls":13},"-","-","-","-"]
[null,null,"Состав работ:\n\n",{"$nulls":10},{"$f":"CONCATENATE(O110,P110)","v":"С усовершенствованными покрытиямиI"},"С усовершенствованными покрытиями","I",1.02,{"$f":"CONCATENATE(C113,F115)","v":"С усовершенствованными покрытиями"}]
[null,null,"Сдвигание свежевыпавшего снега толщиной слоя более 2 см движком в валы или кучи.",{"$nulls":10},{"$f":"CONCATENATE(O111,P111)","v":"С усовершенствованными покрытиямиII"},"С усовершенствованными покрытиями","II",1.18]
[{"$nulls":13},"С усовершенствованными покрытиямиIII","С усовершенствованными покрытиями","III",1.35]
[null,null,"С усовершенствованными покрытиями",{"$nulls":10},"С неусовершенствованными покрытиямиI","С неусовершенствованными покрытиями","I",1.23]
[{"$nulls":13},"С неусовершенствованными покрытиямиII","С неусовершенствованными покрытиями","II",1.42]
[null,null,"Классы территорий",{"$nulls":10},"С неусовершенствованными покрытиямиIII","С неусовершенствованными покрытиями","III",1.62,{"$nulls":7},1.02,1.18,1.35,1]
[{"$nulls":13},"Без покрытийI","Без покрытий","I",1.5,{"$nulls":7},1.23,1.42,1.62,null,2]
[null,null,"Площадь территории, м2",{"$nulls":10},"Без покрытийII","Без покрытий","II",1.73,{"$nulls":7},1.5,1.73,2]
[{"$nulls":13},"Без покрытийIII","Без покрытий","III",2]
[null,null,"Нормы времени на 100 м2, чел.-ч",{"$nulls":3},{"$f":"IFERROR(VLOOKUP(R110,N110:Q118,4,FALSE),0)","v":{"v":0,"d":"0.00"}}]
[]
[null,null,"С неусовершенствованными покрытиями",{"$nulls":10},"-","-","-","-",null,"-","-","-","-"]
[{"$nulls":13},{"$f":"CONCATENATE(O122,P122)","v":"С усовершенствованными покрытиямиI"},"С усовершенствованными покрытиями","I",1.02,{"$f":"CONCATENATE(C121,F123)","v":"С неусовершенствованными покрытиями"},{"$f":"CONCATENATE(T122,U122)","v":"С усовершенствованными покрытиямиI"},"С усовершенствованными покрытиями","I",1.02,{"$f":"CONCATENATE(C129,F131)","v":"Без покрытий"}]
[null,null,"Классы территорий",{"$nulls":10},{"$f":"CONCATENATE(O123,P123)","v":"С усовершенствованными покрытиямиII"},"С усовершенствованными покрытиями","II",1.18,null,{"$f":"CONCATENATE(T123,U123)","v":"С усовершенствованными покрытиямиII"},"С усовершенствованными покрытиями","II",1.18]
[{"$nulls":13},"С усовершенствованными покрытиямиIII","С усовершенствованными покрытиями","III",1.35,null,"С усовершенствованными покрытиямиIII","С усовершенствованными покрытиями","III",1.35]
[null,null,"Площадь территории, м2",{"$nulls":10},"С неусовершенствованными покрытиямиI","С неусовершенствованными покрытиями","I",1.23,null,"С неусовершенствованными покрытиямиI","С неусовершенствованными покрытиями","I",1.23]
[{"$nulls":13},"С неусовершенствованными покрытиямиII","С неусовершенствованными покрытиями","II",1.42,null,"С неусовершенствованными покрытиямиII","С неусовершенствованными покрытиями","II",1.42]
[null,null,"Нормы времени на 100 м2, чел.-ч",{"$nulls":3},{"$f":"IFERROR(VLOOKUP(R122,N122:Q130,4,FALSE),0)","v":{"v":0,"d":"0.00"}},{"$nulls":6},"С неусовершенствованными покрытиямиIII","С неусовершенствованными покрытиями","III",1.62,null,"С неусовершенствованными покрытиямиIII","С неусовершенствованными покрытиями","III",1.62]
[{"$nulls":13},"Без покрытийI","Без покрытий","I",1.5,null,"Без покрытийI","Без покрытий","I",1.5]
[null,null,"Без покрытий",{"$nulls":10},"Без покрытийII","Без покрытий","II",1.73,null,"Без покрытийII","Без покрытий","II",1.73]
[{"$nulls":13},"Без покрытийIII","Без покрытий","III",2,null,"Без покрытийIII","Без покрытий","III",2]
[null,null,"Классы территорий"]
[]
[null,null,"Площадь территории, м2"]
[]
[null,null,"Нормы времени на 100 м2, чел.-ч",{"$nulls":3},{"$f":"IFERROR(VLOOKUP(W122,S122:V130,4,FALSE),0)","v":{"v":0,"d":"0.00"}}]
[]
[null,null,"Нормативная трудоемкость, чел.-ч",{"$nulls":3},{"$f":"L108*F117*G119/100+L108*F125*G127/100+L108*F133*G135/100","v":{"v":0,"d":"0.00"}}]
[]
[]
[null,null,"Очистка территорий с усовершенствованными покрытиями от уплотненного снега",{"$nulls":11},"I",3]
[{"$nulls":14},"II",3.8]
[null,null,"Состав работ:\n\n",{"$nulls":11},"III",4.3]
[null,null,"Очистка территорий от уплотненного снега скребком. Сгребание снега в валы или кучи."]
[]
[null,null,"Повторяемость конкретного вида работы в течение расчетного периода"]
[]
[null,null,"Классы территорий"]
[]
[null,null,"Нормы времени на 100 м2, чел.-ч",{"$nulls":3},{"$f":"IFERROR(VLOOKUP(F147,O140:P142,2,FALSE),0)","v":{"v":0,"d":"0.00"}}]
[]
[null,null,"Площадь территории, очищаемой от уплотненного снега скребком со сгребанием снега в валы или кучи, м2"]
[]
[null,null,"Нормативная трудоемкость, чел.-ч",{"$nulls":3},{"$f":"G149*K151/100*L145","v":{"v":0,"d":"0.00"}}]
[]
[null,null,"Очистка территорий от наледи без предварительной обработки хлоридами",{"$nulls":11},"I",7.1]
[{"$nulls":14},"II",7.5]
[null,null,"Состав работ:\n\n",{"$nulls":11},"III",8.6]
[null,null,"Скалывание наледи толщиной до 2 см. Сгребание скола в валы или кучи."]
[]
[null,null,"Повторяемость конкретного вида работы в течение расчетного периода"]
[]
[null,null,"Классы территорий"]
[]
[null,null,"Нормы времени на 100 м2, чел.-ч",{"$nulls":3},{"$f":"IFERROR(VLOOKUP(F162,O155:P157,2,FALSE),0)","v":{"v":0,"d":"0.00"}}]
[]
[null,null,"Площадь территории, на которой производилось скалывание наледи толщиной до 2 см со сгребание скола в валы или кучи., м2"]
[]
[null,null,"Нормативная трудоемкость, чел.-ч",{"$nulls":3},{"$f":"G164*K166/100*L160","v":{"v":0,"d":"0.00"}}]
[]
[null,null,"Очистка территорий от наледи и льда с предварительной обработкой хлоридами",{"$nulls":11},"I",10.9]
[{"$nulls":14},"II",12.6]
[null,null,"Состав работ:\n\n",{"$nulls":11},"III",14.4]
[null,null,"Посыпка наледи и льда толщиной более 2 см хлоридами. Скалывание разрушенной корки наледи ломом. Сгребание скола в валы или кучи."]
[]
[null,null,"Повторяемость конкретного вида работы в течение расчетного периода"]
[]
[null,null,"Классы территорий"]
[]
[null,null,"Нормы времени на 100 м2, чел.-ч",{"$nulls":3},{"$f":"IFERROR(VLOOKUP(F177,O170:P172,2,FALSE),0)","v":{"v":0,"d":"0.00"}}]
[]
[null,null,"Площадь территории, на которой производилась посыпка наледи и льда толщиной более 2 см хлоридами со скалыванием разрушенной корки наледи ломом, сгребанием скола в валы или кучи., м2"]
[]
[null,null,"Нормативная трудоемкость, чел.-ч",{"$nulls":3},{"$f":"G179*K181/100*L175","v":{"v":0,"d":"0.00"}}]
[]
[null,null,"Погрузка снега и скола"]
[]
[null,null,"Состав работ:\n\n"]
[null,null,"Погрузка снега и скола лопатой на транспорт."]
[]
[null,null,"Норма времени на 1 м3, чел.-ч",{"$nulls":3},0.24]
[]
[null,null,"Погружено снега и скола лопатой на транспорт, м3"]
[]
[null,null,"Нормативная трудоемкость, чел.-ч",{"$nulls":3},{"$f":"G190*I192","v":{"v":0,"d":"0.00"}}]
[]
[null,null,"Очистка участков территорий при зимних механизированных уборочных работах",{"$nulls":11},"I",0.13]
[{"$nulls":14},"II",0.17]
[null,null,"Состав работ:\n\n",{"$nulls":11},"III",0.2]
[null,null,"Очистка вручную участков, недоступных для уборки машиной. Сдвигание снега и наледи на полосу механизированной уборки."]
[]
[null,null,"Повторяемость конкретного вида работы в течение расчетного периода"]
[]
[null,null,"Классы территорий"]
[]
[null,null,"Нормы времени на 100 м2 территории после уборки механизированным способом, чел.-ч",{"$nulls":8},{"$f":"IFERROR(VLOOKUP(F203,O196:P198,2,FALSE),0)","v":{"v":0,"d":"0.00"}}]
[]
[null,null,"Площадь территории, на которой производилась очистка вручную участков, недоступных для уборки машиной, сдвигание снега и наледи на полосу механизированной уборки, м2"]
[]
[null,null,"Нормативная трудоемкость, чел.-ч",{"$nulls":3},{"$f":"L205*K207/100*L201","v":{"v":0,"d":"0.00"}}]
[]
[null,null,"Укладка снега в валы или кучи после механизированной уборки"]
[]
[null,null,"Состав работ:\n\n"]
[null,null,"Укладка снега в валы или кучи."]
[]
[null,null,"Норма времени на 1 м3, чел.-ч",{"$nulls":3},0.25]
[]
[null,null,"Уложено снега в валы или кучи., м3"]
[]
[null,null,"Нормативная трудоемкость, чел.-ч",{"$nulls":3},{"$f":"G216*J218","v":{"v":0,"d":"0.00"}}]
[]
[null,null,"Подметание территорий"]
[]
[null,null,"Повторяемость конкретного вида работы в течение расчетного периода"]
[{"$nulls":13},"-","-","-","-"]
[null,null,"Состав работ:\n\n",{"$nulls":10},{"$f":"CONCATENATE(O226,P226)","v":"С усовершенствованными покрытиямиI"},"С усовершенствованными покрытиями","I",0.13,{"$f":"CONCATENATE(C229,F231)","v":"С усовершенствованными покрытиями"}]
[null,null,"Подметание территорий, уборка и транспортировка мусора в установленное место.\n\n",{"$nulls":10},{"$f":"CONCATENATE(O227,P227)","v":"С усовершенствованными покрытиямиII"},"С усовершенствованными покрытиями","II",0.17]
[{"$nulls":13},"С усовершенствованными покрытиямиIII","С усовершенствованными покрытиями","III",0.2]
[null,null,"С усовершенствованными покрытиями",{"$nulls":10},"С неусовершенствованными покрытиямиI","С неусовершенствованными покрытиями","I",0.18]
[{"$nulls":13},"С неусовершенствованными покрытиямиII","С неусовершенствованными покрытиями","II",0.22]
[null,null,"Классы территорий",{"$nulls":10},"С неусовершенствованными покрытиямиIII","С неусовершенствованными покрытиями","III",0.25]
[{"$nulls":13},"Без покрытийI","Без покрытий","I",0.22]
[null,null,"Площадь территории, м2",{"$nulls":10},"Без покрытийII","Без покрытий","II",0.25,{"$nulls":7},0.13,0.17,0.2,1]
[{"$nulls":13},"Без покрытийIII","Без покрытий","III",0.28,{"$nulls":7},0.18,0.22,0.25,null,2]
[null,null,"Нормы времени на 100 м2, чел.-ч",{"$nulls":3},{"$f":"IFERROR(VLOOKUP(R226,N226:Q234,4,FALSE),0)","v":{"v":0,"d":"0.00"}},{"$nulls":17},0.22,0.25,0.28]
[]
[null,null,"С неусовершенствованными покрытиями",{"$nulls":10},"-","-","-","-",null,"-","-","-","-"]
[{"$nulls":13},{"$f":"CONCATENATE(O238,P238)","v":"С усовершенствованными покрытиямиI"},"С усовершенствованными покрытиями","I",0.13,{"$f":"CONCATENATE(C237,F239)","v":"С неусовершенствованными покрытиями"},{"$f":"CONCATENATE(T238,U238)","v":"С усовершенствованными покрытиямиI"},"С усовершенствованными покрытиями","I",0.13,{"$f":"CONCATENATE(C245,F247)","v":"Без покрытий"}]
[null,null,"Классы территорий",{"$nulls":10},{"$f":"CONCATENATE(O239,P239)","v":"С усовершенствованными покрытиямиII"},"С усовершенствованными покрытиями","II",0.17,null,{"$f":"CONCATENATE(T239,U239)","v":"С усовершенствованными покрытиямиII"},"С усовершенствованными покрытиями","II",0.17]
[{"$nulls":13},"С усовершенствованными покрытиямиIII","С усовершенствованными покрытиями","III",0.2,null,"С усовершенствованными покрытиямиIII","С усовершенствованными покрытиями","III",0.2]
[null,null,"Площадь территории, м2",{"$nulls":10},"С неусовершенствованными покрытиямиI","С неусовершенствованными покрытиями","I",0.18,null,"С неусовершенствованными покрытиямиI","С неусовершенствованными покрытиями","I",0.18]
[{"$nulls":13},"С неусовершенствованными покрытиямиII","С неусовершенствованными покрытиями","II",0.22,null,"С неусовершенствованными покрытиямиII","С неусовершенствованными покрытиями","II",0.22]
[null,null,"Нормы времени на 100 м2, чел.-ч",{"$nulls":3},{"$f":"IFERROR(VLOOKUP(R238,N238:Q246,4,FALSE),0)","v":{"v":0,"d":"0.00"}},{"$nulls":6},"С неусовершенствованными покрытиямиIII","С неусовершенствованными покрытиями","III",0.25,null,"С неусовершенствованными покрытиямиIII","С неусовершенствованными покрытиями","III",0.25]
[{"$nulls":13},"Без покрытийI","Без покрытий","I",0.22,null,"Без покрытийI","Без покрытий","I",0.22]
[null,null,"Без покрытий",{"$nulls":10},"Без покрытийII","Без покрытий","II",0.25,null,"Без покрытийII","Без покрытий","II",0.25]
[{"$nulls":13},"Без покрытийIII","Без покрытий","III",0.28,null,"Без покрытийIII","Без покрытий","III",0.28]
[null,null,"Классы территорий"]
[]
[null,null,"Площадь территории, м2"]
[]
[null,null,"Нормы времени на 100 м2, чел.-ч",{"$nulls":3},{"$f":"IFERROR(VLOOKUP(W238,S238:V246,4,FALSE),0)","v":{"v":0,"d":"0.00"}}]
[]
[null,null,"Нормативная трудоемкость, чел.-ч",{"$nulls":3},{"$f":"L224*F233*G235/100+L224*F241*G243/100+L224*F249*G251/100","v":{"v":0,"d":"0.00"}}]
[]
[]
[null,null,"Уборка газонов\n\n"]
[]
[null,null,"Состав работ:\n\n"]
[null,null,"Уборка мусора с газонов, транспортировка мусора в установленное место."]
[]
[null,null,"Норма времени на 100 м2, чел.-ч",{"$nulls":3},0.18]
[]
[]
[null,null,"Площадь газонов, м2"]
[]
[null,null,"Нормативная трудоемкость, чел.-ч",{"$nulls":3},{"$f":"G261*F264/100","v":{"v":0,"d":"0.00"}}]
[]
[null,null,"Мойка территорий с усовершенствованными и неусовершенствованными покрытиями",{"$nulls":11},"I",0.15]
[{"$nulls":14},"II",0.2]
[null,null,"Состав работ:\n\n",{"$nulls":11},"III",0.25]
[null,null,"Мойка территорий из шланга.\n\n"]
[]
[null,null,"Повторяемость конкретного вида работы в течение расчетного периода"]
[]
[null,null,"Классы территорий"]
[]
[null,null,"Нормы времени на 100 м2, чел.-ч",{"$nulls":8},{"$f":"IFERROR(VLOOKUP(F275,O268:P270,2,FALSE),0)","v":{"v":0,"d":"0.00"}}]
[]
[null,null,"Площадь территории, подвергавшейся мойке из шланга, м2"]
[]
[null,null,"Нормативная трудоемкость, чел.-ч",{"$nulls":3},{"$f":"L277*K279/100*L273","v":{"v":0,"d":"0.00"}}]
[]
[null,null,"Поливка территорий с покрытиями и без покрытий из шланга\n\n",{"$nulls":11},"I",0.07]
[{"$nulls":14},"II",0.1]
[null,null,"Состав работ:\n\n",{"$nulls":11},"III",0.13]
[null,null,"Поливка территорий из шланга.\n\n"]
[]
[null,null,"Повторяемость конкретного вида работы в течение расчетного периода"]
[]
[null,null,"Классы территорий"]
[]
[null,null,"Нормы времени на 100 м2, чел.-ч",{"$nulls":3},{"$f":"IFERROR(VLOOKUP(F290,O283:P285,2,FALSE),0)","v":{"v":0,"d":"0.00"}}]
[]
[null,null,"Площадь территории, подвергавшейся поливке из шланга, м2"]
[]
[null,null,"Нормативная трудоемкость, чел.-ч",{"$nulls":3},{"$f":"G292*K294/100*L288","v":{"v":0,"d":"0.00"}}]
[]
[null,null,"Очистка участков территорий при летних механизированных уборочных работах",{"$nulls":11},"I",0.08]
[{"$nulls":14},"II",0.11]
[null,null,"Состав работ:\n\n",{"$nulls":11},"III",0.15]
[null,null,"Подметание участков, недоступных для уборки машиной. Сметание мусора на полосу механизированной уборки.\n\n"]
[]
[null,null,"Повторяемость конкретного вида работы в течение расчетного периода"]
[]
[null,null,"Классы территорий"]
[]
[null,null,"Нормы времени на 100 м2, чел.-ч",{"$nulls":3},{"$f":"IFERROR(VLOOKUP(F305,O298:P300,2,FALSE),0)","v":{"v":0,"d":"0.00"}}]
[]
[null,null,"Площадь территории, на которой производилось подметание участков, недоступных для уборки машиной, сметание мусора на полосу механизированной уборки., м2"]
[]
[null,null,"Нормативная трудоемкость, чел.-ч",{"$nulls":3},{"$f":"G307*K309/100*L303","v":{"v":0,"d":"0.00"}}]
[]
[null,null,"Очистка урн от мусора"]
[]
[null,null,"Состав работ:\n\n"]
[null,null,"Очистка урн от мусора. Транспортировка мусора в установленное место.\n\n"]
[]
[null,null,"Урны чугунные литые (диаметр - 200-300 мм, высота - 650 мм):"]
[]
[null,null," - количество урн, ед."]
[]
[null,null," - нормы времени на 10 урн, чел.-ч",{"$nulls":4},0.81]
[]
[null,null," - повторяемость конкретного вида работы в течение расчетного периода"]
[]
[null,null," - нормативная трудоемкость, чел.-ч",{"$nulls":4},{"$f":"F320*H322*L324/10","v":{"v":0,"d":"0.00"}}]
[]
[null,null,"Урны железобетонные с металлическим вкладышем (размер основания - 320х320 мм, высота - 510 мм):"]
[null,null," - количество урн, ед."]
[]
[null,null," - нормы времени на 10 урн, чел.-ч",{"$nulls":4},0.39]
[]
[null,null," - повторяемость конкретного вида работы в течение расчетного периода"]
[]
[null,null," - нормативная трудоемкость, чел.-ч",{"$nulls":4},{"$f":"F329*H331*L333/10","v":{"v":0,"d":"0.00"}}]
[]
[null,null,"Урны шарообразные (диаметр шаров - 260 мм, высота подставки - 670 мм):"]
[null,null," - количество урн, ед."]
[]
[null,null," - нормы времени на 10 урн, чел.-ч",{"$nulls":4},0.67]
[]
[null,null," - повторяемость конкретного вида работы в течение расчетного периода"]
[]
[null,null," - нормативная трудоемкость, чел.-ч",{"$nulls":4},{"$f":"F338*H340*L342/10","v":{"v":0,"d":"0.00"}}]
[]
[null,null,"Урны прямоугольные металлические (размер основания - 270х400 мм, высота - 520 мм):"]
[]
[null,null," - количество урн, ед."]
[]
[null,null," - нормы времени на 10 урн, чел.-ч",{"$nulls":4},0.56]
[]
[null,null," - повторяемость конкретного вида работы в течение расчетного периода"]
[]
[null,null," - нормативная трудоемкость, чел.-ч",{"$nulls":4},{"$f":"F348*H350*L352/10","v":{"v":0,"d":"0.00"}}]
[]
[]
[null,null,"Промывка урн"]
[]
[null,null,"Состав работ:\n\n",{"$nulls":10},{"$f":"CONCATENATE(E364,E366)","v":""},"вручную","чугунные литые",{"$f":"CONCATENATE(O359,P359)","v":"вручнуючугунные литые"},1.15]
[null,null,"Транспортировка урн в установленное для промывки место. Промывка урн водой с применением моющих средств. Транспортировка чистых урн на место.\n\n",{"$nulls":11},"вручную","железобетонные с металлическим вкладышем","вручнуюжелезобетонные с металлическим вкладышем",0.75]
[{"$nulls":14},"вручную","шарообразные","вручнуюшарообразные",1.4]
[null,null,"Повторяемость конкретного вида работы в течение расчетного периода",{"$nulls":11},"вручную","прямоугольные металлические","вручнуюпрямоугольные металлические",0.9]
[{"$nulls":14},"шлангом","чугунные литые","шлангомчугунные литые",0.47]
[null,null,"Способ мойки",{"$nulls":11},"шлангом","железобетонные с металлическим вкладышем","шлангомжелезобетонные с металлическим вкладышем",0.37]
[{"$nulls":14},"шлангом","шарообразные","шлангомшарообразные",0.74]
[null,null,"Тип урны",{"$nulls":11},"шлангом","прямоугольные металлические","шлангомпрямоугольные металлические",0.66]
[]
[null,null,"Норма времени на 10 урн, чел.-ч",{"$nulls":3},{"$f":"IFERROR(VLOOKUP(N359,$Q$359:$R$366,2,FALSE),0)","v":0},{"$nulls":7},"-","-"]
[{"$nulls":14},"вручную","чугунные литые"]
[null,null,"Количество урн, ед.",{"$nulls":11},"шлангом","железобетонные с металлическим вкладышем"]
[{"$nulls":15},"шарообразные"]
[null,null,"Нормативная трудоемкость, чел.-ч",{"$nulls":3},{"$f":"G368*F370*$L$362/10","v":{"v":0,"d":"0.00"}},{"$nulls":8},"прямоугольные металлические"]
[]
[null,null,"Способ мойки",{"$nulls":10},{"$f":"CONCATENATE(E374,E376)","v":""},"вручную","чугунные литые",{"$f":"CONCATENATE(O374,P374)","v":"вручнуючугунные литые"},1.15]
[{"$nulls":14},"вручную","железобетонные с металлическим вкладышем","вручнуюжелезобетонные с металлическим вкладышем",0.75]
[null,null,"Тип урны",{"$nulls":11},"вручную","шарообразные","вручнуюшарообразные",1.4]
[{"$nulls":14},"вручную","прямоугольные металлические","вручнуюпрямоугольные металлические",0.9]
[null,null,"Норма времени на 10 урн, чел.-ч",{"$nulls":3},{"$f":"IFERROR(VLOOKUP(N374,$Q$374:$R$381,2,FALSE),0)","v":0},{"$nulls":7},"шлангом","чугунные литые","шлангомчугунные литые",0.47]
[{"$nulls":14},"шлангом","железобетонные с металлическим вкладышем","шлангомжелезобетонные с металлическим вкладышем",0.37]
[null,null,"Количество урн, ед.",{"$nulls":11},"шлангом","шарообразные","шлангомшарообразные",0.74]
[{"$nulls":14},"шлангом","прямоугольные металлические","шлангомпрямоугольные металлические",0.66]
[null,null,"Нормативная трудоемкость, чел.-ч",{"$nulls":3},{"$f":"G378*F380*$L$362/10","v":{"v":0,"d":"0.00"}}]
[]
[null,null,"Способ мойки",{"$nulls":10},{"$f":"CONCATENATE(E384,E386)","v":""},"вручную","чугунные литые",{"$f":"CONCATENATE(O384,P384)","v":"вручнуючугунные литые"},1.15]
[{"$nulls":14},"вручную","железобетонные с металлическим вкладышем","вручнуюжелезобетонные с металлическим вкладышем",0.75]
[null,null,"Тип урны",{"$nulls":11},"вручную","шарообразные","вручнуюшарообразные",1.4]
[{"$nulls":14},"вручную","прямоугольные металлические","вручнуюпрямоугольные металлические",0.9]
[null,null,"Норма времени на 10 урн, чел.-ч",{"$nulls":3},{"$f":"IFERROR(VLOOKUP(N384,$Q$384:$R$391,2,FALSE),0)","v":0},{"$nulls":7},"шлангом","чугунные литые","шлангомчугунные литые",0.47]
[{"$nulls":14},"шлангом","железобетонные с металлическим вкладышем","шлангомжелезобетонные с металлическим вкладышем",0.37]
[null,null,"Количество урн, ед.",{"$nulls":11},"шлангом","шарообразные","шлангомшарообразные",0.74]
[{"$nulls":14},"шлангом","прямоугольные металлические","шлангомпрямоугольные металлические",0.66]
[null,null,"Нормативная трудоемкость, чел.-ч",{"$nulls":3},{"$f":"G388*F390*$L$362/10","v":{"v":0,"d":"0.00"}}]
[]
[null,null,"Способ мойки",{"$nulls":10},{"$f":"CONCATENATE(E394,E396)","v":""},"вручную","чугунные литые",{"$f":"CONCATENATE(O394,P394)","v":"вручнуючугунные литые"},1.15]
[{"$nulls":14},"вручную","железобетонные с металлическим вкладышем","вручнуюжелезобетонные с металлическим вкладышем",0.75]
[null,null,"Тип урны",{"$nulls":11},"вручную","шарообразные","вручнуюшарообразные",1.4]
[{"$nulls":14},"вручную","прямоугольные металлические","вручнуюпрямоугольные металлические",0.9]
[null,null,"Норма времени на 10 урн, чел.-ч",{"$nulls":3},{"$f":"IFERROR(VLOOKUP(N394,$Q$394:$R$401,2,FALSE),0)","v":0},{"$nulls":7},"шлангом","чугунные литые","шлангомчугунные литые",0.47]
[{"$nulls":14},"шлангом","железобетонные с металлическим вкладышем","шлангомжелезобетонные с металлическим вкладышем",0.37]
[null,null,"Количество урн, ед.",{"$nulls":11},"шлангом","шарообразные","шлангомшарообразные",0.74]
[{"$nulls":14},"шлангом","прямоугольные металлические","шлангомпрямоугольные металлические",0.66]
[null,null,"Нормативная трудоемкость, чел.-ч",{"$nulls":3},{"$f":"G398*F400*$L$362/10","v":{"v":0,"d":"0.00"}}]
[]
[]
[null,null,"Промывка номерных фонарей\n\n"]
[]
[null,null,"Состав работ:\n\n"]
[null,null,"Промывка номерных фонарей водой с применением моющих средств, вытирание насухо.\n\n"]
[]
[null,null,"Норма времени на 10 фонарей , чел.-ч",{"$nulls":4},0.96]
[]
[null,null,"Количество фонарей, ед."]
[]
[null,null,"Повторяемость конкретного вида работы в течение расчетного периода"]
[]
[null,null,"Нормативная трудоемкость, чел.-ч",{"$nulls":3},{"$f":"H410*L414*F412/10","v":{"v":0,"d":"0.00"}}]
[]
[null,null,"Протирка указателей\n\n"]
[]
[null,null,"Состав работ:\n\n"]
[null,null,"Протирка указателей влажной тряпкой.\n\n"]
[]
[null,null,"Норма времени на 10 указателей, чел.-ч",{"$nulls":4},0.36]
[]
[null,null,"Количество указателей, ед."]
[]
[null,null,"Повторяемость конкретного вида работы в течение расчетного периода"]
[]
[null,null,"Нормативная трудоемкость, чел.-ч",{"$nulls":3},{"$f":"H423*L427*F425/10","v":{"v":0,"d":"0.00"}},{"$nulls":7},{"$f":"G433","v":{"v":0,"d":"0.00"}},{"$f":"INT(O429)","v":{"v":0,"d":"0.00"}},{"$f":"O429-P429","v":{"v":0,"d":"0.00"}}]
[]
[null,null,"Итоговая нормативная трудоемкость, чел.-ч",{"$nulls":4},{"$f":"$G$42+$G$54+$G$70+$G$103+$G$137+$G$153+$G$168+$G$183+$G$194+$G$209+$G$220+$G$253+$G$266+$G$281+$G$296+$G$311+$H$326+$H$335+$H$344+$H$354+$G$372+$G$382+$G$392+$G$402+$G$416+$G$429","v":{"v":0,"d":"0.00"}}]
[]
[null,null,"Нормативная численность, чел.",{"$nulls":3},{"$f":"IF($K$5=0,0,$H$431/$K$5*(1+$L$9/100))","v":{"v":0,"d":"0.00"}}]
[]
[null,null,"Штатная численность, чел.",{"$nulls":3},{"$f":"IF($E$7=\"0,5; 1,0\",(IF($Q$429<=0.25,$P$429,0)+IF(AND($Q$429<=0.75,$Q$429>0.25),($P$429+0.5),0)+IF($Q$429>0.75,($P$429+1),0)),0)+IF(E$7=\"0,25; 0,5; 0,75; 1,0\",(IF($Q$429<=0.12,$P$429,0)+IF(AND($Q$429<=0.37,$Q$429>0.12),($P$429+0.25),0)+IF(AND($Q$429<=0.62,$Q$429>0.37),($P$429+0.5),0)+IF(AND($Q$429<=0.87,$Q$429>0.62),($P$429+0.75),0)+IF($Q$429>0.87,($P$429+1),0)),0)","v":{"v":0,"d":"0.00"}}]

{"sheet":"Периодичность работ","index":8,"n_rows":24,"n_cols":7,"rows_kept":24,"merged":[[2,2,2,6],[4,2,5,2],[4,3,5,3],[4,4,4,6],[6,2,6,6],[7,4,7,5],[9,5,9,6],[10,5,10,6],[13,4,13,6],[14,4,14,6],[15,4,15,6],[16,2,16,6],[19,5,19,6],[20,4,20,6],[21,4,21,6],[22,4,22,6],[23,4,23,6]]}
[]
[]
[null,null,"Периодичность основных работ, выполняемых при ручной уборке территорий с усовершенствованным, неусовершенствованным покрытием и территорий без покрытий"]
[]
[null,null,"№ п/п","Вид уборочных работ","Классы территорий"]
[{"$nulls":4},"I","II","III"]
[null,null,"Холодный период"]
[null,null,1,"Подметание свежевыпавшего снега толщиной слоя до 2 см","1 раз в сутки в дни снегопада",null,"2 раза в сутки в дни снегопада"]
[null,null,2,"Сдвигание свежевыпавшего снега толщиной слоя свыше 2 см","Через 3 ч во время снегопада","Через 2 ч во время снегопада","Через 1 ч во время снегопада"]
[null,null,3,"Посыпка территорий песком или смесью песка с хлоридами","1 раз в сутки во время гололеда","2 раза в сутки во время гололеда"]
[null,null,4,"Очистка территорий от снега наносного происхождения (или подметание территорий, свободных от снежного покрова)","1 раз в двое суток в дни без снегопада","1 раз в сутки в дни без снегопада"]
[null,null,5,"Очистка территорий от наледи и льда","1 раз в трое суток во время гололеда","1 раз в двое суток во время гололеда","1 раз в сутки во время гололеда"]
[null,null,6,"Очистка урн от мусора","1 раз в трое суток","1 раз в двое суток","1 раз в сутки"]
[null,null,7,"Промывка урн","1 раз в месяц"]
[null,null,8,"Протирка указателей","2 раза в месяц"]
[null,null,9,"Промывка номерных фонарей","2 раза в месяц"]
[null,null,"Теплый период"]
[null,null,1,"Подметание территорий в дни без осадков","1 раз в двое суток","1 раз в сутки","2 раза в сутки"]
[null,null,2,"Подметание территорий в дни с осадками до 2 см","1 раз в двое суток","1 раз в сутки","2 раза в сутки"]
[null,null,3,"Частичная уборка территорий в дни с осадками более 2 см","1 раз в двое суток","1 раз в сутки"]
[null,null,4,"Очистка урн от мусора","1 раз в сутки"]
[null,null,5,"Промывка урн","2 раза в месяц"]
[null,null,6,"Протирка указателей","2 раза в месяц"]
[null,null,7,"Промывка номерных фонарей","2 раза в месяц"]